Organisation Name,Organisation Code,Unique Ref No,Effective Date,Directorate  where expenditure incurred,Supplier name ,Payment Date,Net Amount,Purpose of Spend,Procurement Classification (Higher Level),Procurement Classification (Lower Level),Capital/Revenue
Walsall Council,http://opendatacommunities.org/id/metropolitan-district-council/walsall,WC71-1,31/08/2016,Childrens,247 CARS (WILLENHALL) LIMITED,08/08/2016,"6,350.00",52000-WITH DRIVER-HIRE OF VEHICLES,SCHOOL TRANSPORT,Transport,Revenue
Walsall Council,http://opendatacommunities.org/id/metropolitan-district-council/walsall,WC71-2,31/08/2016,Childrens,5 CARE SERVICES LTD,03/08/2016,"1,079.00",63000-PROFESSIONAL FEES AND SERVICES,DIRECTLY COMMISSIONED NURSING SERVICES,Supplies & Services,Revenue
Walsall Council,http://opendatacommunities.org/id/metropolitan-district-council/walsall,WC71-3,31/08/2016,Childrens,5 CARE SERVICES LTD,03/08/2016,"1,163.50",63000-PROFESSIONAL FEES AND SERVICES,DIRECTLY COMMISSIONED NURSING SERVICES,Supplies & Services,Revenue
Walsall Council,http://opendatacommunities.org/id/metropolitan-district-council/walsall,WC71-4,31/08/2016,Childrens,5 CARE SERVICES LTD,03/08/2016,"1,228.50",63000-PROFESSIONAL FEES AND SERVICES,DIRECTLY COMMISSIONED NURSING SERVICES,Supplies & Services,Revenue
Walsall Council,http://opendatacommunities.org/id/metropolitan-district-council/walsall,WC71-5,31/08/2016,Childrens,5 CARE SERVICES LTD,03/08/2016,"1,287.00",63000-PROFESSIONAL FEES AND SERVICES,DIRECTLY COMMISSIONED NURSING SERVICES,Supplies & Services,Revenue
Walsall Council,http://opendatacommunities.org/id/metropolitan-district-council/walsall,WC71-6,31/08/2016,Childrens,5 CARE SERVICES LTD,03/08/2016,"1,846.00",63000-PROFESSIONAL FEES AND SERVICES,DIRECTLY COMMISSIONED NURSING SERVICES,Supplies & Services,Revenue
Walsall Council,http://opendatacommunities.org/id/metropolitan-district-council/walsall,WC71-7,31/08/2016,Childrens,5 CARE SERVICES LTD,03/08/2016,"1,885.00",63000-PROFESSIONAL FEES AND SERVICES,DIRECTLY COMMISSIONED NURSING SERVICES,Supplies & Services,Revenue
Walsall Council,http://opendatacommunities.org/id/metropolitan-district-council/walsall,WC71-8,31/08/2016,Childrens,5 CARE SERVICES LTD,12/08/2016,"3,296.00",63000-PROFESSIONAL FEES AND SERVICES,DIRECTLY COMMISSIONED NURSING SERVICES,Supplies & Services,Revenue
Walsall Council,http://opendatacommunities.org/id/metropolitan-district-council/walsall,WC71-9,31/08/2016,Social Care & Inclusion,5 CARE SERVICES LTD,16/08/2016,"42,432.86",73372-DOMICILIARY CARE,OP COMMISSIONING,Third Party Payments,Revenue
Walsall Council,http://opendatacommunities.org/id/metropolitan-district-council/walsall,WC71-10,31/08/2016,Economy & Environment,REDACTED,17/08/2016,462.50,60500-GENERAL MATERIALS,COMMUNITY LIAISON,Supplies & Services,Revenue
Walsall Council,http://opendatacommunities.org/id/metropolitan-district-council/walsall,WC71-11,31/08/2016,Economy & Environment,A F BLAKEMORE & SON LTD,19/08/2016,232.87,61009-BEVERAGES-PROVISIONS,DARLASTON LEISURE CENTRE,Supplies & Services,Revenue
Walsall Council,http://opendatacommunities.org/id/metropolitan-district-council/walsall,WC71-12,31/08/2016,Economy & Environment,A F BLAKEMORE & SON LTD,19/08/2016,277.84,61008-CONFECTIONERY/SNACKS-PROVISIONS,WALSALL GALA CENTRE,Supplies & Services,Revenue
Walsall Council,http://opendatacommunities.org/id/metropolitan-district-council/walsall,WC71-13,31/08/2016,Social Care & Inclusion,A F BLAKEMORE & SON LTD,05/08/2016,321.65,61016-FOOD AND BEVERAGES-PROVISIONS,REABLEMENT TEAM - HOLLY BANK,Supplies & Services,Revenue
Walsall Council,http://opendatacommunities.org/id/metropolitan-district-council/walsall,WC71-14,31/08/2016,Economy & Environment,A F BLAKEMORE & SON LTD,01/08/2016,322.96,61009-BEVERAGES-PROVISIONS,DARLASTON LEISURE CENTRE,Supplies & Services,Revenue
Walsall Council,http://opendatacommunities.org/id/metropolitan-district-council/walsall,WC71-15,31/08/2016,Economy & Environment,A F BLAKEMORE & SON LTD,01/08/2016,359.26,61002-DRY FOODS-PROVISIONS,DARLASTON LEISURE CENTRE,Supplies & Services,Revenue
Walsall Council,http://opendatacommunities.org/id/metropolitan-district-council/walsall,WC71-16,31/08/2016,Economy & Environment,A F BLAKEMORE & SON LTD,19/08/2016,412.36,61002-DRY FOODS-PROVISIONS,DARLASTON LEISURE CENTRE,Supplies & Services,Revenue
Walsall Council,http://opendatacommunities.org/id/metropolitan-district-council/walsall,WC71-17,31/08/2016,Social Care & Inclusion,A F BLAKEMORE & SON LTD,02/08/2016,428.92,61016-FOOD AND BEVERAGES-PROVISIONS,GOSCOTE,Supplies & Services,Revenue
Walsall Council,http://opendatacommunities.org/id/metropolitan-district-council/walsall,WC71-18,31/08/2016,Social Care & Inclusion,A F BLAKEMORE & SON LTD,25/08/2016,441.77,61016-FOOD AND BEVERAGES-PROVISIONS,GOSCOTE,Supplies & Services,Revenue
Walsall Council,http://opendatacommunities.org/id/metropolitan-district-council/walsall,WC71-19,31/08/2016,Economy & Environment,A F BLAKEMORE & SON LTD,08/08/2016,657.21,61002-DRY FOODS-PROVISIONS,BLOXWICH LEISURE CENTRE,Supplies & Services,Revenue
Walsall Council,http://opendatacommunities.org/id/metropolitan-district-council/walsall,WC71-20,31/08/2016,Economy & Environment,A F BLAKEMORE & SON LTD,01/08/2016,950.61,61002-DRY FOODS-PROVISIONS,BLOXWICH LEISURE CENTRE,Supplies & Services,Revenue
Walsall Council,http://opendatacommunities.org/id/metropolitan-district-council/walsall,WC71-21,31/08/2016,Economy & Environment,A F BLAKEMORE & SON LTD,22/08/2016,"1,007.09",61008-CONFECTIONERY/SNACKS-PROVISIONS,OAK PARK,Supplies & Services,Revenue
Walsall Council,http://opendatacommunities.org/id/metropolitan-district-council/walsall,WC71-22,31/08/2016,Childrens,REDACTED,01/08/2016,340.16,74006-HOLIDAY/CHRISTMAS ALLOWANCE-FOSTER CARERS-OTH AGENCY PROVISION,INTERNAL FOSTER CARE PROVISION,Third Party Payments,Revenue
Walsall Council,http://opendatacommunities.org/id/metropolitan-district-council/walsall,WC71-23,31/08/2016,Childrens,REDACTED,26/08/2016,340.16,74006-HOLIDAY/CHRISTMAS ALLOWANCE-FOSTER CARERS-OTH AGENCY PROVISION,INTERNAL FOSTER CARE PROVISION,Third Party Payments,Revenue
Walsall Council,http://opendatacommunities.org/id/metropolitan-district-council/walsall,WC71-24,31/08/2016,Childrens,REDACTED,02/08/2016,464.00,76000-TRANSFER PAYMENTS - SOCIAL SERVICES CLIENTS,TRANSITION AND LEAVING CARE,Transfer Payments,Revenue
Walsall Council,http://opendatacommunities.org/id/metropolitan-district-council/walsall,WC71-25,31/08/2016,Childrens,REDACTED,16/08/2016,464.00,76000-TRANSFER PAYMENTS - SOCIAL SERVICES CLIENTS,TRANSITION AND LEAVING CARE,Transfer Payments,Revenue
Walsall Council,http://opendatacommunities.org/id/metropolitan-district-council/walsall,WC71-26,31/08/2016,Childrens,REDACTED,30/08/2016,464.00,76000-TRANSFER PAYMENTS - SOCIAL SERVICES CLIENTS,TRANSITION AND LEAVING CARE,Transfer Payments,Revenue
Walsall Council,http://opendatacommunities.org/id/metropolitan-district-council/walsall,WC71-27,31/08/2016,Childrens,A1 EXPRESS TAXIS,10/08/2016,475.00,52001-HIRE OF VEHICLES,CHILDRENS TAXI BUDGET,Transport,Revenue
Walsall Council,http://opendatacommunities.org/id/metropolitan-district-council/walsall,WC71-28,31/08/2016,Childrens,A1 EXPRESS TAXIS,10/08/2016,480.00,52000-WITH DRIVER-HIRE OF VEHICLES,STROUD FAMILY CENTRE,Transport,Revenue
Walsall Council,http://opendatacommunities.org/id/metropolitan-district-council/walsall,WC71-29,31/08/2016,Childrens,A1 EXPRESS TAXIS,10/08/2016,532.00,52001-HIRE OF VEHICLES,CHILDRENS TAXI BUDGET,Transport,Revenue
Walsall Council,http://opendatacommunities.org/id/metropolitan-district-council/walsall,WC71-30,31/08/2016,Childrens,REDACTED,04/08/2016,345.24,76422-DIRECT PAYMENTS TO SOCIAL SERVICES CLIENTS,FAMILY SUPPORT - DIRECT PAYMENTS,Transfer Payments,Revenue
Walsall Council,http://opendatacommunities.org/id/metropolitan-district-council/walsall,WC71-31,31/08/2016,Childrens,ABACUS FOSTERING LTD,03/08/2016,"4,207.14",74037-INDEPENDENT FOSTER CARE-OTH AGENCY PROVISION,EXTERNAL FOSTER CARE PROVISION,Third Party Payments,Revenue
Walsall Council,http://opendatacommunities.org/id/metropolitan-district-council/walsall,WC71-32,31/08/2016,Childrens,ABACUS FOSTERING LTD,15/08/2016,"4,207.14",74037-INDEPENDENT FOSTER CARE-OTH AGENCY PROVISION,EXTERNAL FOSTER CARE PROVISION,Third Party Payments,Revenue
Walsall Council,http://opendatacommunities.org/id/metropolitan-district-council/walsall,WC71-33,31/08/2016,Childrens,REDACTED,01/08/2016,650.92,74006-HOLIDAY/CHRISTMAS ALLOWANCE-FOSTER CARERS-OTH AGENCY PROVISION,INTERNAL FOSTER CARE PROVISION,Third Party Payments,Revenue
Walsall Council,http://opendatacommunities.org/id/metropolitan-district-council/walsall,WC71-34,31/08/2016,Childrens,REDACTED,26/08/2016,650.92,74006-HOLIDAY/CHRISTMAS ALLOWANCE-FOSTER CARERS-OTH AGENCY PROVISION,INTERNAL FOSTER CARE PROVISION,Third Party Payments,Revenue
Walsall Council,http://opendatacommunities.org/id/metropolitan-district-council/walsall,WC71-35,31/08/2016,Social Care & Inclusion,ABBEY COURT NURSING & RESIDEN,10/08/2016,"-3,088.58",73373-RESIDENTIAL & NURSING CARE PLACEMENTS,MH COMMISSIONING,Third Party Payments,Revenue
Walsall Council,http://opendatacommunities.org/id/metropolitan-district-council/walsall,WC71-36,31/08/2016,Social Care & Inclusion,ABBEY COURT NURSING & RESIDEN,17/08/2016,"1,654.07",73373-RESIDENTIAL & NURSING CARE PLACEMENTS,OP COMMISSIONING,Third Party Payments,Revenue
Walsall Council,http://opendatacommunities.org/id/metropolitan-district-council/walsall,WC71-37,31/08/2016,Social Care & Inclusion,ABBEY HEALTHCARE HOMES LTD,17/08/2016,"1,699.16",73373-RESIDENTIAL & NURSING CARE PLACEMENTS,YADS COMMISSIONING,Third Party Payments,Revenue
Walsall Council,http://opendatacommunities.org/id/metropolitan-district-council/walsall,WC71-38,31/08/2016,Social Care & Inclusion,ABBEY HEALTHCARE HOMES LTD,17/08/2016,"2,294.08",73373-RESIDENTIAL & NURSING CARE PLACEMENTS,YADS COMMISSIONING,Third Party Payments,Revenue
Walsall Council,http://opendatacommunities.org/id/metropolitan-district-council/walsall,WC71-39,31/08/2016,Childrens,ABC CHILDRENS HOME,12/08/2016,"4,000.00",74036-EXTERNAL RESIDENTIAL CARE-OTH AGENCY PROVISION,INDEPENDENT RESIDENTIAL HOMES,Third Party Payments,Revenue
Walsall Council,http://opendatacommunities.org/id/metropolitan-district-council/walsall,WC71-40,31/08/2016,Childrens,ABC CHILDRENS HOME,01/08/2016,"15,500.00",74036-EXTERNAL RESIDENTIAL CARE-OTH AGENCY PROVISION,INDEPENDENT RESIDENTIAL HOMES,Third Party Payments,Revenue
Walsall Council,http://opendatacommunities.org/id/metropolitan-district-council/walsall,WC71-41,31/08/2016,Childrens,ABC DAY NURSERY (WILLENHALL) LIMITED,11/08/2016,362.35,66505-OTHER-GRANTS TO OTHER ORGS,EARLY YEARS - 2 YR OLDS,Third Party Payments,Revenue
Walsall Council,http://opendatacommunities.org/id/metropolitan-district-council/walsall,WC71-42,31/08/2016,Childrens,ABC DAY NURSERY (WILLENHALL) LIMITED,26/08/2016,"17,298.73",66505-OTHER-GRANTS TO OTHER ORGS,EARLY YEARS - 3 YR OLDS,Third Party Payments,Revenue
Walsall Council,http://opendatacommunities.org/id/metropolitan-district-council/walsall,WC71-43,31/08/2016,Childrens,ABC DAY NURSERY (WILLENHALL) LIMITED,26/08/2016,"33,564.96",66505-OTHER-GRANTS TO OTHER ORGS,EARLY YEARS - 2 YR OLDS,Third Party Payments,Revenue
Walsall Council,http://opendatacommunities.org/id/metropolitan-district-council/walsall,WC71-44,31/08/2016,Childrens,ABC FOSTERING,15/08/2016,"2,872.37",74037-INDEPENDENT FOSTER CARE-OTH AGENCY PROVISION,EXTERNAL FOSTER CARE PROVISION,Third Party Payments,Revenue
Walsall Council,http://opendatacommunities.org/id/metropolitan-district-council/walsall,WC71-45,31/08/2016,Childrens,ABC FOSTERING,15/08/2016,"2,917.54",74037-INDEPENDENT FOSTER CARE-OTH AGENCY PROVISION,EXTERNAL FOSTER CARE PROVISION,Third Party Payments,Revenue
Walsall Council,http://opendatacommunities.org/id/metropolitan-district-council/walsall,WC71-46,31/08/2016,Childrens,ABC FOSTERING,15/08/2016,"2,917.54",74037-INDEPENDENT FOSTER CARE-OTH AGENCY PROVISION,EXTERNAL FOSTER CARE PROVISION,Third Party Payments,Revenue
Walsall Council,http://opendatacommunities.org/id/metropolitan-district-council/walsall,WC71-47,31/08/2016,Childrens,ABC FOSTERING,15/08/2016,"2,997.26",74037-INDEPENDENT FOSTER CARE-OTH AGENCY PROVISION,EXTERNAL FOSTER CARE PROVISION,Third Party Payments,Revenue
Walsall Council,http://opendatacommunities.org/id/metropolitan-district-council/walsall,WC71-48,31/08/2016,Childrens,ABC FOSTERING,22/08/2016,"2,997.26",74037-INDEPENDENT FOSTER CARE-OTH AGENCY PROVISION,EXTERNAL FOSTER CARE PROVISION,Third Party Payments,Revenue
Walsall Council,http://opendatacommunities.org/id/metropolitan-district-council/walsall,WC71-49,31/08/2016,Childrens,ABC FOSTERING,15/08/2016,"3,108.86",74037-INDEPENDENT FOSTER CARE-OTH AGENCY PROVISION,EXTERNAL FOSTER CARE PROVISION,Third Party Payments,Revenue
Walsall Council,http://opendatacommunities.org/id/metropolitan-district-council/walsall,WC71-50,31/08/2016,Social Care & Inclusion,REDACTED,04/08/2016,"1,557.68",76422-DIRECT PAYMENTS TO SOCIAL SERVICES CLIENTS,OP COMMISSIONING,Transfer Payments,Revenue
Walsall Council,http://opendatacommunities.org/id/metropolitan-district-council/walsall,WC71-51,31/08/2016,Social Care & Inclusion,REDACTED,04/08/2016,"2,357.99",76422-DIRECT PAYMENTS TO SOCIAL SERVICES CLIENTS,LD COMMISSIONING,Transfer Payments,Revenue
Walsall Council,http://opendatacommunities.org/id/metropolitan-district-council/walsall,WC71-52,31/08/2016,Childrens,ABLEWELL CARS,09/08/2016,689.00,52000-WITH DRIVER-HIRE OF VEHICLES,SCHOOL TRANSPORT,Transport,Revenue
Walsall Council,http://opendatacommunities.org/id/metropolitan-district-council/walsall,WC71-53,31/08/2016,Childrens,ABLEWELL CARS,24/08/2016,795.00,52000-WITH DRIVER-HIRE OF VEHICLES,SCHOOL TRANSPORT,Transport,Revenue
Walsall Council,http://opendatacommunities.org/id/metropolitan-district-council/walsall,WC71-54,31/08/2016,Childrens,ABU BAKR NURSERY,26/08/2016,"11,442.60",66505-OTHER-GRANTS TO OTHER ORGS,EARLY YEARS - 2 YR OLDS,Third Party Payments,Revenue
Walsall Council,http://opendatacommunities.org/id/metropolitan-district-council/walsall,WC71-55,31/08/2016,Childrens,ABU BAKR NURSERY,26/08/2016,"39,132.70",66505-OTHER-GRANTS TO OTHER ORGS,EARLY YEARS - 3 YR OLDS,Third Party Payments,Revenue
Walsall Council,http://opendatacommunities.org/id/metropolitan-district-council/walsall,WC71-56,31/08/2016,Economy & Environment,ABV TRAINING LTD,15/08/2016,"1,799.98",30030-EXTERNAL TRAINING,LICENSING ADMINISTRATION,Employees,Revenue
Walsall Council,http://opendatacommunities.org/id/metropolitan-district-council/walsall,WC71-57,31/08/2016,Economy & Environment,ABV TRAINING LTD,15/08/2016,"1,800.04",30030-EXTERNAL TRAINING,LICENSING ADMINISTRATION,Employees,Revenue
Walsall Council,http://opendatacommunities.org/id/metropolitan-district-council/walsall,WC71-58,31/08/2016,Economy & Environment,AC COACHING & SPORTS DEVELOPMENT LIMITED,02/08/2016,300.00,63000-PROFESSIONAL FEES AND SERVICES,INSPIRED GENERATIONS (CSAF),Supplies & Services,Revenue
Walsall Council,http://opendatacommunities.org/id/metropolitan-district-council/walsall,WC71-59,31/08/2016,Economy & Environment,AC COACHING & SPORTS DEVELOPMENT LIMITED,02/08/2016,800.00,63000-PROFESSIONAL FEES AND SERVICES,INSPIRED GENERATIONS (CSAF),Supplies & Services,Revenue
Walsall Council,http://opendatacommunities.org/id/metropolitan-district-council/walsall,WC71-60,31/08/2016,Economy & Environment,ACCESS PLATFORM SALES LTD (APS),12/08/2016,"5,845.00",60000-FURNITURE & EQUIPMENT,FOREST ARTS CENTRE,Supplies & Services,Revenue
Walsall Council,http://opendatacommunities.org/id/metropolitan-district-council/walsall,WC71-61,31/08/2016,Social Care & Inclusion,ACCORD HOUSING ASSOCIATION LTD#135,19/08/2016,431.48,73372-DOMICILIARY CARE,OP COMMISSIONING,Third Party Payments,Revenue
Walsall Council,http://opendatacommunities.org/id/metropolitan-district-council/walsall,WC71-62,31/08/2016,Social Care & Inclusion,ACCORD HOUSING ASSOCIATION LTD#135,01/09/2016,578.25,73374-SUPPORTED & OTHER ACCOMMODATION,LD COMMISSIONING,Third Party Payments,Revenue
Walsall Council,http://opendatacommunities.org/id/metropolitan-district-council/walsall,WC71-63,31/08/2016,Social Care & Inclusion,ACCORD HOUSING ASSOCIATION LTD#135,19/08/2016,862.96,73372-DOMICILIARY CARE,OP COMMISSIONING,Third Party Payments,Revenue
Walsall Council,http://opendatacommunities.org/id/metropolitan-district-council/walsall,WC71-64,31/08/2016,Social Care & Inclusion,ACCORD HOUSING ASSOCIATION LTD#135,19/08/2016,862.96,73372-DOMICILIARY CARE,OP COMMISSIONING,Third Party Payments,Revenue
Walsall Council,http://opendatacommunities.org/id/metropolitan-district-council/walsall,WC71-65,31/08/2016,Social Care & Inclusion,ACCORD HOUSING ASSOCIATION LTD#135,26/08/2016,887.50,73374-SUPPORTED & OTHER ACCOMMODATION,LD COMMISSIONING,Third Party Payments,Revenue
Walsall Council,http://opendatacommunities.org/id/metropolitan-district-council/walsall,WC71-66,31/08/2016,Childrens,ACCORD HOUSING ASSOCIATION LTD#135,03/08/2016,928.68,43000-RENTS,SAFEGUARDING & FAMILY SUPPORT,Premises,Revenue
Walsall Council,http://opendatacommunities.org/id/metropolitan-district-council/walsall,WC71-67,31/08/2016,Social Care & Inclusion,ACCORD HOUSING ASSOCIATION LTD#135,09/08/2016,"2,258.78",73374-SUPPORTED & OTHER ACCOMMODATION,OP COMMISSIONING,Third Party Payments,Revenue
Walsall Council,http://opendatacommunities.org/id/metropolitan-district-council/walsall,WC71-68,31/08/2016,Social Care & Inclusion,ACCORD HOUSING ASSOCIATION LTD#135,09/08/2016,"2,388.85",73372-DOMICILIARY CARE,OP COMMISSIONING,Third Party Payments,Revenue
Walsall Council,http://opendatacommunities.org/id/metropolitan-district-council/walsall,WC71-69,31/08/2016,Social Care & Inclusion,ACCORD HOUSING ASSOCIATION LTD#135,09/08/2016,"3,193.35",73374-SUPPORTED & OTHER ACCOMMODATION,LD COMMISSIONING,Third Party Payments,Revenue
Walsall Council,http://opendatacommunities.org/id/metropolitan-district-council/walsall,WC71-70,31/08/2016,Social Care & Inclusion,ACCORD HOUSING ASSOCIATION LTD#135,10/08/2016,"4,744.90",73373-RESIDENTIAL & NURSING CARE PLACEMENTS,LD COMMISSIONING,Third Party Payments,Revenue
Walsall Council,http://opendatacommunities.org/id/metropolitan-district-council/walsall,WC71-71,31/08/2016,Social Care & Inclusion,ACCORD HOUSING ASSOCIATION LTD#135,10/08/2016,"4,744.90",73373-RESIDENTIAL & NURSING CARE PLACEMENTS,LD COMMISSIONING,Third Party Payments,Revenue
Walsall Council,http://opendatacommunities.org/id/metropolitan-district-council/walsall,WC71-72,31/08/2016,Social Care & Inclusion,ACCORD HOUSING ASSOCIATION LTD#135,10/08/2016,"4,744.90",73373-RESIDENTIAL & NURSING CARE PLACEMENTS,LD COMMISSIONING,Third Party Payments,Revenue
Walsall Council,http://opendatacommunities.org/id/metropolitan-district-council/walsall,WC71-73,31/08/2016,Social Care & Inclusion,ACCORD HOUSING ASSOCIATION LTD#135,17/08/2016,"4,744.90",73373-RESIDENTIAL & NURSING CARE PLACEMENTS,LD COMMISSIONING,Third Party Payments,Revenue
Walsall Council,http://opendatacommunities.org/id/metropolitan-district-council/walsall,WC71-74,31/08/2016,Social Care & Inclusion,ACCORD HOUSING ASSOCIATION LTD#135,10/08/2016,"6,622.35",73373-RESIDENTIAL & NURSING CARE PLACEMENTS,LD COMMISSIONING,Third Party Payments,Revenue
Walsall Council,http://opendatacommunities.org/id/metropolitan-district-council/walsall,WC71-75,31/08/2016,Social Care & Inclusion,ACCORD HOUSING ASSOCIATION LTD#135,10/08/2016,"6,622.35",73373-RESIDENTIAL & NURSING CARE PLACEMENTS,LD COMMISSIONING,Third Party Payments,Revenue
Walsall Council,http://opendatacommunities.org/id/metropolitan-district-council/walsall,WC71-76,31/08/2016,Social Care & Inclusion,ACCORD HOUSING ASSOCIATION LTD#135,10/08/2016,"6,622.35",73373-RESIDENTIAL & NURSING CARE PLACEMENTS,LD COMMISSIONING,Third Party Payments,Revenue
Walsall Council,http://opendatacommunities.org/id/metropolitan-district-council/walsall,WC71-77,31/08/2016,Social Care & Inclusion,ACCORD HOUSING ASSOCIATION LTD#135,16/08/2016,"8,865.92",73372-DOMICILIARY CARE,OP COMMISSIONING,Third Party Payments,Revenue
Walsall Council,http://opendatacommunities.org/id/metropolitan-district-council/walsall,WC71-78,31/08/2016,Social Care & Inclusion,ACCORD HOUSING ASSOCIATION LTD#135,16/08/2016,"28,491.88",73372-DOMICILIARY CARE,OP COMMISSIONING,Third Party Payments,Revenue
Walsall Council,http://opendatacommunities.org/id/metropolitan-district-council/walsall,WC71-79,31/08/2016,Social Care & Inclusion,ACE CARE AGENCY,26/08/2016,485.64,73372-DOMICILIARY CARE,MH COMMISSIONING,Third Party Payments,Revenue
Walsall Council,http://opendatacommunities.org/id/metropolitan-district-council/walsall,WC71-80,31/08/2016,Social Care & Inclusion,ACE CARE AGENCY,01/08/2016,647.52,73372-DOMICILIARY CARE,MH COMMISSIONING,Third Party Payments,Revenue
Walsall Council,http://opendatacommunities.org/id/metropolitan-district-council/walsall,WC71-81,31/08/2016,Social Care & Inclusion,ACE CARE AGENCY,01/08/2016,832.00,73372-DOMICILIARY CARE,MH COMMISSIONING,Third Party Payments,Revenue
Walsall Council,http://opendatacommunities.org/id/metropolitan-district-council/walsall,WC71-82,31/08/2016,Social Care & Inclusion,ACE CARE AGENCY,26/08/2016,910.00,73372-DOMICILIARY CARE,MH COMMISSIONING,Third Party Payments,Revenue
Walsall Council,http://opendatacommunities.org/id/metropolitan-district-council/walsall,WC71-83,31/08/2016,Childrens,ACE RADIO CARS,02/08/2016,"1,366.88",52000-WITH DRIVER-HIRE OF VEHICLES,SCHOOL TRANSPORT,Transport,Revenue
Walsall Council,http://opendatacommunities.org/id/metropolitan-district-council/walsall,WC71-84,31/08/2016,Social Care & Inclusion,ACEPAY LTD (COTTAGE NUR HOME),10/08/2016,"2,097.80",73373-RESIDENTIAL & NURSING CARE PLACEMENTS,OP COMMISSIONING,Third Party Payments,Revenue
Walsall Council,http://opendatacommunities.org/id/metropolitan-district-council/walsall,WC71-85,31/08/2016,Social Care & Inclusion,ACEPAY LTD (COTTAGE NUR HOME),10/08/2016,"2,097.80",73373-RESIDENTIAL & NURSING CARE PLACEMENTS,OP COMMISSIONING,Third Party Payments,Revenue
Walsall Council,http://opendatacommunities.org/id/metropolitan-district-council/walsall,WC71-86,31/08/2016,Social Care & Inclusion,ACEPAY LTD (COTTAGE NUR HOME),10/08/2016,"2,097.80",73373-RESIDENTIAL & NURSING CARE PLACEMENTS,OP COMMISSIONING,Third Party Payments,Revenue
Walsall Council,http://opendatacommunities.org/id/metropolitan-district-council/walsall,WC71-87,31/08/2016,Social Care & Inclusion,ACEPAY LTD (COTTAGE NUR HOME),23/08/2016,"2,097.80",73373-RESIDENTIAL & NURSING CARE PLACEMENTS,OP COMMISSIONING,Third Party Payments,Revenue
Walsall Council,http://opendatacommunities.org/id/metropolitan-district-council/walsall,WC71-88,31/08/2016,Social Care & Inclusion,ACEPAY LTD (COTTAGE NUR HOME),23/08/2016,"2,097.80",73373-RESIDENTIAL & NURSING CARE PLACEMENTS,OP COMMISSIONING,Third Party Payments,Revenue
Walsall Council,http://opendatacommunities.org/id/metropolitan-district-council/walsall,WC71-89,31/08/2016,Social Care & Inclusion,ACEPAY LTD (COTTAGE NUR HOME),23/08/2016,"2,097.80",73373-RESIDENTIAL & NURSING CARE PLACEMENTS,OP COMMISSIONING,Third Party Payments,Revenue
Walsall Council,http://opendatacommunities.org/id/metropolitan-district-council/walsall,WC71-90,31/08/2016,Social Care & Inclusion,ACEPAY LTD (COTTAGE NUR HOME),10/08/2016,"2,143.80",73373-RESIDENTIAL & NURSING CARE PLACEMENTS,OP COMMISSIONING,Third Party Payments,Revenue
Walsall Council,http://opendatacommunities.org/id/metropolitan-district-council/walsall,WC71-91,31/08/2016,Social Care & Inclusion,ACEPAY LTD (COTTAGE NUR HOME),10/08/2016,"2,143.80",73373-RESIDENTIAL & NURSING CARE PLACEMENTS,OP COMMISSIONING,Third Party Payments,Revenue
Walsall Council,http://opendatacommunities.org/id/metropolitan-district-council/walsall,WC71-92,31/08/2016,Social Care & Inclusion,ACEPAY LTD (COTTAGE NUR HOME),10/08/2016,"2,143.80",73373-RESIDENTIAL & NURSING CARE PLACEMENTS,OP COMMISSIONING,Third Party Payments,Revenue
Walsall Council,http://opendatacommunities.org/id/metropolitan-district-council/walsall,WC71-93,31/08/2016,Social Care & Inclusion,ACEPAY LTD (COTTAGE NUR HOME),23/08/2016,"2,143.80",73373-RESIDENTIAL & NURSING CARE PLACEMENTS,OP COMMISSIONING,Third Party Payments,Revenue
Walsall Council,http://opendatacommunities.org/id/metropolitan-district-council/walsall,WC71-94,31/08/2016,Social Care & Inclusion,ACEPAY LTD (COTTAGE NUR HOME),23/08/2016,"2,143.80",73373-RESIDENTIAL & NURSING CARE PLACEMENTS,OP COMMISSIONING,Third Party Payments,Revenue
Walsall Council,http://opendatacommunities.org/id/metropolitan-district-council/walsall,WC71-95,31/08/2016,Social Care & Inclusion,ACEPAY LTD (COTTAGE NUR HOME),26/08/2016,"2,143.80",73373-RESIDENTIAL & NURSING CARE PLACEMENTS,OP COMMISSIONING,Third Party Payments,Revenue
Walsall Council,http://opendatacommunities.org/id/metropolitan-district-council/walsall,WC71-96,31/08/2016,Social Care & Inclusion,ACORN CARE LTD,17/08/2016,"15,174.19",73373-RESIDENTIAL & NURSING CARE PLACEMENTS,LD COMMISSIONING,Third Party Payments,Revenue
Walsall Council,http://opendatacommunities.org/id/metropolitan-district-council/walsall,WC71-97,31/08/2016,Social Care & Inclusion,ACORN REST HOME,26/08/2016,"1,620.00",73373-RESIDENTIAL & NURSING CARE PLACEMENTS,OP COMMISSIONING,Third Party Payments,Revenue
Walsall Council,http://opendatacommunities.org/id/metropolitan-district-council/walsall,WC71-98,31/08/2016,Childrens,ACORNS CHILDRENS HOSPICE TRUST,01/08/2016,750.00,63000-PROFESSIONAL FEES AND SERVICES,DIRECTLY COMMISSIONED NURSING SERVICES,Supplies & Services,Revenue
Walsall Council,http://opendatacommunities.org/id/metropolitan-district-council/walsall,WC71-99,31/08/2016,Social Care & Inclusion,ACTION ON HEARING LOSS,19/08/2016,262.38,60013-DISABLED-EQUIPMENT,SENSORY/DEAF SERVICES,Supplies & Services,Revenue
Walsall Council,http://opendatacommunities.org/id/metropolitan-district-council/walsall,WC71-100,31/08/2016,Social Care & Inclusion,ACTION ON HEARING LOSS,01/08/2016,313.73,60013-DISABLED-EQUIPMENT,SENSORY/DEAF SERVICES,Supplies & Services,Revenue
Walsall Council,http://opendatacommunities.org/id/metropolitan-district-council/walsall,WC71-101,31/08/2016,Childrens,ACTIVATING CREATIVE TALENT CIC,26/08/2016,"10,522.17",66500-GRANTS TO OTHER ORGS,EIG-TYS MODEL,Third Party Payments,Revenue
Walsall Council,http://opendatacommunities.org/id/metropolitan-district-council/walsall,WC71-102,31/08/2016,Change and Governance,ADA BUILDERS & JOINERS,24/08/2016,"6,005.06",01045-PRIVATE GRANTS,CFR 826 DISABLED FACILITIES GRANTS (SOCIAL SERVICES),Capital,Capital
Walsall Council,http://opendatacommunities.org/id/metropolitan-district-council/walsall,WC71-103,31/08/2016,Childrens,REDACTED,04/08/2016,487.60,76422-DIRECT PAYMENTS TO SOCIAL SERVICES CLIENTS,FAMILY SUPPORT - DIRECT PAYMENTS,Transfer Payments,Revenue
Walsall Council,http://opendatacommunities.org/id/metropolitan-district-council/walsall,WC71-104,31/08/2016,Social Care & Inclusion,REDACTED,04/08/2016,417.48,76422-DIRECT PAYMENTS TO SOCIAL SERVICES CLIENTS,LD COMMISSIONING,Transfer Payments,Revenue
Walsall Council,http://opendatacommunities.org/id/metropolitan-district-council/walsall,WC71-105,31/08/2016,Economy & Environment,ADDENBROOKE STREET ALLOTMENTS ASSOCIATION,25/08/2016,885.00,66500-GRANTS TO OTHER ORGS,CENTRAL SERVICES ALLOTMENTS,Third Party Payments,Revenue
Walsall Council,http://opendatacommunities.org/id/metropolitan-district-council/walsall,WC71-106,31/08/2016,Social Care & Inclusion,REDACTED,04/08/2016,964.00,76422-DIRECT PAYMENTS TO SOCIAL SERVICES CLIENTS,OP COMMISSIONING,Transfer Payments,Revenue
Walsall Council,http://opendatacommunities.org/id/metropolitan-district-council/walsall,WC71-107,31/08/2016,Childrens,ADMIRAL SELF STORAGE LTD,03/08/2016,"1,303.57",43000-RENTS,EDUCATION BUSINESS PARTNERSHIP (EBP),Premises,Revenue
Walsall Council,http://opendatacommunities.org/id/metropolitan-district-council/walsall,WC71-108,31/08/2016,Childrens,ADMIRAL SELF STORAGE LTD,03/08/2016,"1,564.29",43000-RENTS,EDUCATION BUSINESS PARTNERSHIP (EBP),Premises,Revenue
Walsall Council,http://opendatacommunities.org/id/metropolitan-district-council/walsall,WC71-109,31/08/2016,Childrens,REDACTED,01/08/2016,694.24,74006-HOLIDAY/CHRISTMAS ALLOWANCE-FOSTER CARERS-OTH AGENCY PROVISION,INTERNAL FOSTER CARE PROVISION,Third Party Payments,Revenue
Walsall Council,http://opendatacommunities.org/id/metropolitan-district-council/walsall,WC71-110,31/08/2016,Childrens,REDACTED,26/08/2016,694.24,74006-HOLIDAY/CHRISTMAS ALLOWANCE-FOSTER CARERS-OTH AGENCY PROVISION,INTERNAL FOSTER CARE PROVISION,Third Party Payments,Revenue
Walsall Council,http://opendatacommunities.org/id/metropolitan-district-council/walsall,WC71-111,31/08/2016,Social Care & Inclusion,ADVANCE HEALTH CARE (UK) LTD,26/08/2016,546.00,73025-PROFESSIONAL SERVICES-PRIV CONTRACTOR & OTHER AGENCIES,COMMUNITY INTERMEDIATE CARE,Third Party Payments,Revenue
Walsall Council,http://opendatacommunities.org/id/metropolitan-district-council/walsall,WC71-112,31/08/2016,Social Care & Inclusion,ADVANCE HEALTH CARE (UK) LTD,26/08/2016,591.50,73025-PROFESSIONAL SERVICES-PRIV CONTRACTOR & OTHER AGENCIES,COMMUNITY INTERMEDIATE CARE,Third Party Payments,Revenue
Walsall Council,http://opendatacommunities.org/id/metropolitan-district-council/walsall,WC71-113,31/08/2016,Social Care & Inclusion,ADVANCE HEALTH CARE (UK) LTD,26/08/2016,"3,216.07",73025-PROFESSIONAL SERVICES-PRIV CONTRACTOR & OTHER AGENCIES,COMMUNITY INTERMEDIATE CARE,Third Party Payments,Revenue
Walsall Council,http://opendatacommunities.org/id/metropolitan-district-council/walsall,WC71-114,31/08/2016,Social Care & Inclusion,ADVANCE HEALTH CARE (UK) LTD,19/08/2016,"3,275.00",73025-PROFESSIONAL SERVICES-PRIV CONTRACTOR & OTHER AGENCIES,COMMUNITY INTERMEDIATE CARE,Third Party Payments,Revenue
Walsall Council,http://opendatacommunities.org/id/metropolitan-district-council/walsall,WC71-115,31/08/2016,Social Care & Inclusion,ADVANCE HEALTH CARE (UK) LTD,26/08/2016,"3,275.00",73025-PROFESSIONAL SERVICES-PRIV CONTRACTOR & OTHER AGENCIES,COMMUNITY INTERMEDIATE CARE,Third Party Payments,Revenue
Walsall Council,http://opendatacommunities.org/id/metropolitan-district-council/walsall,WC71-116,31/08/2016,Social Care & Inclusion,ADVANCE HEALTH CARE (UK) LTD,26/08/2016,"3,484.60",73025-PROFESSIONAL SERVICES-PRIV CONTRACTOR & OTHER AGENCIES,COMMUNITY INTERMEDIATE CARE,Third Party Payments,Revenue
Walsall Council,http://opendatacommunities.org/id/metropolitan-district-council/walsall,WC71-117,31/08/2016,Social Care & Inclusion,ADVANCE HEALTH CARE (UK) LTD,26/08/2016,"3,576.30",73025-PROFESSIONAL SERVICES-PRIV CONTRACTOR & OTHER AGENCIES,COMMUNITY INTERMEDIATE CARE,Third Party Payments,Revenue
Walsall Council,http://opendatacommunities.org/id/metropolitan-district-council/walsall,WC71-118,31/08/2016,Social Care & Inclusion,ADVANCE HEALTH CARE (UK) LTD,26/08/2016,"3,576.31",73025-PROFESSIONAL SERVICES-PRIV CONTRACTOR & OTHER AGENCIES,COMMUNITY INTERMEDIATE CARE,Third Party Payments,Revenue
Walsall Council,http://opendatacommunities.org/id/metropolitan-district-council/walsall,WC71-119,31/08/2016,Social Care & Inclusion,ADVANCE HEALTH CARE (UK) LTD,19/08/2016,"3,668.02",73025-PROFESSIONAL SERVICES-PRIV CONTRACTOR & OTHER AGENCIES,COMMUNITY INTERMEDIATE CARE,Third Party Payments,Revenue
Walsall Council,http://opendatacommunities.org/id/metropolitan-district-council/walsall,WC71-120,31/08/2016,Social Care & Inclusion,ADVANCE HEALTH CARE (UK) LTD,17/08/2016,"3,700.74",73025-PROFESSIONAL SERVICES-PRIV CONTRACTOR & OTHER AGENCIES,COMMUNITY INTERMEDIATE CARE,Third Party Payments,Revenue
Walsall Council,http://opendatacommunities.org/id/metropolitan-district-council/walsall,WC71-121,31/08/2016,Social Care & Inclusion,ADVANCE HEALTH CARE (UK) LTD,19/08/2016,"3,949.66",73025-PROFESSIONAL SERVICES-PRIV CONTRACTOR & OTHER AGENCIES,COMMUNITY INTERMEDIATE CARE,Third Party Payments,Revenue
Walsall Council,http://opendatacommunities.org/id/metropolitan-district-council/walsall,WC71-122,31/08/2016,Social Care & Inclusion,ADVANCE HEALTH CARE (UK) LTD,16/08/2016,"43,190.58",73372-DOMICILIARY CARE,OP COMMISSIONING,Third Party Payments,Revenue
Walsall Council,http://opendatacommunities.org/id/metropolitan-district-council/walsall,WC71-123,31/08/2016,Change and Governance,ADVANCED DIGITAL IMAGING,26/08/2016,576.00,62008-OUTWORK-PRINT ROOM,PRINTING SERVICES,Supplies & Services,Revenue
Walsall Council,http://opendatacommunities.org/id/metropolitan-district-council/walsall,WC71-124,31/08/2016,Change and Governance,ADVANCED DIGITAL IMAGING,19/08/2016,715.00,62008-OUTWORK-PRINT ROOM,PRINTING SERVICES,Supplies & Services,Revenue
Walsall Council,http://opendatacommunities.org/id/metropolitan-district-council/walsall,WC71-125,31/08/2016,Childrens,ADVENTURELAND DAY NURSERY,26/08/2016,"7,527.71",66505-OTHER-GRANTS TO OTHER ORGS,EARLY YEARS - 3 YR OLDS,Third Party Payments,Revenue
Walsall Council,http://opendatacommunities.org/id/metropolitan-district-council/walsall,WC71-126,31/08/2016,Childrens,ADVENTURELAND DAY NURSERY,26/08/2016,"20,596.68",66505-OTHER-GRANTS TO OTHER ORGS,EARLY YEARS - 2 YR OLDS,Third Party Payments,Revenue
Walsall Council,http://opendatacommunities.org/id/metropolitan-district-council/walsall,WC71-127,31/08/2016,Economy & Environment,AECOM LIMITED,05/08/2016,"13,932.50",01002-PROJECT FEES,CFR 1072 M6 JUNCTION 10,Capital,Capital
Walsall Council,http://opendatacommunities.org/id/metropolitan-district-council/walsall,WC71-128,31/08/2016,Economy & Environment,AECOM LIMITED,03/08/2016,"21,151.36",01002-PROJECT FEES,CFR 1072 M6 JUNCTION 10,Capital,Capital
Walsall Council,http://opendatacommunities.org/id/metropolitan-district-council/walsall,WC71-129,31/08/2016,Social Care & Inclusion,AGE UK WALSALL,01/08/2016,"1,625.00",76423-DIRECT PAYMENTS SUPPORT,STRATEGIC DEVELOPMENT MANAGEMENT TEAM,Transfer Payments,Revenue
Walsall Council,http://opendatacommunities.org/id/metropolitan-district-council/walsall,WC71-130,31/08/2016,Social Care & Inclusion,AGE UK WALSALL,08/08/2016,"8,415.00",76423-DIRECT PAYMENTS SUPPORT,INDIVIDUAL BUDGET - SUPPORT,Transfer Payments,Revenue
Walsall Council,http://opendatacommunities.org/id/metropolitan-district-council/walsall,WC71-131,31/08/2016,Social Care & Inclusion,REDACTED,04/08/2016,"1,882.00",76422-DIRECT PAYMENTS TO SOCIAL SERVICES CLIENTS,LD COMMISSIONING,Transfer Payments,Revenue
Walsall Council,http://opendatacommunities.org/id/metropolitan-district-council/walsall,WC71-132,31/08/2016,Social Care & Inclusion,REDACTED,04/08/2016,914.20,76422-DIRECT PAYMENTS TO SOCIAL SERVICES CLIENTS,OP COMMISSIONING,Transfer Payments,Revenue
Walsall Council,http://opendatacommunities.org/id/metropolitan-district-council/walsall,WC71-133,31/08/2016,Childrens,ALAN CRITCHLEY ASSOCIATES,02/08/2016,"4,200.00",63102-CONSULTANTS FEES - CORPORATE,SAFEGUARDING BOARD,Supplies & Services,Revenue
Walsall Council,http://opendatacommunities.org/id/metropolitan-district-council/walsall,WC71-134,31/08/2016,Economy & Environment,ALDERBROOK HEALTHCARE LTD,12/08/2016,567.30,63000-PROFESSIONAL FEES AND SERVICES,CORONERS SERVICE,Supplies & Services,Revenue
Walsall Council,http://opendatacommunities.org/id/metropolitan-district-council/walsall,WC71-135,31/08/2016,Social Care & Inclusion,ALDERGROVE MANOR LTD,02/08/2016,"1,839.68",73373-RESIDENTIAL & NURSING CARE PLACEMENTS,MH COMMISSIONING,Third Party Payments,Revenue
Walsall Council,http://opendatacommunities.org/id/metropolitan-district-council/walsall,WC71-136,31/08/2016,Social Care & Inclusion,ALDERGROVE MANOR LTD,02/08/2016,"1,839.68",73373-RESIDENTIAL & NURSING CARE PLACEMENTS,MH COMMISSIONING,Third Party Payments,Revenue
Walsall Council,http://opendatacommunities.org/id/metropolitan-district-council/walsall,WC71-137,31/08/2016,Social Care & Inclusion,ALDERGROVE MANOR LTD,26/08/2016,"1,839.68",73373-RESIDENTIAL & NURSING CARE PLACEMENTS,MH COMMISSIONING,Third Party Payments,Revenue
Walsall Council,http://opendatacommunities.org/id/metropolitan-district-council/walsall,WC71-138,31/08/2016,Childrens,ALDRIDGE & BARONS LIMITED,12/08/2016,"1,131.35",63000-PROFESSIONAL FEES AND SERVICES,DIRECTLY COMMISSIONED NURSING SERVICES,Supplies & Services,Revenue
Walsall Council,http://opendatacommunities.org/id/metropolitan-district-council/walsall,WC71-139,31/08/2016,Childrens,ALDRIDGE PREMIER TUITION LTD,25/08/2016,300.00,60500-GENERAL MATERIALS,PUPIL REFERAL UNIT EXCLUSIONS,Supplies & Services,Revenue
Walsall Council,http://opendatacommunities.org/id/metropolitan-district-council/walsall,WC71-140,31/08/2016,Change and Governance,ALDRIDGE YOUTH THEATRE,24/08/2016,500.00,62515-MISCELLANEOUS SUPPLIES,AREA 2 - ALDRIDGE/STREETLY/PHEASEY,Supplies & Services,Revenue
Walsall Council,http://opendatacommunities.org/id/metropolitan-district-council/walsall,WC71-141,31/08/2016,Social Care & Inclusion,REDACTED,04/08/2016,"1,204.00",76422-DIRECT PAYMENTS TO SOCIAL SERVICES CLIENTS,YADS COMMISSIONING,Transfer Payments,Revenue
Walsall Council,http://opendatacommunities.org/id/metropolitan-district-council/walsall,WC71-142,31/08/2016,Social Care & Inclusion,ALEXANDRA HOUSE CARE SERVICES LTD T/A STONEBRIDGE NURSING HOME,10/08/2016,"7,117.44",73373-RESIDENTIAL & NURSING CARE PLACEMENTS,OP COMMISSIONING,Third Party Payments,Revenue
Walsall Council,http://opendatacommunities.org/id/metropolitan-district-council/walsall,WC71-143,31/08/2016,Childrens,REDACTED,04/08/2016,582.66,76422-DIRECT PAYMENTS TO SOCIAL SERVICES CLIENTS,FAMILY SUPPORT - DIRECT PAYMENTS,Transfer Payments,Revenue
Walsall Council,http://opendatacommunities.org/id/metropolitan-district-council/walsall,WC71-144,31/08/2016,Social Care & Inclusion,REDACTED,04/08/2016,854.00,76422-DIRECT PAYMENTS TO SOCIAL SERVICES CLIENTS,YADS COMMISSIONING,Transfer Payments,Revenue
Walsall Council,http://opendatacommunities.org/id/metropolitan-district-council/walsall,WC71-145,31/08/2016,Social Care & Inclusion,REDACTED,04/08/2016,578.00,76422-DIRECT PAYMENTS TO SOCIAL SERVICES CLIENTS,OP COMMISSIONING,Transfer Payments,Revenue
Walsall Council,http://opendatacommunities.org/id/metropolitan-district-council/walsall,WC71-146,31/08/2016,Childrens,REDACTED,15/08/2016,765.36,62515-MISCELLANEOUS SUPPLIES,INTERNAL FOSTER CARE PROVISION,Supplies & Services,Revenue
Walsall Council,http://opendatacommunities.org/id/metropolitan-district-council/walsall,WC71-147,31/08/2016,Childrens,REDACTED,15/08/2016,"1,014.70",74006-HOLIDAY/CHRISTMAS ALLOWANCE-FOSTER CARERS-OTH AGENCY PROVISION,INTERNAL FOSTER CARE PROVISION,Third Party Payments,Revenue
Walsall Council,http://opendatacommunities.org/id/metropolitan-district-council/walsall,WC71-148,31/08/2016,Childrens,REDACTED,26/08/2016,762.84,66505-OTHER-GRANTS TO OTHER ORGS,EARLY YEARS - 2 YR OLDS,Third Party Payments,Revenue
Walsall Council,http://opendatacommunities.org/id/metropolitan-district-council/walsall,WC71-149,31/08/2016,Childrens,REDACTED,01/08/2016,552.96,74006-HOLIDAY/CHRISTMAS ALLOWANCE-FOSTER CARERS-OTH AGENCY PROVISION,INTERNAL FOSTER CARE PROVISION,Third Party Payments,Revenue
Walsall Council,http://opendatacommunities.org/id/metropolitan-district-council/walsall,WC71-150,31/08/2016,Childrens,REDACTED,26/08/2016,552.96,74006-HOLIDAY/CHRISTMAS ALLOWANCE-FOSTER CARERS-OTH AGENCY PROVISION,INTERNAL FOSTER CARE PROVISION,Third Party Payments,Revenue
Walsall Council,http://opendatacommunities.org/id/metropolitan-district-council/walsall,WC71-151,31/08/2016,Economy & Environment,REDACTED,11/08/2016,594.00,63128-HIRE OF ROOM-SERVICES-FEES,EXTEND,Supplies & Services,Revenue
Walsall Council,http://opendatacommunities.org/id/metropolitan-district-council/walsall,WC71-152,31/08/2016,Childrens,ALL SAINTS NATIONAL ACADEMY #1,17/08/2016,500.00,77300-ISB-FORMULA ALLOCATION,OUT OF BOROUGH SCHOOLS,Transfer Payments,Revenue
Walsall Council,http://opendatacommunities.org/id/metropolitan-district-council/walsall,WC71-153,31/08/2016,Childrens,ALL SAINTS NATIONAL ACADEMY #1,15/08/2016,"5,030.59",66502-TOP UP FUNDING -GRANTS TO SCHOOLS,ACADEMIES,Third Party Payments,Revenue
Walsall Council,http://opendatacommunities.org/id/metropolitan-district-council/walsall,WC71-154,31/08/2016,Childrens,ALMOZENE NURSERY & CHILDRENS CENTRE,11/08/2016,438.63,66505-OTHER-GRANTS TO OTHER ORGS,EARLY YEARS - 2 YR OLDS,Third Party Payments,Revenue
Walsall Council,http://opendatacommunities.org/id/metropolitan-district-council/walsall,WC71-155,31/08/2016,Childrens,ALMOZENE NURSERY & CHILDRENS CENTRE,26/08/2016,"6,569.73",66505-OTHER-GRANTS TO OTHER ORGS,EARLY YEARS - 3 YR OLDS,Third Party Payments,Revenue
Walsall Council,http://opendatacommunities.org/id/metropolitan-district-council/walsall,WC71-156,31/08/2016,Childrens,ALMOZENE NURSERY & CHILDRENS CENTRE,26/08/2016,"9,916.92",66505-OTHER-GRANTS TO OTHER ORGS,EARLY YEARS - 2 YR OLDS,Third Party Payments,Revenue
Walsall Council,http://opendatacommunities.org/id/metropolitan-district-council/walsall,WC71-157,31/08/2016,Childrens,ALPHA & EAGLE CARS LTD,10/08/2016,"3,015.00",52001-HIRE OF VEHICLES,CHILDRENS TAXI BUDGET,Transport,Revenue
Walsall Council,http://opendatacommunities.org/id/metropolitan-district-council/walsall,WC71-158,31/08/2016,Social Care & Inclusion,ALPHA HEALTH CARE LTD,23/08/2016,"-14,566.76",73373-RESIDENTIAL & NURSING CARE PLACEMENTS,OP COMMISSIONING,Third Party Payments,Revenue
Walsall Council,http://opendatacommunities.org/id/metropolitan-district-council/walsall,WC71-159,31/08/2016,Social Care & Inclusion,ALPHA HEALTH CARE LTD,02/08/2016,347.14,73373-RESIDENTIAL & NURSING CARE PLACEMENTS,OP COMMISSIONING,Third Party Payments,Revenue
Walsall Council,http://opendatacommunities.org/id/metropolitan-district-council/walsall,WC71-160,31/08/2016,Social Care & Inclusion,ALPHA HEALTH CARE LTD,02/08/2016,824.14,73373-RESIDENTIAL & NURSING CARE PLACEMENTS,OP COMMISSIONING,Third Party Payments,Revenue
Walsall Council,http://opendatacommunities.org/id/metropolitan-district-council/walsall,WC71-161,31/08/2016,Social Care & Inclusion,ALPHA HEALTH CARE LTD,17/08/2016,"1,620.00",73373-RESIDENTIAL & NURSING CARE PLACEMENTS,OP COMMISSIONING,Third Party Payments,Revenue
Walsall Council,http://opendatacommunities.org/id/metropolitan-district-council/walsall,WC71-162,31/08/2016,Social Care & Inclusion,ALPHA HEALTH CARE LTD,17/08/2016,"1,620.00",73373-RESIDENTIAL & NURSING CARE PLACEMENTS,OP COMMISSIONING,Third Party Payments,Revenue
Walsall Council,http://opendatacommunities.org/id/metropolitan-district-council/walsall,WC71-163,31/08/2016,Social Care & Inclusion,ALPHA HEALTH CARE LTD,17/08/2016,"1,620.00",73373-RESIDENTIAL & NURSING CARE PLACEMENTS,OP COMMISSIONING,Third Party Payments,Revenue
Walsall Council,http://opendatacommunities.org/id/metropolitan-district-council/walsall,WC71-164,31/08/2016,Social Care & Inclusion,ALPHA HEALTH CARE LTD,17/08/2016,"1,620.00",73373-RESIDENTIAL & NURSING CARE PLACEMENTS,OP COMMISSIONING,Third Party Payments,Revenue
Walsall Council,http://opendatacommunities.org/id/metropolitan-district-council/walsall,WC71-165,31/08/2016,Social Care & Inclusion,ALPHA HEALTH CARE LTD,17/08/2016,"1,620.00",73373-RESIDENTIAL & NURSING CARE PLACEMENTS,OP COMMISSIONING,Third Party Payments,Revenue
Walsall Council,http://opendatacommunities.org/id/metropolitan-district-council/walsall,WC71-166,31/08/2016,Social Care & Inclusion,ALPHA HEALTH CARE LTD,02/08/2016,"1,649.80",73373-RESIDENTIAL & NURSING CARE PLACEMENTS,OP COMMISSIONING,Third Party Payments,Revenue
Walsall Council,http://opendatacommunities.org/id/metropolitan-district-council/walsall,WC71-167,31/08/2016,Social Care & Inclusion,ALPHA HEALTH CARE LTD,17/08/2016,"1,649.80",73373-RESIDENTIAL & NURSING CARE PLACEMENTS,OP COMMISSIONING,Third Party Payments,Revenue
Walsall Council,http://opendatacommunities.org/id/metropolitan-district-council/walsall,WC71-168,31/08/2016,Social Care & Inclusion,ALPHA HEALTH CARE LTD,17/08/2016,"1,649.80",73373-RESIDENTIAL & NURSING CARE PLACEMENTS,OP COMMISSIONING,Third Party Payments,Revenue
Walsall Council,http://opendatacommunities.org/id/metropolitan-district-council/walsall,WC71-169,31/08/2016,Social Care & Inclusion,ALPHA HEALTH CARE LTD,17/08/2016,"1,649.80",73373-RESIDENTIAL & NURSING CARE PLACEMENTS,OP COMMISSIONING,Third Party Payments,Revenue
Walsall Council,http://opendatacommunities.org/id/metropolitan-district-council/walsall,WC71-170,31/08/2016,Social Care & Inclusion,ALPHA HEALTH CARE LTD,17/08/2016,"1,649.80",73373-RESIDENTIAL & NURSING CARE PLACEMENTS,OP COMMISSIONING,Third Party Payments,Revenue
Walsall Council,http://opendatacommunities.org/id/metropolitan-district-council/walsall,WC71-171,31/08/2016,Social Care & Inclusion,ALPHA HEALTH CARE LTD,17/08/2016,"1,649.80",73373-RESIDENTIAL & NURSING CARE PLACEMENTS,OP COMMISSIONING,Third Party Payments,Revenue
Walsall Council,http://opendatacommunities.org/id/metropolitan-district-council/walsall,WC71-172,31/08/2016,Social Care & Inclusion,ALPHA HEALTH CARE LTD,17/08/2016,"1,649.80",73373-RESIDENTIAL & NURSING CARE PLACEMENTS,OP COMMISSIONING,Third Party Payments,Revenue
Walsall Council,http://opendatacommunities.org/id/metropolitan-district-council/walsall,WC71-173,31/08/2016,Social Care & Inclusion,ALPHA HEALTH CARE LTD,17/08/2016,"1,649.80",73373-RESIDENTIAL & NURSING CARE PLACEMENTS,OP COMMISSIONING,Third Party Payments,Revenue
Walsall Council,http://opendatacommunities.org/id/metropolitan-district-council/walsall,WC71-174,31/08/2016,Social Care & Inclusion,ALPHA HEALTH CARE LTD,17/08/2016,"1,649.80",73373-RESIDENTIAL & NURSING CARE PLACEMENTS,OP COMMISSIONING,Third Party Payments,Revenue
Walsall Council,http://opendatacommunities.org/id/metropolitan-district-council/walsall,WC71-175,31/08/2016,Social Care & Inclusion,ALPHA HEALTH CARE LTD,17/08/2016,"1,649.80",73373-RESIDENTIAL & NURSING CARE PLACEMENTS,MH COMMISSIONING,Third Party Payments,Revenue
Walsall Council,http://opendatacommunities.org/id/metropolitan-district-council/walsall,WC71-176,31/08/2016,Social Care & Inclusion,ALPHA HEALTH CARE LTD,17/08/2016,"1,649.80",73373-RESIDENTIAL & NURSING CARE PLACEMENTS,OP COMMISSIONING,Third Party Payments,Revenue
Walsall Council,http://opendatacommunities.org/id/metropolitan-district-council/walsall,WC71-177,31/08/2016,Social Care & Inclusion,ALPHA HEALTH CARE LTD,17/08/2016,"1,649.80",73373-RESIDENTIAL & NURSING CARE PLACEMENTS,OP COMMISSIONING,Third Party Payments,Revenue
Walsall Council,http://opendatacommunities.org/id/metropolitan-district-council/walsall,WC71-178,31/08/2016,Social Care & Inclusion,ALPHA HEALTH CARE LTD,17/08/2016,"1,649.80",73373-RESIDENTIAL & NURSING CARE PLACEMENTS,OP COMMISSIONING,Third Party Payments,Revenue
Walsall Council,http://opendatacommunities.org/id/metropolitan-district-council/walsall,WC71-179,31/08/2016,Social Care & Inclusion,ALPHA HEALTH CARE LTD,17/08/2016,"1,649.80",73373-RESIDENTIAL & NURSING CARE PLACEMENTS,OP COMMISSIONING,Third Party Payments,Revenue
Walsall Council,http://opendatacommunities.org/id/metropolitan-district-council/walsall,WC71-180,31/08/2016,Social Care & Inclusion,ALPHA HEALTH CARE LTD,17/08/2016,"1,649.80",73373-RESIDENTIAL & NURSING CARE PLACEMENTS,OP COMMISSIONING,Third Party Payments,Revenue
Walsall Council,http://opendatacommunities.org/id/metropolitan-district-council/walsall,WC71-181,31/08/2016,Social Care & Inclusion,ALPHA HEALTH CARE LTD,17/08/2016,"1,649.80",73373-RESIDENTIAL & NURSING CARE PLACEMENTS,MH COMMISSIONING,Third Party Payments,Revenue
Walsall Council,http://opendatacommunities.org/id/metropolitan-district-council/walsall,WC71-182,31/08/2016,Social Care & Inclusion,ALPHA HEALTH CARE LTD,26/08/2016,"1,649.80",73373-RESIDENTIAL & NURSING CARE PLACEMENTS,OP COMMISSIONING,Third Party Payments,Revenue
Walsall Council,http://opendatacommunities.org/id/metropolitan-district-council/walsall,WC71-183,31/08/2016,Social Care & Inclusion,ALPHA HEALTH CARE LTD,26/08/2016,"1,649.80",73373-RESIDENTIAL & NURSING CARE PLACEMENTS,OP COMMISSIONING,Third Party Payments,Revenue
Walsall Council,http://opendatacommunities.org/id/metropolitan-district-council/walsall,WC71-184,31/08/2016,Social Care & Inclusion,ALPHA HEALTH CARE LTD,26/08/2016,"1,649.80",73373-RESIDENTIAL & NURSING CARE PLACEMENTS,OP COMMISSIONING,Third Party Payments,Revenue
Walsall Council,http://opendatacommunities.org/id/metropolitan-district-council/walsall,WC71-185,31/08/2016,Social Care & Inclusion,ALPHA HEALTH CARE LTD,17/08/2016,"1,753.04",73373-RESIDENTIAL & NURSING CARE PLACEMENTS,OP COMMISSIONING,Third Party Payments,Revenue
Walsall Council,http://opendatacommunities.org/id/metropolitan-district-council/walsall,WC71-186,31/08/2016,Social Care & Inclusion,ALPHA HEALTH CARE LTD,02/08/2016,"1,761.04",73373-RESIDENTIAL & NURSING CARE PLACEMENTS,OP COMMISSIONING,Third Party Payments,Revenue
Walsall Council,http://opendatacommunities.org/id/metropolitan-district-council/walsall,WC71-187,31/08/2016,Social Care & Inclusion,ALPHA HEALTH CARE LTD,02/08/2016,"1,761.04",73373-RESIDENTIAL & NURSING CARE PLACEMENTS,OP COMMISSIONING,Third Party Payments,Revenue
Walsall Council,http://opendatacommunities.org/id/metropolitan-district-council/walsall,WC71-188,31/08/2016,Social Care & Inclusion,ALPHA HEALTH CARE LTD,02/08/2016,"1,761.04",73373-RESIDENTIAL & NURSING CARE PLACEMENTS,OP COMMISSIONING,Third Party Payments,Revenue
Walsall Council,http://opendatacommunities.org/id/metropolitan-district-council/walsall,WC71-189,31/08/2016,Social Care & Inclusion,ALPHA HEALTH CARE LTD,02/08/2016,"1,761.04",73373-RESIDENTIAL & NURSING CARE PLACEMENTS,OP COMMISSIONING,Third Party Payments,Revenue
Walsall Council,http://opendatacommunities.org/id/metropolitan-district-council/walsall,WC71-190,31/08/2016,Social Care & Inclusion,ALPHA HEALTH CARE LTD,17/08/2016,"1,800.00",73373-RESIDENTIAL & NURSING CARE PLACEMENTS,OP COMMISSIONING,Third Party Payments,Revenue
Walsall Council,http://opendatacommunities.org/id/metropolitan-district-council/walsall,WC71-191,31/08/2016,Social Care & Inclusion,ALPHA HEALTH CARE LTD,17/08/2016,"1,800.00",73373-RESIDENTIAL & NURSING CARE PLACEMENTS,OP COMMISSIONING,Third Party Payments,Revenue
Walsall Council,http://opendatacommunities.org/id/metropolitan-district-council/walsall,WC71-192,31/08/2016,Social Care & Inclusion,ALPHA HEALTH CARE LTD,17/08/2016,"1,800.00",73373-RESIDENTIAL & NURSING CARE PLACEMENTS,OP COMMISSIONING,Third Party Payments,Revenue
Walsall Council,http://opendatacommunities.org/id/metropolitan-district-council/walsall,WC71-193,31/08/2016,Social Care & Inclusion,ALPHA HEALTH CARE LTD,26/08/2016,"1,800.00",73373-RESIDENTIAL & NURSING CARE PLACEMENTS,OP COMMISSIONING,Third Party Payments,Revenue
Walsall Council,http://opendatacommunities.org/id/metropolitan-district-council/walsall,WC71-194,31/08/2016,Social Care & Inclusion,ALPHA HEALTH CARE LTD,02/08/2016,"2,334.32",73373-RESIDENTIAL & NURSING CARE PLACEMENTS,MH COMMISSIONING,Third Party Payments,Revenue
Walsall Council,http://opendatacommunities.org/id/metropolitan-district-council/walsall,WC71-195,31/08/2016,Social Care & Inclusion,ALPHA HEALTH CARE LTD,02/08/2016,"2,334.32",73373-RESIDENTIAL & NURSING CARE PLACEMENTS,MH COMMISSIONING,Third Party Payments,Revenue
Walsall Council,http://opendatacommunities.org/id/metropolitan-district-council/walsall,WC71-196,31/08/2016,Social Care & Inclusion,ALPHA HEALTH CARE LTD,02/08/2016,"2,334.32",73373-RESIDENTIAL & NURSING CARE PLACEMENTS,MH COMMISSIONING,Third Party Payments,Revenue
Walsall Council,http://opendatacommunities.org/id/metropolitan-district-council/walsall,WC71-197,31/08/2016,Social Care & Inclusion,ALPHA HEALTH CARE LTD,02/08/2016,"2,334.32",73373-RESIDENTIAL & NURSING CARE PLACEMENTS,MH COMMISSIONING,Third Party Payments,Revenue
Walsall Council,http://opendatacommunities.org/id/metropolitan-district-council/walsall,WC71-198,31/08/2016,Social Care & Inclusion,ALPHA HEALTH CARE LTD,02/08/2016,"2,723.16",73373-RESIDENTIAL & NURSING CARE PLACEMENTS,MH COMMISSIONING,Third Party Payments,Revenue
Walsall Council,http://opendatacommunities.org/id/metropolitan-district-council/walsall,WC71-199,31/08/2016,Social Care & Inclusion,ALPHA HEALTH CARE LTD,02/08/2016,"2,723.16",73373-RESIDENTIAL & NURSING CARE PLACEMENTS,MH COMMISSIONING,Third Party Payments,Revenue
Walsall Council,http://opendatacommunities.org/id/metropolitan-district-council/walsall,WC71-200,31/08/2016,Social Care & Inclusion,ALPHA HEALTH CARE LTD,02/08/2016,"2,723.16",73373-RESIDENTIAL & NURSING CARE PLACEMENTS,MH COMMISSIONING,Third Party Payments,Revenue
Walsall Council,http://opendatacommunities.org/id/metropolitan-district-council/walsall,WC71-201,31/08/2016,Social Care & Inclusion,ALPHA HEALTH CARE LTD,02/08/2016,"2,723.16",73373-RESIDENTIAL & NURSING CARE PLACEMENTS,MH COMMISSIONING,Third Party Payments,Revenue
Walsall Council,http://opendatacommunities.org/id/metropolitan-district-council/walsall,WC71-202,31/08/2016,Social Care & Inclusion,ALPHA HEALTH CARE LTD,26/08/2016,"3,600.00",73373-RESIDENTIAL & NURSING CARE PLACEMENTS,OP COMMISSIONING,Third Party Payments,Revenue
Walsall Council,http://opendatacommunities.org/id/metropolitan-district-council/walsall,WC71-203,31/08/2016,Childrens,ALUMWELLIES NURSERY,26/08/2016,"4,031.73",66505-OTHER-GRANTS TO OTHER ORGS,EARLY YEARS - 3 YR OLDS,Third Party Payments,Revenue
Walsall Council,http://opendatacommunities.org/id/metropolitan-district-council/walsall,WC71-204,31/08/2016,Childrens,REDACTED,01/08/2016,"1,245.32",74006-HOLIDAY/CHRISTMAS ALLOWANCE-FOSTER CARERS-OTH AGENCY PROVISION,INTERNAL FOSTER CARE PROVISION,Third Party Payments,Revenue
Walsall Council,http://opendatacommunities.org/id/metropolitan-district-council/walsall,WC71-205,31/08/2016,Childrens,REDACTED,26/08/2016,"1,245.32",74006-HOLIDAY/CHRISTMAS ALLOWANCE-FOSTER CARERS-OTH AGENCY PROVISION,INTERNAL FOSTER CARE PROVISION,Third Party Payments,Revenue
Walsall Council,http://opendatacommunities.org/id/metropolitan-district-council/walsall,WC71-206,31/08/2016,Childrens,REDACTED,15/08/2016,540.20,62515-MISCELLANEOUS SUPPLIES,INTERNAL FOSTER CARE PROVISION,Supplies & Services,Revenue
Walsall Council,http://opendatacommunities.org/id/metropolitan-district-council/walsall,WC71-207,31/08/2016,Childrens,REDACTED,15/08/2016,650.92,74006-HOLIDAY/CHRISTMAS ALLOWANCE-FOSTER CARERS-OTH AGENCY PROVISION,INTERNAL FOSTER CARE PROVISION,Third Party Payments,Revenue
Walsall Council,http://opendatacommunities.org/id/metropolitan-district-council/walsall,WC71-208,31/08/2016,Childrens,REDACTED,04/08/2016,312.92,76422-DIRECT PAYMENTS TO SOCIAL SERVICES CLIENTS,FAMILY SUPPORT - DIRECT PAYMENTS,Transfer Payments,Revenue
Walsall Council,http://opendatacommunities.org/id/metropolitan-district-council/walsall,WC71-209,31/08/2016,Change and Governance,AMBUR RADIO,10/08/2016,"3,750.00",66500-GRANTS TO OTHER ORGS,COHESION,Third Party Payments,Revenue
Walsall Council,http://opendatacommunities.org/id/metropolitan-district-council/walsall,WC71-210,31/08/2016,Economy & Environment,AMEY LG LIMITED,19/08/2016,368.99,73002-SECURITY-PRIV CONTRACTOR FEES,TRAFFIC CONTROL,Third Party Payments,Revenue
Walsall Council,http://opendatacommunities.org/id/metropolitan-district-council/walsall,WC71-211,31/08/2016,Economy & Environment,AMEY LG LIMITED,08/08/2016,516.52,40018-OTHER-OP MTCE,WALSALL MARKET,Premises,Revenue
Walsall Council,http://opendatacommunities.org/id/metropolitan-district-council/walsall,WC71-212,31/08/2016,Economy & Environment,AMEY LG LIMITED,01/08/2016,"8,409.90",01006-SITE WORKS MAIN CONTRACTORS,CFR 1037 ACTIVE LIVING OAK PARK (PRUDENTIAL),Capital,Capital
Walsall Council,http://opendatacommunities.org/id/metropolitan-district-council/walsall,WC71-213,31/08/2016,Economy & Environment,AMEY LG LIMITED,03/08/2016,"10,800.99",73025-PROFESSIONAL SERVICES-PRIV CONTRACTOR & OTHER AGENCIES,TRAFFIC MANAGEMENT,Third Party Payments,Revenue
Walsall Council,http://opendatacommunities.org/id/metropolitan-district-council/walsall,WC71-214,31/08/2016,Childrens,AMG NURSING CARE SERVICES,16/08/2016,"1,110.72",63000-PROFESSIONAL FEES AND SERVICES,DIRECTLY COMMISSIONED NURSING SERVICES,Supplies & Services,Revenue
Walsall Council,http://opendatacommunities.org/id/metropolitan-district-council/walsall,WC71-215,31/08/2016,Childrens,AMG NURSING CARE SERVICES,26/08/2016,"1,827.00",63000-PROFESSIONAL FEES AND SERVICES,DIRECTLY COMMISSIONED NURSING SERVICES,Supplies & Services,Revenue
Walsall Council,http://opendatacommunities.org/id/metropolitan-district-council/walsall,WC71-216,31/08/2016,Childrens,AMG NURSING CARE SERVICES,26/08/2016,"1,827.00",63000-PROFESSIONAL FEES AND SERVICES,DIRECTLY COMMISSIONED NURSING SERVICES,Supplies & Services,Revenue
Walsall Council,http://opendatacommunities.org/id/metropolitan-district-council/walsall,WC71-217,31/08/2016,Social Care & Inclusion,REDACTED,04/08/2016,"1,133.44",76422-DIRECT PAYMENTS TO SOCIAL SERVICES CLIENTS,OP COMMISSIONING,Transfer Payments,Revenue
Walsall Council,http://opendatacommunities.org/id/metropolitan-district-council/walsall,WC71-218,31/08/2016,Childrens,REDACTED,01/08/2016,425.08,74006-HOLIDAY/CHRISTMAS ALLOWANCE-FOSTER CARERS-OTH AGENCY PROVISION,INTERNAL FOSTER CARE PROVISION,Third Party Payments,Revenue
Walsall Council,http://opendatacommunities.org/id/metropolitan-district-council/walsall,WC71-219,31/08/2016,Childrens,REDACTED,26/08/2016,425.08,74006-HOLIDAY/CHRISTMAS ALLOWANCE-FOSTER CARERS-OTH AGENCY PROVISION,INTERNAL FOSTER CARE PROVISION,Third Party Payments,Revenue
Walsall Council,http://opendatacommunities.org/id/metropolitan-district-council/walsall,WC71-220,31/08/2016,Social Care & Inclusion,REDACTED,04/08/2016,544.00,76422-DIRECT PAYMENTS TO SOCIAL SERVICES CLIENTS,OP COMMISSIONING,Transfer Payments,Revenue
Walsall Council,http://opendatacommunities.org/id/metropolitan-district-council/walsall,WC71-221,31/08/2016,Social Care & Inclusion,REDACTED,04/08/2016,714.00,76422-DIRECT PAYMENTS TO SOCIAL SERVICES CLIENTS,OP COMMISSIONING,Transfer Payments,Revenue
Walsall Council,http://opendatacommunities.org/id/metropolitan-district-council/walsall,WC71-222,31/08/2016,Social Care & Inclusion,ANCHOR,26/08/2016,707.14,73373-RESIDENTIAL & NURSING CARE PLACEMENTS,OP COMMISSIONING,Third Party Payments,Revenue
Walsall Council,http://opendatacommunities.org/id/metropolitan-district-council/walsall,WC71-223,31/08/2016,Social Care & Inclusion,ANCHOR,26/08/2016,"1,092.86",73373-RESIDENTIAL & NURSING CARE PLACEMENTS,OP COMMISSIONING,Third Party Payments,Revenue
Walsall Council,http://opendatacommunities.org/id/metropolitan-district-council/walsall,WC71-224,31/08/2016,Social Care & Inclusion,ANCHOR,02/08/2016,"1,493.24",73373-RESIDENTIAL & NURSING CARE PLACEMENTS,OP COMMISSIONING,Third Party Payments,Revenue
Walsall Council,http://opendatacommunities.org/id/metropolitan-district-council/walsall,WC71-225,31/08/2016,Social Care & Inclusion,ANCHOR,02/08/2016,"1,493.24",73373-RESIDENTIAL & NURSING CARE PLACEMENTS,OP COMMISSIONING,Third Party Payments,Revenue
Walsall Council,http://opendatacommunities.org/id/metropolitan-district-council/walsall,WC71-226,31/08/2016,Social Care & Inclusion,ANCHOR,26/08/2016,"1,493.24",73373-RESIDENTIAL & NURSING CARE PLACEMENTS,OP COMMISSIONING,Third Party Payments,Revenue
Walsall Council,http://opendatacommunities.org/id/metropolitan-district-council/walsall,WC71-227,31/08/2016,Social Care & Inclusion,ANCHOR,26/08/2016,"1,493.24",73373-RESIDENTIAL & NURSING CARE PLACEMENTS,OP COMMISSIONING,Third Party Payments,Revenue
Walsall Council,http://opendatacommunities.org/id/metropolitan-district-council/walsall,WC71-228,31/08/2016,Social Care & Inclusion,ANCHOR,02/08/2016,"1,568.60",73373-RESIDENTIAL & NURSING CARE PLACEMENTS,OP COMMISSIONING,Third Party Payments,Revenue
Walsall Council,http://opendatacommunities.org/id/metropolitan-district-council/walsall,WC71-229,31/08/2016,Social Care & Inclusion,ANCHOR,26/08/2016,"1,568.60",73373-RESIDENTIAL & NURSING CARE PLACEMENTS,OP COMMISSIONING,Third Party Payments,Revenue
Walsall Council,http://opendatacommunities.org/id/metropolitan-district-council/walsall,WC71-230,31/08/2016,Social Care & Inclusion,ANCHOR,02/08/2016,"1,568.64",73373-RESIDENTIAL & NURSING CARE PLACEMENTS,OP COMMISSIONING,Third Party Payments,Revenue
Walsall Council,http://opendatacommunities.org/id/metropolitan-district-council/walsall,WC71-231,31/08/2016,Social Care & Inclusion,ANCHOR,02/08/2016,"1,568.64",73373-RESIDENTIAL & NURSING CARE PLACEMENTS,OP COMMISSIONING,Third Party Payments,Revenue
Walsall Council,http://opendatacommunities.org/id/metropolitan-district-council/walsall,WC71-232,31/08/2016,Social Care & Inclusion,ANCHOR,02/08/2016,"1,568.64",73373-RESIDENTIAL & NURSING CARE PLACEMENTS,OP COMMISSIONING,Third Party Payments,Revenue
Walsall Council,http://opendatacommunities.org/id/metropolitan-district-council/walsall,WC71-233,31/08/2016,Social Care & Inclusion,ANCHOR,02/08/2016,"1,568.64",73373-RESIDENTIAL & NURSING CARE PLACEMENTS,OP COMMISSIONING,Third Party Payments,Revenue
Walsall Council,http://opendatacommunities.org/id/metropolitan-district-council/walsall,WC71-234,31/08/2016,Social Care & Inclusion,ANCHOR,02/08/2016,"1,568.64",73373-RESIDENTIAL & NURSING CARE PLACEMENTS,OP COMMISSIONING,Third Party Payments,Revenue
Walsall Council,http://opendatacommunities.org/id/metropolitan-district-council/walsall,WC71-235,31/08/2016,Social Care & Inclusion,ANCHOR,02/08/2016,"1,568.64",73373-RESIDENTIAL & NURSING CARE PLACEMENTS,OP COMMISSIONING,Third Party Payments,Revenue
Walsall Council,http://opendatacommunities.org/id/metropolitan-district-council/walsall,WC71-236,31/08/2016,Social Care & Inclusion,ANCHOR,02/08/2016,"1,568.64",73373-RESIDENTIAL & NURSING CARE PLACEMENTS,OP COMMISSIONING,Third Party Payments,Revenue
Walsall Council,http://opendatacommunities.org/id/metropolitan-district-council/walsall,WC71-237,31/08/2016,Social Care & Inclusion,ANCHOR,02/08/2016,"1,568.64",73373-RESIDENTIAL & NURSING CARE PLACEMENTS,OP COMMISSIONING,Third Party Payments,Revenue
Walsall Council,http://opendatacommunities.org/id/metropolitan-district-council/walsall,WC71-238,31/08/2016,Social Care & Inclusion,ANCHOR,02/08/2016,"1,568.64",73373-RESIDENTIAL & NURSING CARE PLACEMENTS,OP COMMISSIONING,Third Party Payments,Revenue
Walsall Council,http://opendatacommunities.org/id/metropolitan-district-council/walsall,WC71-239,31/08/2016,Social Care & Inclusion,ANCHOR,02/08/2016,"1,568.64",73373-RESIDENTIAL & NURSING CARE PLACEMENTS,OP COMMISSIONING,Third Party Payments,Revenue
Walsall Council,http://opendatacommunities.org/id/metropolitan-district-council/walsall,WC71-240,31/08/2016,Social Care & Inclusion,ANCHOR,02/08/2016,"1,568.64",73373-RESIDENTIAL & NURSING CARE PLACEMENTS,OP COMMISSIONING,Third Party Payments,Revenue
Walsall Council,http://opendatacommunities.org/id/metropolitan-district-council/walsall,WC71-241,31/08/2016,Social Care & Inclusion,ANCHOR,02/08/2016,"1,568.64",73373-RESIDENTIAL & NURSING CARE PLACEMENTS,OP COMMISSIONING,Third Party Payments,Revenue
Walsall Council,http://opendatacommunities.org/id/metropolitan-district-council/walsall,WC71-242,31/08/2016,Social Care & Inclusion,ANCHOR,02/08/2016,"1,568.64",73373-RESIDENTIAL & NURSING CARE PLACEMENTS,OP COMMISSIONING,Third Party Payments,Revenue
Walsall Council,http://opendatacommunities.org/id/metropolitan-district-council/walsall,WC71-243,31/08/2016,Social Care & Inclusion,ANCHOR,10/08/2016,"1,568.64",73373-RESIDENTIAL & NURSING CARE PLACEMENTS,OP COMMISSIONING,Third Party Payments,Revenue
Walsall Council,http://opendatacommunities.org/id/metropolitan-district-council/walsall,WC71-244,31/08/2016,Social Care & Inclusion,ANCHOR,10/08/2016,"1,568.64",73373-RESIDENTIAL & NURSING CARE PLACEMENTS,OP COMMISSIONING,Third Party Payments,Revenue
Walsall Council,http://opendatacommunities.org/id/metropolitan-district-council/walsall,WC71-245,31/08/2016,Social Care & Inclusion,ANCHOR,10/08/2016,"1,568.64",73373-RESIDENTIAL & NURSING CARE PLACEMENTS,OP COMMISSIONING,Third Party Payments,Revenue
Walsall Council,http://opendatacommunities.org/id/metropolitan-district-council/walsall,WC71-246,31/08/2016,Social Care & Inclusion,ANCHOR,10/08/2016,"1,568.64",73373-RESIDENTIAL & NURSING CARE PLACEMENTS,OP COMMISSIONING,Third Party Payments,Revenue
Walsall Council,http://opendatacommunities.org/id/metropolitan-district-council/walsall,WC71-247,31/08/2016,Social Care & Inclusion,ANCHOR,23/08/2016,"1,568.64",73373-RESIDENTIAL & NURSING CARE PLACEMENTS,OP COMMISSIONING,Third Party Payments,Revenue
Walsall Council,http://opendatacommunities.org/id/metropolitan-district-council/walsall,WC71-248,31/08/2016,Social Care & Inclusion,ANCHOR,23/08/2016,"1,568.64",73373-RESIDENTIAL & NURSING CARE PLACEMENTS,OP COMMISSIONING,Third Party Payments,Revenue
Walsall Council,http://opendatacommunities.org/id/metropolitan-district-council/walsall,WC71-249,31/08/2016,Social Care & Inclusion,ANCHOR,26/08/2016,"1,568.64",73373-RESIDENTIAL & NURSING CARE PLACEMENTS,OP COMMISSIONING,Third Party Payments,Revenue
Walsall Council,http://opendatacommunities.org/id/metropolitan-district-council/walsall,WC71-250,31/08/2016,Social Care & Inclusion,ANCHOR,26/08/2016,"1,568.64",73373-RESIDENTIAL & NURSING CARE PLACEMENTS,OP COMMISSIONING,Third Party Payments,Revenue
Walsall Council,http://opendatacommunities.org/id/metropolitan-district-council/walsall,WC71-251,31/08/2016,Social Care & Inclusion,ANCHOR,26/08/2016,"1,568.64",73373-RESIDENTIAL & NURSING CARE PLACEMENTS,OP COMMISSIONING,Third Party Payments,Revenue
Walsall Council,http://opendatacommunities.org/id/metropolitan-district-council/walsall,WC71-252,31/08/2016,Social Care & Inclusion,ANCHOR,26/08/2016,"1,568.64",73373-RESIDENTIAL & NURSING CARE PLACEMENTS,OP COMMISSIONING,Third Party Payments,Revenue
Walsall Council,http://opendatacommunities.org/id/metropolitan-district-council/walsall,WC71-253,31/08/2016,Social Care & Inclusion,ANCHOR,26/08/2016,"1,568.64",73373-RESIDENTIAL & NURSING CARE PLACEMENTS,OP COMMISSIONING,Third Party Payments,Revenue
Walsall Council,http://opendatacommunities.org/id/metropolitan-district-council/walsall,WC71-254,31/08/2016,Social Care & Inclusion,ANCHOR,26/08/2016,"1,568.64",73373-RESIDENTIAL & NURSING CARE PLACEMENTS,OP COMMISSIONING,Third Party Payments,Revenue
Walsall Council,http://opendatacommunities.org/id/metropolitan-district-council/walsall,WC71-255,31/08/2016,Social Care & Inclusion,ANCHOR,26/08/2016,"1,568.64",73373-RESIDENTIAL & NURSING CARE PLACEMENTS,OP COMMISSIONING,Third Party Payments,Revenue
Walsall Council,http://opendatacommunities.org/id/metropolitan-district-council/walsall,WC71-256,31/08/2016,Social Care & Inclusion,ANCHOR,26/08/2016,"1,568.64",73373-RESIDENTIAL & NURSING CARE PLACEMENTS,OP COMMISSIONING,Third Party Payments,Revenue
Walsall Council,http://opendatacommunities.org/id/metropolitan-district-council/walsall,WC71-257,31/08/2016,Social Care & Inclusion,ANCHOR,26/08/2016,"1,568.64",73373-RESIDENTIAL & NURSING CARE PLACEMENTS,OP COMMISSIONING,Third Party Payments,Revenue
Walsall Council,http://opendatacommunities.org/id/metropolitan-district-council/walsall,WC71-258,31/08/2016,Social Care & Inclusion,ANCHOR,26/08/2016,"1,568.64",73373-RESIDENTIAL & NURSING CARE PLACEMENTS,OP COMMISSIONING,Third Party Payments,Revenue
Walsall Council,http://opendatacommunities.org/id/metropolitan-district-council/walsall,WC71-259,31/08/2016,Social Care & Inclusion,ANCHOR,26/08/2016,"1,568.64",73373-RESIDENTIAL & NURSING CARE PLACEMENTS,OP COMMISSIONING,Third Party Payments,Revenue
Walsall Council,http://opendatacommunities.org/id/metropolitan-district-council/walsall,WC71-260,31/08/2016,Social Care & Inclusion,ANCHOR,26/08/2016,"1,568.64",73373-RESIDENTIAL & NURSING CARE PLACEMENTS,OP COMMISSIONING,Third Party Payments,Revenue
Walsall Council,http://opendatacommunities.org/id/metropolitan-district-council/walsall,WC71-261,31/08/2016,Social Care & Inclusion,ANCHOR,26/08/2016,"1,568.64",73373-RESIDENTIAL & NURSING CARE PLACEMENTS,OP COMMISSIONING,Third Party Payments,Revenue
Walsall Council,http://opendatacommunities.org/id/metropolitan-district-council/walsall,WC71-262,31/08/2016,Social Care & Inclusion,ANCHOR,02/08/2016,"1,568.68",73373-RESIDENTIAL & NURSING CARE PLACEMENTS,OP COMMISSIONING,Third Party Payments,Revenue
Walsall Council,http://opendatacommunities.org/id/metropolitan-district-council/walsall,WC71-263,31/08/2016,Social Care & Inclusion,ANCHOR,26/08/2016,"1,568.68",73373-RESIDENTIAL & NURSING CARE PLACEMENTS,OP COMMISSIONING,Third Party Payments,Revenue
Walsall Council,http://opendatacommunities.org/id/metropolitan-district-council/walsall,WC71-264,31/08/2016,Social Care & Inclusion,ANCHOR,26/08/2016,"1,800.00",73373-RESIDENTIAL & NURSING CARE PLACEMENTS,OP COMMISSIONING,Third Party Payments,Revenue
Walsall Council,http://opendatacommunities.org/id/metropolitan-district-council/walsall,WC71-265,31/08/2016,Social Care & Inclusion,ANCHOR,10/08/2016,"3,021.43",73373-RESIDENTIAL & NURSING CARE PLACEMENTS,OP COMMISSIONING,Third Party Payments,Revenue
Walsall Council,http://opendatacommunities.org/id/metropolitan-district-council/walsall,WC71-266,31/08/2016,Social Care & Inclusion,ANCHOR,26/08/2016,"3,137.28",73373-RESIDENTIAL & NURSING CARE PLACEMENTS,OP COMMISSIONING,Third Party Payments,Revenue
Walsall Council,http://opendatacommunities.org/id/metropolitan-district-council/walsall,WC71-267,31/08/2016,Childrens,REDACTED,15/08/2016,650.92,74006-HOLIDAY/CHRISTMAS ALLOWANCE-FOSTER CARERS-OTH AGENCY PROVISION,INTERNAL FOSTER CARE PROVISION,Third Party Payments,Revenue
Walsall Council,http://opendatacommunities.org/id/metropolitan-district-council/walsall,WC71-268,31/08/2016,Childrens,REDACTED,15/08/2016,906.76,62515-MISCELLANEOUS SUPPLIES,INTERNAL FOSTER CARE PROVISION,Supplies & Services,Revenue
Walsall Council,http://opendatacommunities.org/id/metropolitan-district-council/walsall,WC71-269,31/08/2016,Social Care & Inclusion,REDACTED,04/08/2016,378.00,76422-DIRECT PAYMENTS TO SOCIAL SERVICES CLIENTS,YADS COMMISSIONING,Transfer Payments,Revenue
Walsall Council,http://opendatacommunities.org/id/metropolitan-district-council/walsall,WC71-270,31/08/2016,Social Care & Inclusion,ANGEL COURT RESIDENTIAL CARE HOME,02/08/2016,"4,230.79",73373-RESIDENTIAL & NURSING CARE PLACEMENTS,OP COMMISSIONING,Third Party Payments,Revenue
Walsall Council,http://opendatacommunities.org/id/metropolitan-district-council/walsall,WC71-271,31/08/2016,Childrens,REDACTED,01/08/2016,"2,112.16",74006-HOLIDAY/CHRISTMAS ALLOWANCE-FOSTER CARERS-OTH AGENCY PROVISION,INTERNAL FOSTER CARE PROVISION,Third Party Payments,Revenue
Walsall Council,http://opendatacommunities.org/id/metropolitan-district-council/walsall,WC71-272,31/08/2016,Childrens,REDACTED,26/08/2016,"2,112.16",74006-HOLIDAY/CHRISTMAS ALLOWANCE-FOSTER CARERS-OTH AGENCY PROVISION,INTERNAL FOSTER CARE PROVISION,Third Party Payments,Revenue
Walsall Council,http://opendatacommunities.org/id/metropolitan-district-council/walsall,WC71-273,31/08/2016,Childrens,REDACTED,01/08/2016,269.68,74006-HOLIDAY/CHRISTMAS ALLOWANCE-FOSTER CARERS-OTH AGENCY PROVISION,INTERNAL FOSTER CARE PROVISION,Third Party Payments,Revenue
Walsall Council,http://opendatacommunities.org/id/metropolitan-district-council/walsall,WC71-274,31/08/2016,Childrens,REDACTED,26/08/2016,269.68,74006-HOLIDAY/CHRISTMAS ALLOWANCE-FOSTER CARERS-OTH AGENCY PROVISION,INTERNAL FOSTER CARE PROVISION,Third Party Payments,Revenue
Walsall Council,http://opendatacommunities.org/id/metropolitan-district-council/walsall,WC71-275,31/08/2016,Childrens,ANGLIA DNA SERVICES LIMITED,11/08/2016,650.00,64001-COURSE/CONFERENCE EXPENSES,INITIAL RESPONSE SERVICE,Supplies & Services,Revenue
Walsall Council,http://opendatacommunities.org/id/metropolitan-district-council/walsall,WC71-276,31/08/2016,Change and Governance,ANGLIA STAIRLIFTS LTD,09/08/2016,"4,896.00",01045-PRIVATE GRANTS,CFR 826 DISABLED FACILITIES GRANTS (SOCIAL SERVICES),Capital,Capital
Walsall Council,http://opendatacommunities.org/id/metropolitan-district-council/walsall,WC71-277,31/08/2016,Change and Governance,ANGLIA STAIRLIFTS LTD,09/08/2016,"5,157.50",01045-PRIVATE GRANTS,CFR 826 DISABLED FACILITIES GRANTS (SOCIAL SERVICES),Capital,Capital
Walsall Council,http://opendatacommunities.org/id/metropolitan-district-council/walsall,WC71-278,31/08/2016,Change and Governance,ANGLIA STAIRLIFTS LTD,24/08/2016,"5,235.00",01045-PRIVATE GRANTS,CFR 826 DISABLED FACILITIES GRANTS (SOCIAL SERVICES),Capital,Capital
Walsall Council,http://opendatacommunities.org/id/metropolitan-district-council/walsall,WC71-279,31/08/2016,Social Care & Inclusion,REDACTED,04/08/2016,344.00,76422-DIRECT PAYMENTS TO SOCIAL SERVICES CLIENTS,LD COMMISSIONING,Transfer Payments,Revenue
Walsall Council,http://opendatacommunities.org/id/metropolitan-district-council/walsall,WC71-280,31/08/2016,Childrens,REDACTED,15/08/2016,925.00,62515-MISCELLANEOUS SUPPLIES,INTERNAL FOSTER CARE PROVISION,Supplies & Services,Revenue
Walsall Council,http://opendatacommunities.org/id/metropolitan-district-council/walsall,WC71-281,31/08/2016,Social Care & Inclusion,REDACTED,05/08/2016,271.85,73374-SUPPORTED & OTHER ACCOMMODATION,LD COMMISSIONING,Third Party Payments,Revenue
Walsall Council,http://opendatacommunities.org/id/metropolitan-district-council/walsall,WC71-282,31/08/2016,Social Care & Inclusion,REDACTED,05/08/2016,312.40,73374-SUPPORTED & OTHER ACCOMMODATION,LD COMMISSIONING,Third Party Payments,Revenue
Walsall Council,http://opendatacommunities.org/id/metropolitan-district-council/walsall,WC71-283,31/08/2016,Social Care & Inclusion,REDACTED,05/08/2016,356.44,73374-SUPPORTED & OTHER ACCOMMODATION,LD COMMISSIONING,Third Party Payments,Revenue
Walsall Council,http://opendatacommunities.org/id/metropolitan-district-council/walsall,WC71-284,31/08/2016,Social Care & Inclusion,ANSON COURT RESIDENTIAL HOME,23/08/2016,"-1,157.14",73373-RESIDENTIAL & NURSING CARE PLACEMENTS,OP COMMISSIONING,Third Party Payments,Revenue
Walsall Council,http://opendatacommunities.org/id/metropolitan-district-council/walsall,WC71-285,31/08/2016,Social Care & Inclusion,ANSON COURT RESIDENTIAL HOME,23/08/2016,450.00,73373-RESIDENTIAL & NURSING CARE PLACEMENTS,OP COMMISSIONING,Third Party Payments,Revenue
Walsall Council,http://opendatacommunities.org/id/metropolitan-district-council/walsall,WC71-286,31/08/2016,Social Care & Inclusion,ANSON COURT RESIDENTIAL HOME,02/08/2016,"1,800.00",73373-RESIDENTIAL & NURSING CARE PLACEMENTS,OP COMMISSIONING,Third Party Payments,Revenue
Walsall Council,http://opendatacommunities.org/id/metropolitan-district-council/walsall,WC71-287,31/08/2016,Social Care & Inclusion,ANSON COURT RESIDENTIAL HOME,02/08/2016,"1,800.00",73373-RESIDENTIAL & NURSING CARE PLACEMENTS,OP COMMISSIONING,Third Party Payments,Revenue
Walsall Council,http://opendatacommunities.org/id/metropolitan-district-council/walsall,WC71-288,31/08/2016,Social Care & Inclusion,ANSON COURT RESIDENTIAL HOME,02/08/2016,"1,800.00",73373-RESIDENTIAL & NURSING CARE PLACEMENTS,OP COMMISSIONING,Third Party Payments,Revenue
Walsall Council,http://opendatacommunities.org/id/metropolitan-district-council/walsall,WC71-289,31/08/2016,Social Care & Inclusion,ANSON COURT RESIDENTIAL HOME,02/08/2016,"1,800.00",73373-RESIDENTIAL & NURSING CARE PLACEMENTS,OP COMMISSIONING,Third Party Payments,Revenue
Walsall Council,http://opendatacommunities.org/id/metropolitan-district-council/walsall,WC71-290,31/08/2016,Social Care & Inclusion,ANSON COURT RESIDENTIAL HOME,02/08/2016,"1,800.00",73373-RESIDENTIAL & NURSING CARE PLACEMENTS,OP COMMISSIONING,Third Party Payments,Revenue
Walsall Council,http://opendatacommunities.org/id/metropolitan-district-council/walsall,WC71-291,31/08/2016,Social Care & Inclusion,ANSON COURT RESIDENTIAL HOME,02/08/2016,"1,800.00",73373-RESIDENTIAL & NURSING CARE PLACEMENTS,OP COMMISSIONING,Third Party Payments,Revenue
Walsall Council,http://opendatacommunities.org/id/metropolitan-district-council/walsall,WC71-292,31/08/2016,Social Care & Inclusion,ANSON COURT RESIDENTIAL HOME,02/08/2016,"1,800.00",73373-RESIDENTIAL & NURSING CARE PLACEMENTS,MH COMMISSIONING,Third Party Payments,Revenue
Walsall Council,http://opendatacommunities.org/id/metropolitan-district-council/walsall,WC71-293,31/08/2016,Social Care & Inclusion,ANSON COURT RESIDENTIAL HOME,02/08/2016,"1,800.00",73373-RESIDENTIAL & NURSING CARE PLACEMENTS,OP COMMISSIONING,Third Party Payments,Revenue
Walsall Council,http://opendatacommunities.org/id/metropolitan-district-council/walsall,WC71-294,31/08/2016,Social Care & Inclusion,ANSON COURT RESIDENTIAL HOME,02/08/2016,"1,800.00",73373-RESIDENTIAL & NURSING CARE PLACEMENTS,MH COMMISSIONING,Third Party Payments,Revenue
Walsall Council,http://opendatacommunities.org/id/metropolitan-district-council/walsall,WC71-295,31/08/2016,Social Care & Inclusion,ANSON COURT RESIDENTIAL HOME,02/08/2016,"1,800.00",73373-RESIDENTIAL & NURSING CARE PLACEMENTS,OP COMMISSIONING,Third Party Payments,Revenue
Walsall Council,http://opendatacommunities.org/id/metropolitan-district-council/walsall,WC71-296,31/08/2016,Social Care & Inclusion,ANSON COURT RESIDENTIAL HOME,02/08/2016,"1,800.00",73373-RESIDENTIAL & NURSING CARE PLACEMENTS,MH COMMISSIONING,Third Party Payments,Revenue
Walsall Council,http://opendatacommunities.org/id/metropolitan-district-council/walsall,WC71-297,31/08/2016,Social Care & Inclusion,ANSON COURT RESIDENTIAL HOME,02/08/2016,"1,800.00",73373-RESIDENTIAL & NURSING CARE PLACEMENTS,OP COMMISSIONING,Third Party Payments,Revenue
Walsall Council,http://opendatacommunities.org/id/metropolitan-district-council/walsall,WC71-298,31/08/2016,Social Care & Inclusion,ANSON COURT RESIDENTIAL HOME,02/08/2016,"1,800.00",73373-RESIDENTIAL & NURSING CARE PLACEMENTS,OP COMMISSIONING,Third Party Payments,Revenue
Walsall Council,http://opendatacommunities.org/id/metropolitan-district-council/walsall,WC71-299,31/08/2016,Social Care & Inclusion,ANSON COURT RESIDENTIAL HOME,02/08/2016,"1,800.00",73373-RESIDENTIAL & NURSING CARE PLACEMENTS,MH COMMISSIONING,Third Party Payments,Revenue
Walsall Council,http://opendatacommunities.org/id/metropolitan-district-council/walsall,WC71-300,31/08/2016,Social Care & Inclusion,ANSON COURT RESIDENTIAL HOME,02/08/2016,"1,800.00",73373-RESIDENTIAL & NURSING CARE PLACEMENTS,OP COMMISSIONING,Third Party Payments,Revenue
Walsall Council,http://opendatacommunities.org/id/metropolitan-district-council/walsall,WC71-301,31/08/2016,Social Care & Inclusion,ANSON COURT RESIDENTIAL HOME,02/08/2016,"1,800.00",73373-RESIDENTIAL & NURSING CARE PLACEMENTS,OP COMMISSIONING,Third Party Payments,Revenue
Walsall Council,http://opendatacommunities.org/id/metropolitan-district-council/walsall,WC71-302,31/08/2016,Social Care & Inclusion,ANSON COURT RESIDENTIAL HOME,02/08/2016,"1,800.00",73373-RESIDENTIAL & NURSING CARE PLACEMENTS,OP COMMISSIONING,Third Party Payments,Revenue
Walsall Council,http://opendatacommunities.org/id/metropolitan-district-council/walsall,WC71-303,31/08/2016,Social Care & Inclusion,ANSON COURT RESIDENTIAL HOME,26/08/2016,"1,800.00",73373-RESIDENTIAL & NURSING CARE PLACEMENTS,OP COMMISSIONING,Third Party Payments,Revenue
Walsall Council,http://opendatacommunities.org/id/metropolitan-district-council/walsall,WC71-304,31/08/2016,Social Care & Inclusion,ANSON COURT RESIDENTIAL HOME,26/08/2016,"1,800.00",73373-RESIDENTIAL & NURSING CARE PLACEMENTS,OP COMMISSIONING,Third Party Payments,Revenue
Walsall Council,http://opendatacommunities.org/id/metropolitan-district-council/walsall,WC71-305,31/08/2016,Social Care & Inclusion,ANSON COURT RESIDENTIAL HOME,26/08/2016,"1,800.00",73373-RESIDENTIAL & NURSING CARE PLACEMENTS,OP COMMISSIONING,Third Party Payments,Revenue
Walsall Council,http://opendatacommunities.org/id/metropolitan-district-council/walsall,WC71-306,31/08/2016,Social Care & Inclusion,ANSON COURT RESIDENTIAL HOME,26/08/2016,"1,800.00",73373-RESIDENTIAL & NURSING CARE PLACEMENTS,OP COMMISSIONING,Third Party Payments,Revenue
Walsall Council,http://opendatacommunities.org/id/metropolitan-district-council/walsall,WC71-307,31/08/2016,Social Care & Inclusion,ANSON COURT RESIDENTIAL HOME,26/08/2016,"1,800.00",73373-RESIDENTIAL & NURSING CARE PLACEMENTS,OP COMMISSIONING,Third Party Payments,Revenue
Walsall Council,http://opendatacommunities.org/id/metropolitan-district-council/walsall,WC71-308,31/08/2016,Social Care & Inclusion,ANSON COURT RESIDENTIAL HOME,26/08/2016,"1,800.00",73373-RESIDENTIAL & NURSING CARE PLACEMENTS,MH COMMISSIONING,Third Party Payments,Revenue
Walsall Council,http://opendatacommunities.org/id/metropolitan-district-council/walsall,WC71-309,31/08/2016,Social Care & Inclusion,ANSON COURT RESIDENTIAL HOME,26/08/2016,"1,800.00",73373-RESIDENTIAL & NURSING CARE PLACEMENTS,OP COMMISSIONING,Third Party Payments,Revenue
Walsall Council,http://opendatacommunities.org/id/metropolitan-district-council/walsall,WC71-310,31/08/2016,Social Care & Inclusion,ANSON COURT RESIDENTIAL HOME,26/08/2016,"1,800.00",73373-RESIDENTIAL & NURSING CARE PLACEMENTS,MH COMMISSIONING,Third Party Payments,Revenue
Walsall Council,http://opendatacommunities.org/id/metropolitan-district-council/walsall,WC71-311,31/08/2016,Social Care & Inclusion,ANSON COURT RESIDENTIAL HOME,26/08/2016,"1,800.00",73373-RESIDENTIAL & NURSING CARE PLACEMENTS,OP COMMISSIONING,Third Party Payments,Revenue
Walsall Council,http://opendatacommunities.org/id/metropolitan-district-council/walsall,WC71-312,31/08/2016,Social Care & Inclusion,ANSON COURT RESIDENTIAL HOME,26/08/2016,"1,800.00",73373-RESIDENTIAL & NURSING CARE PLACEMENTS,MH COMMISSIONING,Third Party Payments,Revenue
Walsall Council,http://opendatacommunities.org/id/metropolitan-district-council/walsall,WC71-313,31/08/2016,Social Care & Inclusion,ANSON COURT RESIDENTIAL HOME,26/08/2016,"1,800.00",73373-RESIDENTIAL & NURSING CARE PLACEMENTS,OP COMMISSIONING,Third Party Payments,Revenue
Walsall Council,http://opendatacommunities.org/id/metropolitan-district-council/walsall,WC71-314,31/08/2016,Social Care & Inclusion,ANSON COURT RESIDENTIAL HOME,26/08/2016,"1,800.00",73373-RESIDENTIAL & NURSING CARE PLACEMENTS,OP COMMISSIONING,Third Party Payments,Revenue
Walsall Council,http://opendatacommunities.org/id/metropolitan-district-council/walsall,WC71-315,31/08/2016,Social Care & Inclusion,ANSON COURT RESIDENTIAL HOME,26/08/2016,"1,800.00",73373-RESIDENTIAL & NURSING CARE PLACEMENTS,MH COMMISSIONING,Third Party Payments,Revenue
Walsall Council,http://opendatacommunities.org/id/metropolitan-district-council/walsall,WC71-316,31/08/2016,Social Care & Inclusion,ANSON COURT RESIDENTIAL HOME,26/08/2016,"1,800.00",73373-RESIDENTIAL & NURSING CARE PLACEMENTS,OP COMMISSIONING,Third Party Payments,Revenue
Walsall Council,http://opendatacommunities.org/id/metropolitan-district-council/walsall,WC71-317,31/08/2016,Social Care & Inclusion,ANSON COURT RESIDENTIAL HOME,26/08/2016,"1,800.00",73373-RESIDENTIAL & NURSING CARE PLACEMENTS,OP COMMISSIONING,Third Party Payments,Revenue
Walsall Council,http://opendatacommunities.org/id/metropolitan-district-council/walsall,WC71-318,31/08/2016,Social Care & Inclusion,ANSON COURT RESIDENTIAL HOME,26/08/2016,"1,800.00",73373-RESIDENTIAL & NURSING CARE PLACEMENTS,OP COMMISSIONING,Third Party Payments,Revenue
Walsall Council,http://opendatacommunities.org/id/metropolitan-district-council/walsall,WC71-319,31/08/2016,Social Care & Inclusion,ANSON COURT RESIDENTIAL HOME,26/08/2016,"1,800.00",73373-RESIDENTIAL & NURSING CARE PLACEMENTS,OP COMMISSIONING,Third Party Payments,Revenue
Walsall Council,http://opendatacommunities.org/id/metropolitan-district-council/walsall,WC71-320,31/08/2016,Social Care & Inclusion,ANSON COURT RESIDENTIAL HOME,26/08/2016,"3,728.57",73373-RESIDENTIAL & NURSING CARE PLACEMENTS,OP COMMISSIONING,Third Party Payments,Revenue
Walsall Council,http://opendatacommunities.org/id/metropolitan-district-council/walsall,WC71-321,31/08/2016,Social Care & Inclusion,ANSON COURT RESIDENTIAL HOME,02/08/2016,"4,880.00",73373-RESIDENTIAL & NURSING CARE PLACEMENTS,MH COMMISSIONING,Third Party Payments,Revenue
Walsall Council,http://opendatacommunities.org/id/metropolitan-district-council/walsall,WC71-322,31/08/2016,Social Care & Inclusion,ANSON COURT RESIDENTIAL HOME,26/08/2016,"4,880.00",73373-RESIDENTIAL & NURSING CARE PLACEMENTS,MH COMMISSIONING,Third Party Payments,Revenue
Walsall Council,http://opendatacommunities.org/id/metropolitan-district-council/walsall,WC71-323,31/08/2016,Change and Governance,ANTALIS LIMITED,01/08/2016,267.80,60500-GENERAL MATERIALS,PRINTING SERVICES,Supplies & Services,Revenue
Walsall Council,http://opendatacommunities.org/id/metropolitan-district-council/walsall,WC71-324,31/08/2016,Childrens,REDACTED,01/08/2016,"1,310.64",74006-HOLIDAY/CHRISTMAS ALLOWANCE-FOSTER CARERS-OTH AGENCY PROVISION,INTERNAL FOSTER CARE PROVISION,Third Party Payments,Revenue
Walsall Council,http://opendatacommunities.org/id/metropolitan-district-council/walsall,WC71-325,31/08/2016,Childrens,REDACTED,26/08/2016,"1,310.64",74006-HOLIDAY/CHRISTMAS ALLOWANCE-FOSTER CARERS-OTH AGENCY PROVISION,INTERNAL FOSTER CARE PROVISION,Third Party Payments,Revenue
Walsall Council,http://opendatacommunities.org/id/metropolitan-district-council/walsall,WC71-326,31/08/2016,Childrens,ANTI-PEST PEST CONTROL SERVICES,05/08/2016,290.00,73025-PROFESSIONAL SERVICES-PRIV CONTRACTOR & OTHER AGENCIES,BLOXWICH CHILDCARE SERVICE,Third Party Payments,Revenue
Walsall Council,http://opendatacommunities.org/id/metropolitan-district-council/walsall,WC71-327,31/08/2016,Economy & Environment,APCOA PARKING SERVICES (UK) LTD,10/08/2016,"49,524.47",73025-PROFESSIONAL SERVICES-PRIV CONTRACTOR & OTHER AGENCIES,PARKING SERVICES,Third Party Payments,Revenue
Walsall Council,http://opendatacommunities.org/id/metropolitan-district-council/walsall,WC71-328,31/08/2016,Childrens,APPLE TRANSCRIPTION LIMITED,11/08/2016,425.65,73014-LEGAL FEES-PRIV CONTRACTOR FEES,GENERAL MANAGEMENT SUPPORT (INC LEGAL),Third Party Payments,Revenue
Walsall Council,http://opendatacommunities.org/id/metropolitan-district-council/walsall,WC71-329,31/08/2016,Economy & Environment,APSE 001,10/08/2016,"7,521.00",63102-CONSULTANTS FEES - CORPORATE,NEIGHBOURHOOD SERVICES MANAGEMENT,Supplies & Services,Revenue
Walsall Council,http://opendatacommunities.org/id/metropolitan-district-council/walsall,WC71-330,31/08/2016,Social Care & Inclusion,ARBORETUM NURSING HOME.,10/08/2016,"1,975.60",73373-RESIDENTIAL & NURSING CARE PLACEMENTS,OP COMMISSIONING,Third Party Payments,Revenue
Walsall Council,http://opendatacommunities.org/id/metropolitan-district-council/walsall,WC71-331,31/08/2016,Social Care & Inclusion,ARBORETUM NURSING HOME.,17/08/2016,"2,469.50",73373-RESIDENTIAL & NURSING CARE PLACEMENTS,OP COMMISSIONING,Third Party Payments,Revenue
Walsall Council,http://opendatacommunities.org/id/metropolitan-district-council/walsall,WC71-332,31/08/2016,Social Care & Inclusion,ARBORETUM NURSING HOME.,17/08/2016,"2,469.50",73373-RESIDENTIAL & NURSING CARE PLACEMENTS,OP COMMISSIONING,Third Party Payments,Revenue
Walsall Council,http://opendatacommunities.org/id/metropolitan-district-council/walsall,WC71-333,31/08/2016,Social Care & Inclusion,ARBORETUM NURSING HOME.,17/08/2016,"2,469.50",73373-RESIDENTIAL & NURSING CARE PLACEMENTS,OP COMMISSIONING,Third Party Payments,Revenue
Walsall Council,http://opendatacommunities.org/id/metropolitan-district-council/walsall,WC71-334,31/08/2016,Social Care & Inclusion,ARBORETUM NURSING HOME.,17/08/2016,"2,469.50",73373-RESIDENTIAL & NURSING CARE PLACEMENTS,OP COMMISSIONING,Third Party Payments,Revenue
Walsall Council,http://opendatacommunities.org/id/metropolitan-district-council/walsall,WC71-335,31/08/2016,Social Care & Inclusion,ARBORETUM NURSING HOME.,17/08/2016,"2,469.50",73373-RESIDENTIAL & NURSING CARE PLACEMENTS,OP COMMISSIONING,Third Party Payments,Revenue
Walsall Council,http://opendatacommunities.org/id/metropolitan-district-council/walsall,WC71-336,31/08/2016,Social Care & Inclusion,ARBORETUM NURSING HOME.,17/08/2016,"2,521.45",73373-RESIDENTIAL & NURSING CARE PLACEMENTS,OP COMMISSIONING,Third Party Payments,Revenue
Walsall Council,http://opendatacommunities.org/id/metropolitan-district-council/walsall,WC71-337,31/08/2016,Social Care & Inclusion,ARBORETUM NURSING HOME.,17/08/2016,"2,524.85",73373-RESIDENTIAL & NURSING CARE PLACEMENTS,OP COMMISSIONING,Third Party Payments,Revenue
Walsall Council,http://opendatacommunities.org/id/metropolitan-district-council/walsall,WC71-338,31/08/2016,Social Care & Inclusion,ARBORETUM NURSING HOME.,17/08/2016,"2,537.50",73373-RESIDENTIAL & NURSING CARE PLACEMENTS,OP COMMISSIONING,Third Party Payments,Revenue
Walsall Council,http://opendatacommunities.org/id/metropolitan-district-council/walsall,WC71-339,31/08/2016,Social Care & Inclusion,ARBORETUM NURSING HOME.,17/08/2016,"2,677.60",73373-RESIDENTIAL & NURSING CARE PLACEMENTS,OP COMMISSIONING,Third Party Payments,Revenue
Walsall Council,http://opendatacommunities.org/id/metropolitan-district-council/walsall,WC71-340,31/08/2016,Social Care & Inclusion,ARBORETUM NURSING HOME.,05/08/2016,"15,000.00",73019-PSE'S-PRIV CONTRACTOR FEES,TRANSITIONAL CARE SUPPORT TEAM,Third Party Payments,Revenue
Walsall Council,http://opendatacommunities.org/id/metropolitan-district-council/walsall,WC71-341,31/08/2016,Social Care & Inclusion,ARBORETUM NURSING HOME.,22/08/2016,"15,000.00",73019-PSE'S-PRIV CONTRACTOR FEES,TRANSITIONAL CARE SUPPORT TEAM,Third Party Payments,Revenue
Walsall Council,http://opendatacommunities.org/id/metropolitan-district-council/walsall,WC71-342,31/08/2016,Economy & Environment,ARCHWAY TCS LTD,25/08/2016,737.50,60537-VEHICLE WASH PLANT-MATERIALS,DEPOT,Supplies & Services,Revenue
Walsall Council,http://opendatacommunities.org/id/metropolitan-district-council/walsall,WC71-343,31/08/2016,Economy & Environment,ARCO GROUP,15/08/2016,242.18,63000-PROFESSIONAL FEES AND SERVICES,BLOXWICH LEISURE CENTRE,Supplies & Services,Revenue
Walsall Council,http://opendatacommunities.org/id/metropolitan-district-council/walsall,WC71-344,31/08/2016,Economy & Environment,ARCO GROUP,02/08/2016,264.77,01006-SITE WORKS MAIN CONTRACTORS,CFR 1037 ACTIVE LIVING BLOXWICH (PRUDENTIAL),Capital,Capital
Walsall Council,http://opendatacommunities.org/id/metropolitan-district-council/walsall,WC71-345,31/08/2016,Childrens,ARNFIELD CARE LIMITED,10/08/2016,"17,289.01",74036-EXTERNAL RESIDENTIAL CARE-OTH AGENCY PROVISION,INDEPENDENT RESIDENTIAL HOMES,Third Party Payments,Revenue
Walsall Council,http://opendatacommunities.org/id/metropolitan-district-council/walsall,WC71-346,31/08/2016,Childrens,ARTHUR M GRIFFITHS & SON LTD,17/08/2016,"374,329.48",01006-SITE WORKS MAIN CONTRACTORS,CFR 929 KING CHARLES PRIMARY SIGNIFICANT ENLARGEMENT,Capital,Capital
Walsall Council,http://opendatacommunities.org/id/metropolitan-district-council/walsall,WC71-347,31/08/2016,Economy & Environment,ASA AWARDS,09/08/2016,257.77,60500-GENERAL MATERIALS,DARLASTON LEISURE CENTRE,Supplies & Services,Revenue
Walsall Council,http://opendatacommunities.org/id/metropolitan-district-council/walsall,WC71-348,31/08/2016,Economy & Environment,ASAN MANAGEMENT SERVICES LTD,05/08/2016,185.25,62523-EVENTS,ESF BLACK COUNTRY ESF TA PROGRAMME,Supplies & Services,Revenue
Walsall Council,http://opendatacommunities.org/id/metropolitan-district-council/walsall,WC71-349,31/08/2016,Economy & Environment,ASAN MANAGEMENT SERVICES LTD,05/08/2016,185.25,62523-EVENTS,ESF BLACK COUNTRY ESF TA PROGRAMME MATCH FUNDING,Supplies & Services,Revenue
Walsall Council,http://opendatacommunities.org/id/metropolitan-district-council/walsall,WC71-350,31/08/2016,Social Care & Inclusion,ASH GRANGE CARE HOME,23/08/2016,"-3,905.39",73373-RESIDENTIAL & NURSING CARE PLACEMENTS,MH COMMISSIONING,Third Party Payments,Revenue
Walsall Council,http://opendatacommunities.org/id/metropolitan-district-council/walsall,WC71-351,31/08/2016,Social Care & Inclusion,ASH GRANGE CARE HOME,17/08/2016,-497.05,73373-RESIDENTIAL & NURSING CARE PLACEMENTS,OP COMMISSIONING,Third Party Payments,Revenue
Walsall Council,http://opendatacommunities.org/id/metropolitan-district-council/walsall,WC71-352,31/08/2016,Social Care & Inclusion,ASH GRANGE CARE HOME,17/08/2016,278.40,73373-RESIDENTIAL & NURSING CARE PLACEMENTS,MH COMMISSIONING,Third Party Payments,Revenue
Walsall Council,http://opendatacommunities.org/id/metropolitan-district-council/walsall,WC71-353,31/08/2016,Social Care & Inclusion,ASH GRANGE CARE HOME,17/08/2016,559.20,73373-RESIDENTIAL & NURSING CARE PLACEMENTS,OP COMMISSIONING,Third Party Payments,Revenue
Walsall Council,http://opendatacommunities.org/id/metropolitan-district-council/walsall,WC71-354,31/08/2016,Social Care & Inclusion,ASH GRANGE CARE HOME,10/08/2016,568.06,73373-RESIDENTIAL & NURSING CARE PLACEMENTS,OP COMMISSIONING,Third Party Payments,Revenue
Walsall Council,http://opendatacommunities.org/id/metropolitan-district-council/walsall,WC71-355,31/08/2016,Social Care & Inclusion,ASH GRANGE CARE HOME,10/08/2016,710.07,73373-RESIDENTIAL & NURSING CARE PLACEMENTS,OP COMMISSIONING,Third Party Payments,Revenue
Walsall Council,http://opendatacommunities.org/id/metropolitan-district-council/walsall,WC71-356,31/08/2016,Social Care & Inclusion,ASH GRANGE CARE HOME,17/08/2016,710.07,73373-RESIDENTIAL & NURSING CARE PLACEMENTS,OP COMMISSIONING,Third Party Payments,Revenue
Walsall Council,http://opendatacommunities.org/id/metropolitan-district-council/walsall,WC71-357,31/08/2016,Social Care & Inclusion,ASH GRANGE CARE HOME,17/08/2016,852.09,73373-RESIDENTIAL & NURSING CARE PLACEMENTS,OP COMMISSIONING,Third Party Payments,Revenue
Walsall Council,http://opendatacommunities.org/id/metropolitan-district-council/walsall,WC71-358,31/08/2016,Social Care & Inclusion,ASH GRANGE CARE HOME,17/08/2016,"1,136.11",73373-RESIDENTIAL & NURSING CARE PLACEMENTS,OP COMMISSIONING,Third Party Payments,Revenue
Walsall Council,http://opendatacommunities.org/id/metropolitan-district-council/walsall,WC71-359,31/08/2016,Social Care & Inclusion,ASH GRANGE CARE HOME,17/08/2016,"1,278.13",73373-RESIDENTIAL & NURSING CARE PLACEMENTS,OP COMMISSIONING,Third Party Payments,Revenue
Walsall Council,http://opendatacommunities.org/id/metropolitan-district-council/walsall,WC71-360,31/08/2016,Social Care & Inclusion,ASH GRANGE CARE HOME,17/08/2016,"1,620.00",73373-RESIDENTIAL & NURSING CARE PLACEMENTS,OP COMMISSIONING,Third Party Payments,Revenue
Walsall Council,http://opendatacommunities.org/id/metropolitan-district-council/walsall,WC71-361,31/08/2016,Social Care & Inclusion,ASH GRANGE CARE HOME,17/08/2016,"1,988.20",73373-RESIDENTIAL & NURSING CARE PLACEMENTS,OP COMMISSIONING,Third Party Payments,Revenue
Walsall Council,http://opendatacommunities.org/id/metropolitan-district-council/walsall,WC71-362,31/08/2016,Social Care & Inclusion,ASH GRANGE CARE HOME,10/08/2016,"2,040.96",73373-RESIDENTIAL & NURSING CARE PLACEMENTS,OP COMMISSIONING,Third Party Payments,Revenue
Walsall Council,http://opendatacommunities.org/id/metropolitan-district-council/walsall,WC71-363,31/08/2016,Social Care & Inclusion,ASH GRANGE CARE HOME,17/08/2016,"2,111.40",73373-RESIDENTIAL & NURSING CARE PLACEMENTS,OP COMMISSIONING,Third Party Payments,Revenue
Walsall Council,http://opendatacommunities.org/id/metropolitan-district-council/walsall,WC71-364,31/08/2016,Social Care & Inclusion,ASH GRANGE CARE HOME,17/08/2016,"2,111.40",73373-RESIDENTIAL & NURSING CARE PLACEMENTS,OP COMMISSIONING,Third Party Payments,Revenue
Walsall Council,http://opendatacommunities.org/id/metropolitan-district-council/walsall,WC71-365,31/08/2016,Social Care & Inclusion,ASH GRANGE CARE HOME,17/08/2016,"2,111.40",73373-RESIDENTIAL & NURSING CARE PLACEMENTS,OP COMMISSIONING,Third Party Payments,Revenue
Walsall Council,http://opendatacommunities.org/id/metropolitan-district-council/walsall,WC71-366,31/08/2016,Social Care & Inclusion,ASH GRANGE CARE HOME,17/08/2016,"2,111.40",73373-RESIDENTIAL & NURSING CARE PLACEMENTS,OP COMMISSIONING,Third Party Payments,Revenue
Walsall Council,http://opendatacommunities.org/id/metropolitan-district-council/walsall,WC71-367,31/08/2016,Social Care & Inclusion,ASH GRANGE CARE HOME,17/08/2016,"2,111.40",73373-RESIDENTIAL & NURSING CARE PLACEMENTS,OP COMMISSIONING,Third Party Payments,Revenue
Walsall Council,http://opendatacommunities.org/id/metropolitan-district-council/walsall,WC71-368,31/08/2016,Social Care & Inclusion,ASH GRANGE CARE HOME,17/08/2016,"2,111.40",73373-RESIDENTIAL & NURSING CARE PLACEMENTS,OP COMMISSIONING,Third Party Payments,Revenue
Walsall Council,http://opendatacommunities.org/id/metropolitan-district-council/walsall,WC71-369,31/08/2016,Social Care & Inclusion,ASH GRANGE CARE HOME,17/08/2016,"2,111.40",73373-RESIDENTIAL & NURSING CARE PLACEMENTS,MH COMMISSIONING,Third Party Payments,Revenue
Walsall Council,http://opendatacommunities.org/id/metropolitan-district-council/walsall,WC71-370,31/08/2016,Social Care & Inclusion,ASH GRANGE CARE HOME,17/08/2016,"2,111.40",73373-RESIDENTIAL & NURSING CARE PLACEMENTS,OP COMMISSIONING,Third Party Payments,Revenue
Walsall Council,http://opendatacommunities.org/id/metropolitan-district-council/walsall,WC71-371,31/08/2016,Social Care & Inclusion,ASH GRANGE CARE HOME,17/08/2016,"2,111.40",73373-RESIDENTIAL & NURSING CARE PLACEMENTS,OP COMMISSIONING,Third Party Payments,Revenue
Walsall Council,http://opendatacommunities.org/id/metropolitan-district-council/walsall,WC71-372,31/08/2016,Social Care & Inclusion,ASH GRANGE CARE HOME,17/08/2016,"2,111.40",73373-RESIDENTIAL & NURSING CARE PLACEMENTS,OP COMMISSIONING,Third Party Payments,Revenue
Walsall Council,http://opendatacommunities.org/id/metropolitan-district-council/walsall,WC71-373,31/08/2016,Social Care & Inclusion,ASH GRANGE CARE HOME,17/08/2016,"2,111.40",73373-RESIDENTIAL & NURSING CARE PLACEMENTS,OP COMMISSIONING,Third Party Payments,Revenue
Walsall Council,http://opendatacommunities.org/id/metropolitan-district-council/walsall,WC71-374,31/08/2016,Social Care & Inclusion,ASH GRANGE CARE HOME,23/08/2016,"2,111.40",73373-RESIDENTIAL & NURSING CARE PLACEMENTS,OP COMMISSIONING,Third Party Payments,Revenue
Walsall Council,http://opendatacommunities.org/id/metropolitan-district-council/walsall,WC71-375,31/08/2016,Social Care & Inclusion,ASH GRANGE CARE HOME,17/08/2016,"2,195.04",73373-RESIDENTIAL & NURSING CARE PLACEMENTS,OP COMMISSIONING,Third Party Payments,Revenue
Walsall Council,http://opendatacommunities.org/id/metropolitan-district-council/walsall,WC71-376,31/08/2016,Social Care & Inclusion,ASH GRANGE CARE HOME,23/08/2016,"2,305.00",73373-RESIDENTIAL & NURSING CARE PLACEMENTS,OP COMMISSIONING,Third Party Payments,Revenue
Walsall Council,http://opendatacommunities.org/id/metropolitan-district-council/walsall,WC71-377,31/08/2016,Social Care & Inclusion,ASH GRANGE CARE HOME,17/08/2016,"2,327.40",73373-RESIDENTIAL & NURSING CARE PLACEMENTS,MH COMMISSIONING,Third Party Payments,Revenue
Walsall Council,http://opendatacommunities.org/id/metropolitan-district-council/walsall,WC71-378,31/08/2016,Social Care & Inclusion,ASH GRANGE CARE HOME,17/08/2016,"2,327.40",73373-RESIDENTIAL & NURSING CARE PLACEMENTS,MH COMMISSIONING,Third Party Payments,Revenue
Walsall Council,http://opendatacommunities.org/id/metropolitan-district-council/walsall,WC71-379,31/08/2016,Social Care & Inclusion,ASH GRANGE CARE HOME,17/08/2016,"2,943.72",73373-RESIDENTIAL & NURSING CARE PLACEMENTS,OP COMMISSIONING,Third Party Payments,Revenue
Walsall Council,http://opendatacommunities.org/id/metropolitan-district-council/walsall,WC71-380,31/08/2016,Social Care & Inclusion,ASH GRANGE CARE HOME,17/08/2016,"2,943.72",73373-RESIDENTIAL & NURSING CARE PLACEMENTS,OP COMMISSIONING,Third Party Payments,Revenue
Walsall Council,http://opendatacommunities.org/id/metropolitan-district-council/walsall,WC71-381,31/08/2016,Social Care & Inclusion,ASH GRANGE CARE HOME,09/08/2016,"14,700.00",73019-PSE'S-PRIV CONTRACTOR FEES,TRANSITIONAL CARE SUPPORT TEAM,Third Party Payments,Revenue
Walsall Council,http://opendatacommunities.org/id/metropolitan-district-council/walsall,WC71-382,31/08/2016,Economy & Environment,ASKEWS AND HOLTS LIBRARY SERVICES LTD,16/08/2016,253.94,60501-LIBRARY BOOKS,LIBRARY STOCK AND PERFORMANCE,Supplies & Services,Revenue
Walsall Council,http://opendatacommunities.org/id/metropolitan-district-council/walsall,WC71-383,31/08/2016,Economy & Environment,ASKEWS AND HOLTS LIBRARY SERVICES LTD,22/08/2016,264.44,60501-LIBRARY BOOKS,LIBRARY STOCK AND PERFORMANCE,Supplies & Services,Revenue
Walsall Council,http://opendatacommunities.org/id/metropolitan-district-council/walsall,WC71-384,31/08/2016,Economy & Environment,ASKEWS AND HOLTS LIBRARY SERVICES LTD,24/08/2016,296.65,60501-LIBRARY BOOKS,LIBRARY STOCK AND PERFORMANCE,Supplies & Services,Revenue
Walsall Council,http://opendatacommunities.org/id/metropolitan-district-council/walsall,WC71-385,31/08/2016,Economy & Environment,ASKEWS AND HOLTS LIBRARY SERVICES LTD,10/08/2016,306.64,60501-LIBRARY BOOKS,LIBRARY STOCK AND PERFORMANCE,Supplies & Services,Revenue
Walsall Council,http://opendatacommunities.org/id/metropolitan-district-council/walsall,WC71-386,31/08/2016,Economy & Environment,ASKEWS AND HOLTS LIBRARY SERVICES LTD,22/08/2016,321.04,60501-LIBRARY BOOKS,LIBRARY STOCK AND PERFORMANCE,Supplies & Services,Revenue
Walsall Council,http://opendatacommunities.org/id/metropolitan-district-council/walsall,WC71-387,31/08/2016,Economy & Environment,ASKEWS AND HOLTS LIBRARY SERVICES LTD,17/08/2016,366.92,60501-LIBRARY BOOKS,LIBRARY STOCK AND PERFORMANCE,Supplies & Services,Revenue
Walsall Council,http://opendatacommunities.org/id/metropolitan-district-council/walsall,WC71-388,31/08/2016,Economy & Environment,ASKEWS AND HOLTS LIBRARY SERVICES LTD,05/08/2016,427.97,60501-LIBRARY BOOKS,LIBRARY STOCK AND PERFORMANCE,Supplies & Services,Revenue
Walsall Council,http://opendatacommunities.org/id/metropolitan-district-council/walsall,WC71-389,31/08/2016,Economy & Environment,ASKEWS AND HOLTS LIBRARY SERVICES LTD,04/08/2016,483.88,60501-LIBRARY BOOKS,LIBRARY STOCK AND PERFORMANCE,Supplies & Services,Revenue
Walsall Council,http://opendatacommunities.org/id/metropolitan-district-council/walsall,WC71-390,31/08/2016,Economy & Environment,ASKEWS AND HOLTS LIBRARY SERVICES LTD,02/08/2016,527.00,60501-LIBRARY BOOKS,LIBRARY STOCK AND PERFORMANCE,Supplies & Services,Revenue
Walsall Council,http://opendatacommunities.org/id/metropolitan-district-council/walsall,WC71-391,31/08/2016,Economy & Environment,ASKEWS AND HOLTS LIBRARY SERVICES LTD,18/08/2016,590.45,60501-LIBRARY BOOKS,LIBRARY STOCK AND PERFORMANCE,Supplies & Services,Revenue
Walsall Council,http://opendatacommunities.org/id/metropolitan-district-council/walsall,WC71-392,31/08/2016,Economy & Environment,ASKEWS AND HOLTS LIBRARY SERVICES LTD,26/08/2016,707.35,60501-LIBRARY BOOKS,LIBRARY STOCK AND PERFORMANCE,Supplies & Services,Revenue
Walsall Council,http://opendatacommunities.org/id/metropolitan-district-council/walsall,WC71-393,31/08/2016,Economy & Environment,ASKEWS AND HOLTS LIBRARY SERVICES LTD,11/08/2016,713.58,60501-LIBRARY BOOKS,LIBRARY STOCK AND PERFORMANCE,Supplies & Services,Revenue
Walsall Council,http://opendatacommunities.org/id/metropolitan-district-council/walsall,WC71-394,31/08/2016,Social Care & Inclusion,REDACTED,04/08/2016,493.00,76422-DIRECT PAYMENTS TO SOCIAL SERVICES CLIENTS,OP COMMISSIONING,Transfer Payments,Revenue
Walsall Council,http://opendatacommunities.org/id/metropolitan-district-council/walsall,WC71-395,31/08/2016,Economy & Environment,ASSOCIATION OF DIRECTORS OF PUBLIC HEALTH,19/08/2016,"2,500.00",64500-PUBLICATIONS/ORGANISATIONS-SUBSCRIPTIONS,PUBLIC HEALTH BUSINESS SUPPORT,Supplies & Services,Revenue
Walsall Council,http://opendatacommunities.org/id/metropolitan-district-council/walsall,WC71-396,31/08/2016,Economy & Environment,ATHWAL NEWS LTD,26/08/2016,505.54,60501-LIBRARY BOOKS,LIBRARY STOCK AND PERFORMANCE,Supplies & Services,Revenue
Walsall Council,http://opendatacommunities.org/id/metropolitan-district-council/walsall,WC71-397,31/08/2016,Economy & Environment,ATHWAL NEWS LTD,08/08/2016,650.02,60501-LIBRARY BOOKS,LIBRARY STOCK AND PERFORMANCE,Supplies & Services,Revenue
Walsall Council,http://opendatacommunities.org/id/metropolitan-district-council/walsall,WC71-398,31/08/2016,Economy & Environment,AUGEAN TREATMENT LTD,04/08/2016,541.03,73029-HAZARDOUS WASTE REMOVAL/DISPOSAL-PRIV CONTRACTOR FEES,WASTE DISPOSAL - RESIDUAL,Third Party Payments,Revenue
Walsall Council,http://opendatacommunities.org/id/metropolitan-district-council/walsall,WC71-399,31/08/2016,Change and Governance,AURORA GRAPHICS & DISPLAYS LTD,12/08/2016,213.50,62008-OUTWORK-PRINT ROOM,PRINTING SERVICES,Supplies & Services,Revenue
Walsall Council,http://opendatacommunities.org/id/metropolitan-district-council/walsall,WC71-400,31/08/2016,Change and Governance,AURORA GRAPHICS & DISPLAYS LTD,01/08/2016,270.20,62008-OUTWORK-PRINT ROOM,PRINTING SERVICES,Supplies & Services,Revenue
Walsall Council,http://opendatacommunities.org/id/metropolitan-district-council/walsall,WC71-401,31/08/2016,Change and Governance,AURORA GRAPHICS & DISPLAYS LTD,01/08/2016,498.00,62008-OUTWORK-PRINT ROOM,PRINTING SERVICES,Supplies & Services,Revenue
Walsall Council,http://opendatacommunities.org/id/metropolitan-district-council/walsall,WC71-402,31/08/2016,Social Care & Inclusion,AUTISM WEST MIDLANDS,02/08/2016,"7,479.01",73373-RESIDENTIAL & NURSING CARE PLACEMENTS,LD COMMISSIONING,Third Party Payments,Revenue
Walsall Council,http://opendatacommunities.org/id/metropolitan-district-council/walsall,WC71-403,31/08/2016,Social Care & Inclusion,AUTISM WEST MIDLANDS,02/08/2016,"20,666.71",70000-SOCIAL SERVICES-FEES TO VOLUNTARY BODIES,COMPLEX NEEDS CONTRACTS/SLA's,Third Party Payments,Revenue
Walsall Council,http://opendatacommunities.org/id/metropolitan-district-council/walsall,WC71-404,31/08/2016,Social Care & Inclusion,AUTISM WEST MIDLANDS 001,02/08/2016,"4,999.33",73373-RESIDENTIAL & NURSING CARE PLACEMENTS,LD COMMISSIONING,Third Party Payments,Revenue
Walsall Council,http://opendatacommunities.org/id/metropolitan-district-council/walsall,WC71-405,31/08/2016,Economy & Environment,AUTORITE INDUSTRIES (WILLENHALL)LTD,01/08/2016,807.50,73032-TRANSPORTATION-PRIV CONTRACTOR FEES,REMOVAL OF UNAUTHORISED ENCAMPMENTS,Third Party Payments,Revenue
Walsall Council,http://opendatacommunities.org/id/metropolitan-district-council/walsall,WC71-406,31/08/2016,Economy & Environment,AUTORITE INDUSTRIES (WILLENHALL)LTD,01/08/2016,"2,535.00",73032-TRANSPORTATION-PRIV CONTRACTOR FEES,REMOVAL OF UNAUTHORISED ENCAMPMENTS,Third Party Payments,Revenue
Walsall Council,http://opendatacommunities.org/id/metropolitan-district-council/walsall,WC71-407,31/08/2016,Economy & Environment,AVIDITY TRAINING LIMITED,15/08/2016,"2,250.00",66500-GRANTS TO OTHER ORGS,RES-WALSALL WORKS,Third Party Payments,Revenue
Walsall Council,http://opendatacommunities.org/id/metropolitan-district-council/walsall,WC71-408,31/08/2016,Social Care & Inclusion,REDACTED,04/08/2016,777.00,76422-DIRECT PAYMENTS TO SOCIAL SERVICES CLIENTS,OP COMMISSIONING,Transfer Payments,Revenue
Walsall Council,http://opendatacommunities.org/id/metropolitan-district-council/walsall,WC71-409,31/08/2016,Economy & Environment,AXIELL LIMITED,04/08/2016,532.00,63000-PROFESSIONAL FEES AND SERVICES,LIBRARY DEVELOPMENT 1,Supplies & Services,Revenue
Walsall Council,http://opendatacommunities.org/id/metropolitan-district-council/walsall,WC71-410,31/08/2016,Economy & Environment,AXIELL LIMITED,05/08/2016,"17,056.23",63800-COMPUTER EQUIPMENT AND SUPPLIES,NETWORK SUPPORT,Supplies & Services,Revenue
Walsall Council,http://opendatacommunities.org/id/metropolitan-district-council/walsall,WC71-411,31/08/2016,Economy & Environment,AXIOMATIC TECHNOLOGY LTD,15/08/2016,"1,372.00",60500-GENERAL MATERIALS,FOREST ARTS CENTRE,Supplies & Services,Revenue
Walsall Council,http://opendatacommunities.org/id/metropolitan-district-council/walsall,WC71-412,31/08/2016,Childrens,REDACTED,04/08/2016,"1,284.00",76422-DIRECT PAYMENTS TO SOCIAL SERVICES CLIENTS,FAMILY SUPPORT - DIRECT PAYMENTS,Transfer Payments,Revenue
Walsall Council,http://opendatacommunities.org/id/metropolitan-district-council/walsall,WC71-413,31/08/2016,Social Care & Inclusion,REDACTED,16/08/2016,819.00,76422-DIRECT PAYMENTS TO SOCIAL SERVICES CLIENTS,LD COMMISSIONING,Transfer Payments,Revenue
Walsall Council,http://opendatacommunities.org/id/metropolitan-district-council/walsall,WC71-414,31/08/2016,Social Care & Inclusion,REDACTED,04/08/2016,"2,652.00",76422-DIRECT PAYMENTS TO SOCIAL SERVICES CLIENTS,LD COMMISSIONING,Transfer Payments,Revenue
Walsall Council,http://opendatacommunities.org/id/metropolitan-district-council/walsall,WC71-415,31/08/2016,Childrens,REDACTED,15/08/2016,906.76,62515-MISCELLANEOUS SUPPLIES,INTERNAL FOSTER CARE PROVISION,Supplies & Services,Revenue
Walsall Council,http://opendatacommunities.org/id/metropolitan-district-council/walsall,WC71-416,31/08/2016,Childrens,REDACTED,15/08/2016,985.76,74006-HOLIDAY/CHRISTMAS ALLOWANCE-FOSTER CARERS-OTH AGENCY PROVISION,INTERNAL FOSTER CARE PROVISION,Third Party Payments,Revenue
Walsall Council,http://opendatacommunities.org/id/metropolitan-district-council/walsall,WC71-417,31/08/2016,Childrens,REDACTED,02/08/2016,464.00,76000-TRANSFER PAYMENTS - SOCIAL SERVICES CLIENTS,TRANSITION AND LEAVING CARE,Transfer Payments,Revenue
Walsall Council,http://opendatacommunities.org/id/metropolitan-district-council/walsall,WC71-418,31/08/2016,Childrens,REDACTED,16/08/2016,464.00,76000-TRANSFER PAYMENTS - SOCIAL SERVICES CLIENTS,TRANSITION AND LEAVING CARE,Transfer Payments,Revenue
Walsall Council,http://opendatacommunities.org/id/metropolitan-district-council/walsall,WC71-419,31/08/2016,Childrens,REDACTED,30/08/2016,464.00,76000-TRANSFER PAYMENTS - SOCIAL SERVICES CLIENTS,TRANSITION AND LEAVING CARE,Transfer Payments,Revenue
Walsall Council,http://opendatacommunities.org/id/metropolitan-district-council/walsall,WC71-420,31/08/2016,Childrens,REDACTED,15/08/2016,906.76,62515-MISCELLANEOUS SUPPLIES,INTERNAL FOSTER CARE PROVISION,Supplies & Services,Revenue
Walsall Council,http://opendatacommunities.org/id/metropolitan-district-council/walsall,WC71-421,31/08/2016,Childrens,REDACTED,15/08/2016,"1,478.64",74006-HOLIDAY/CHRISTMAS ALLOWANCE-FOSTER CARERS-OTH AGENCY PROVISION,INTERNAL FOSTER CARE PROVISION,Third Party Payments,Revenue
Walsall Council,http://opendatacommunities.org/id/metropolitan-district-council/walsall,WC71-422,31/08/2016,Childrens,BACHES SOLICITORS,08/08/2016,"1,280.75",63109-EXTERNAL SOLICITORS-SERVICES-FEES,LOOKED AFTER CHILDRENS SOCIAL WORK TEAM,Supplies & Services,Revenue
Walsall Council,http://opendatacommunities.org/id/metropolitan-district-council/walsall,WC71-423,31/08/2016,Economy & Environment,BADGEMASTER LTD,22/08/2016,925.75,01006-SITE WORKS MAIN CONTRACTORS,CFR 1037 ACTIVE LIVING OAK PARK (PRUDENTIAL),Capital,Capital
Walsall Council,http://opendatacommunities.org/id/metropolitan-district-council/walsall,WC71-424,31/08/2016,Economy & Environment,BAKER HALL PARTNERSHIP,09/08/2016,794.00,63000-PROFESSIONAL FEES AND SERVICES,BUILDING CONTROL REVENUE FUNDED,Supplies & Services,Revenue
Walsall Council,http://opendatacommunities.org/id/metropolitan-district-council/walsall,WC71-425,31/08/2016,Social Care & Inclusion,REDACTED,04/08/2016,480.00,76422-DIRECT PAYMENTS TO SOCIAL SERVICES CLIENTS,MH COMMISSIONING,Transfer Payments,Revenue
Walsall Council,http://opendatacommunities.org/id/metropolitan-district-council/walsall,WC71-426,31/08/2016,Social Care & Inclusion,REDACTED,04/08/2016,"2,849.92",76422-DIRECT PAYMENTS TO SOCIAL SERVICES CLIENTS,LD COMMISSIONING,Transfer Payments,Revenue
Walsall Council,http://opendatacommunities.org/id/metropolitan-district-council/walsall,WC71-427,31/08/2016,Social Care & Inclusion,REDACTED,04/08/2016,800.00,76422-DIRECT PAYMENTS TO SOCIAL SERVICES CLIENTS,OP COMMISSIONING,Transfer Payments,Revenue
Walsall Council,http://opendatacommunities.org/id/metropolitan-district-council/walsall,WC71-428,31/08/2016,Social Care & Inclusion,REDACTED,04/08/2016,"1,046.50",76422-DIRECT PAYMENTS TO SOCIAL SERVICES CLIENTS,OP COMMISSIONING,Transfer Payments,Revenue
Walsall Council,http://opendatacommunities.org/id/metropolitan-district-council/walsall,WC71-429,31/08/2016,Social Care & Inclusion,REDACTED,04/08/2016,"1,582.86",76422-DIRECT PAYMENTS TO SOCIAL SERVICES CLIENTS,OP COMMISSIONING,Transfer Payments,Revenue
Walsall Council,http://opendatacommunities.org/id/metropolitan-district-council/walsall,WC71-430,31/08/2016,Social Care & Inclusion,REDACTED,04/08/2016,"1,536.08",76422-DIRECT PAYMENTS TO SOCIAL SERVICES CLIENTS,YADS COMMISSIONING,Transfer Payments,Revenue
Walsall Council,http://opendatacommunities.org/id/metropolitan-district-council/walsall,WC71-431,31/08/2016,Social Care & Inclusion,REDACTED,04/08/2016,632.52,76422-DIRECT PAYMENTS TO SOCIAL SERVICES CLIENTS,OP COMMISSIONING,Transfer Payments,Revenue
Walsall Council,http://opendatacommunities.org/id/metropolitan-district-council/walsall,WC71-432,31/08/2016,Childrens,BARNARDOS SERVICES LTD,03/08/2016,"3,180.60",74037-INDEPENDENT FOSTER CARE-OTH AGENCY PROVISION,EXTERNAL FOSTER CARE PROVISION,Third Party Payments,Revenue
Walsall Council,http://opendatacommunities.org/id/metropolitan-district-council/walsall,WC71-433,31/08/2016,Childrens,BARNARDOS SERVICES LTD,03/08/2016,"3,317.00",74037-INDEPENDENT FOSTER CARE-OTH AGENCY PROVISION,EXTERNAL FOSTER CARE PROVISION,Third Party Payments,Revenue
Walsall Council,http://opendatacommunities.org/id/metropolitan-district-council/walsall,WC71-434,31/08/2016,Change and Governance,BARONS COURT HOTEL,15/08/2016,236.67,34329-HOTEL ACCOMMODATION-EMPLOYEES,BED & BREAKFAST PAYMENTS,Employees,Revenue
Walsall Council,http://opendatacommunities.org/id/metropolitan-district-council/walsall,WC71-435,31/08/2016,Childrens,BARR BEACON SCHOOL TRUST,17/08/2016,321.30,77300-ISB-FORMULA ALLOCATION,BARR BEACON SCHOOL TRUST (ACADEMY),Transfer Payments,Revenue
Walsall Council,http://opendatacommunities.org/id/metropolitan-district-council/walsall,WC71-436,31/08/2016,Childrens,BARR BEACON SCHOOL TRUST,15/08/2016,"2,436.92",66502-TOP UP FUNDING -GRANTS TO SCHOOLS,BARR BEACON SCHOOL TRUST (ACADEMY),Third Party Payments,Revenue
Walsall Council,http://opendatacommunities.org/id/metropolitan-district-council/walsall,WC71-437,31/08/2016,Childrens,BEADEN POWERLEC LIMITED,25/08/2016,216.00,60008-MAINTENANCE-FURNITURE & EQUIPMENT,SOUTH LOCALITY - SCHOOL READY,Supplies & Services,Revenue
Walsall Council,http://opendatacommunities.org/id/metropolitan-district-council/walsall,WC71-438,31/08/2016,Childrens,BEADEN POWERLEC LIMITED,09/08/2016,"1,267.52",01006-SITE WORKS MAIN CONTRACTORS,CFR 1088 ST JOHNS PRIMARY REWIRE PHASE 2,Capital,Capital
Walsall Council,http://opendatacommunities.org/id/metropolitan-district-council/walsall,WC71-439,31/08/2016,Childrens,REDACTED,15/08/2016,"1,301.84",74006-HOLIDAY/CHRISTMAS ALLOWANCE-FOSTER CARERS-OTH AGENCY PROVISION,INTERNAL FOSTER CARE PROVISION,Third Party Payments,Revenue
Walsall Council,http://opendatacommunities.org/id/metropolitan-district-council/walsall,WC71-440,31/08/2016,Childrens,REDACTED,15/08/2016,"1,371.86",62515-MISCELLANEOUS SUPPLIES,INTERNAL FOSTER CARE PROVISION,Supplies & Services,Revenue
Walsall Council,http://opendatacommunities.org/id/metropolitan-district-council/walsall,WC71-441,31/08/2016,Social Care & Inclusion,BEARWOOD NURSING HOME LTD,23/08/2016,"1,527.60",73373-RESIDENTIAL & NURSING CARE PLACEMENTS,OP COMMISSIONING,Third Party Payments,Revenue
Walsall Council,http://opendatacommunities.org/id/metropolitan-district-council/walsall,WC71-442,31/08/2016,Social Care & Inclusion,REDACTED,04/08/2016,866.25,76422-DIRECT PAYMENTS TO SOCIAL SERVICES CLIENTS,OP COMMISSIONING,Transfer Payments,Revenue
Walsall Council,http://opendatacommunities.org/id/metropolitan-district-council/walsall,WC71-443,31/08/2016,Childrens,BECKYS CHILDMINDING SERVICE,11/08/2016,295.36,66505-OTHER-GRANTS TO OTHER ORGS,EARLY YEARS - 2 YR OLDS,Third Party Payments,Revenue
Walsall Council,http://opendatacommunities.org/id/metropolitan-district-council/walsall,WC71-444,31/08/2016,Childrens,BECKYS CHILDMINDING SERVICE,30/08/2016,620.88,66505-OTHER-GRANTS TO OTHER ORGS,EARLY YEARS - 3 YR OLDS,Third Party Payments,Revenue
Walsall Council,http://opendatacommunities.org/id/metropolitan-district-council/walsall,WC71-445,31/08/2016,Childrens,BECKYS CHILDMINDING SERVICE,26/08/2016,"1,525.68",66505-OTHER-GRANTS TO OTHER ORGS,EARLY YEARS - 2 YR OLDS,Third Party Payments,Revenue
Walsall Council,http://opendatacommunities.org/id/metropolitan-district-council/walsall,WC71-446,31/08/2016,Childrens,REDACTED,15/08/2016,571.44,74006-HOLIDAY/CHRISTMAS ALLOWANCE-FOSTER CARERS-OTH AGENCY PROVISION,INTERNAL FOSTER CARE PROVISION,Third Party Payments,Revenue
Walsall Council,http://opendatacommunities.org/id/metropolitan-district-council/walsall,WC71-447,31/08/2016,Childrens,REDACTED,15/08/2016,614.00,62515-MISCELLANEOUS SUPPLIES,INTERNAL FOSTER CARE PROVISION,Supplies & Services,Revenue
Walsall Council,http://opendatacommunities.org/id/metropolitan-district-council/walsall,WC71-448,31/08/2016,Economy & Environment,BEMROSEBOOTH LTD,01/08/2016,"1,462.50",62001-STATIONERY & GENERAL SUPPLIES-OFFICE EXP,PARKING SERVICES,Supplies & Services,Revenue
Walsall Council,http://opendatacommunities.org/id/metropolitan-district-council/walsall,WC71-449,31/08/2016,Social Care & Inclusion,REDACTED,16/08/2016,551.25,76422-DIRECT PAYMENTS TO SOCIAL SERVICES CLIENTS,LD COMMISSIONING,Transfer Payments,Revenue
Walsall Council,http://opendatacommunities.org/id/metropolitan-district-council/walsall,WC71-450,31/08/2016,Social Care & Inclusion,REDACTED,04/08/2016,"2,205.00",76422-DIRECT PAYMENTS TO SOCIAL SERVICES CLIENTS,LD COMMISSIONING,Transfer Payments,Revenue
Walsall Council,http://opendatacommunities.org/id/metropolitan-district-council/walsall,WC71-451,31/08/2016,Childrens,BENTLEY CHILD CARE,24/08/2016,765.00,63120-CRECHE FACILITIES-SERVICES-FEES,EARLY HELP & RESOURCE PANEL,Supplies & Services,Revenue
Walsall Council,http://opendatacommunities.org/id/metropolitan-district-council/walsall,WC71-452,31/08/2016,Social Care & Inclusion,BENTLEY COURT PRIORY,10/08/2016,"1,455.00",73373-RESIDENTIAL & NURSING CARE PLACEMENTS,MH COMMISSIONING,Third Party Payments,Revenue
Walsall Council,http://opendatacommunities.org/id/metropolitan-district-council/walsall,WC71-453,31/08/2016,Social Care & Inclusion,BENTLEY COURT PRIORY,10/08/2016,"1,649.00",73373-RESIDENTIAL & NURSING CARE PLACEMENTS,MH COMMISSIONING,Third Party Payments,Revenue
Walsall Council,http://opendatacommunities.org/id/metropolitan-district-council/walsall,WC71-454,31/08/2016,Social Care & Inclusion,BENTLEY COURT PRIORY,10/08/2016,"1,793.57",73373-RESIDENTIAL & NURSING CARE PLACEMENTS,OP COMMISSIONING,Third Party Payments,Revenue
Walsall Council,http://opendatacommunities.org/id/metropolitan-district-council/walsall,WC71-455,31/08/2016,Social Care & Inclusion,BENTLEY COURT PRIORY,10/08/2016,"1,794.19",73373-RESIDENTIAL & NURSING CARE PLACEMENTS,OP COMMISSIONING,Third Party Payments,Revenue
Walsall Council,http://opendatacommunities.org/id/metropolitan-district-council/walsall,WC71-456,31/08/2016,Social Care & Inclusion,BENTLEY COURT PRIORY,10/08/2016,"1,853.36",73373-RESIDENTIAL & NURSING CARE PLACEMENTS,OP COMMISSIONING,Third Party Payments,Revenue
Walsall Council,http://opendatacommunities.org/id/metropolitan-district-council/walsall,WC71-457,31/08/2016,Social Care & Inclusion,BENTLEY COURT PRIORY,10/08/2016,"1,853.36",73373-RESIDENTIAL & NURSING CARE PLACEMENTS,OP COMMISSIONING,Third Party Payments,Revenue
Walsall Council,http://opendatacommunities.org/id/metropolitan-district-council/walsall,WC71-458,31/08/2016,Social Care & Inclusion,BENTLEY COURT PRIORY,10/08/2016,"1,855.71",73373-RESIDENTIAL & NURSING CARE PLACEMENTS,OP COMMISSIONING,Third Party Payments,Revenue
Walsall Council,http://opendatacommunities.org/id/metropolitan-district-council/walsall,WC71-459,31/08/2016,Social Care & Inclusion,BENTLEY COURT PRIORY,10/08/2016,"1,917.57",73373-RESIDENTIAL & NURSING CARE PLACEMENTS,OP COMMISSIONING,Third Party Payments,Revenue
Walsall Council,http://opendatacommunities.org/id/metropolitan-district-council/walsall,WC71-460,31/08/2016,Economy & Environment,BENTLEY MILL WAY ALLOTMENTS ASSOCIATION,25/08/2016,430.00,66500-GRANTS TO OTHER ORGS,CENTRAL SERVICES ALLOTMENTS,Third Party Payments,Revenue
Walsall Council,http://opendatacommunities.org/id/metropolitan-district-council/walsall,WC71-461,31/08/2016,Economy & Environment,BERWIN LEIGHTON PAISNER LLP,02/08/2016,"400,000.00",01056-PURCHASE OF LAND,CFR 1168 BROWNHILLS LAND ACQUISTION,Capital,Capital
Walsall Council,http://opendatacommunities.org/id/metropolitan-district-council/walsall,WC71-462,31/08/2016,Social Care & Inclusion,REDACTED,04/08/2016,912.00,76422-DIRECT PAYMENTS TO SOCIAL SERVICES CLIENTS,OP COMMISSIONING,Transfer Payments,Revenue
Walsall Council,http://opendatacommunities.org/id/metropolitan-district-council/walsall,WC71-463,31/08/2016,Childrens,REDACTED,15/08/2016,571.44,74006-HOLIDAY/CHRISTMAS ALLOWANCE-FOSTER CARERS-OTH AGENCY PROVISION,INTERNAL FOSTER CARE PROVISION,Third Party Payments,Revenue
Walsall Council,http://opendatacommunities.org/id/metropolitan-district-council/walsall,WC71-464,31/08/2016,Childrens,REDACTED,15/08/2016,"1,445.32",62515-MISCELLANEOUS SUPPLIES,INTERNAL FOSTER CARE PROVISION,Supplies & Services,Revenue
Walsall Council,http://opendatacommunities.org/id/metropolitan-district-council/walsall,WC71-465,31/08/2016,Social Care & Inclusion,REDACTED,04/08/2016,968.00,76422-DIRECT PAYMENTS TO SOCIAL SERVICES CLIENTS,OP COMMISSIONING,Transfer Payments,Revenue
Walsall Council,http://opendatacommunities.org/id/metropolitan-district-council/walsall,WC71-466,31/08/2016,Social Care & Inclusion,BESCOT LODGE RESIDENTIAL CARE HOME,26/08/2016,"1,624.66",73373-RESIDENTIAL & NURSING CARE PLACEMENTS,MH COMMISSIONING,Third Party Payments,Revenue
Walsall Council,http://opendatacommunities.org/id/metropolitan-district-council/walsall,WC71-467,31/08/2016,Social Care & Inclusion,BESCOT LODGE RESIDENTIAL CARE HOME,26/08/2016,"1,624.66",73373-RESIDENTIAL & NURSING CARE PLACEMENTS,MH COMMISSIONING,Third Party Payments,Revenue
Walsall Council,http://opendatacommunities.org/id/metropolitan-district-council/walsall,WC71-468,31/08/2016,Social Care & Inclusion,BESCOT LODGE RESIDENTIAL CARE HOME,26/08/2016,"1,736.71",73373-RESIDENTIAL & NURSING CARE PLACEMENTS,MH COMMISSIONING,Third Party Payments,Revenue
Walsall Council,http://opendatacommunities.org/id/metropolitan-district-council/walsall,WC71-469,31/08/2016,Social Care & Inclusion,BESCOT LODGE RESIDENTIAL CARE HOME,26/08/2016,"1,736.71",73373-RESIDENTIAL & NURSING CARE PLACEMENTS,MH COMMISSIONING,Third Party Payments,Revenue
Walsall Council,http://opendatacommunities.org/id/metropolitan-district-council/walsall,WC71-470,31/08/2016,Social Care & Inclusion,BESCOT LODGE RESIDENTIAL CARE HOME,26/08/2016,"1,736.71",73373-RESIDENTIAL & NURSING CARE PLACEMENTS,MH COMMISSIONING,Third Party Payments,Revenue
Walsall Council,http://opendatacommunities.org/id/metropolitan-district-council/walsall,WC71-471,31/08/2016,Economy & Environment,BESCOT STADIUM SUNDAY MARKET LTD,08/08/2016,"2,800.00",73025-PROFESSIONAL SERVICES-PRIV CONTRACTOR & OTHER AGENCIES,WILLENHALL MARKET,Third Party Payments,Revenue
Walsall Council,http://opendatacommunities.org/id/metropolitan-district-council/walsall,WC71-472,31/08/2016,Social Care & Inclusion,BESS CARE LIMITED,01/08/2016,425.00,73372-DOMICILIARY CARE,OP COMMISSIONING,Third Party Payments,Revenue
Walsall Council,http://opendatacommunities.org/id/metropolitan-district-council/walsall,WC71-473,31/08/2016,Social Care & Inclusion,BESWICK HOUSE SUPPORTED ACCOMMODATION LTD,08/08/2016,"15,045.79",73365-BLOCK GROSS-SUPPORTING PEOPLE,EXTERNAL SP,Third Party Payments,Revenue
Walsall Council,http://opendatacommunities.org/id/metropolitan-district-council/walsall,WC71-474,31/08/2016,Social Care & Inclusion,BETHPHAGE.,01/08/2016,650.00,73374-SUPPORTED & OTHER ACCOMMODATION,LD COMMISSIONING,Third Party Payments,Revenue
Walsall Council,http://opendatacommunities.org/id/metropolitan-district-council/walsall,WC71-475,31/08/2016,Social Care & Inclusion,BETHPHAGE.,15/08/2016,812.50,73374-SUPPORTED & OTHER ACCOMMODATION,LD COMMISSIONING,Third Party Payments,Revenue
Walsall Council,http://opendatacommunities.org/id/metropolitan-district-council/walsall,WC71-476,31/08/2016,Social Care & Inclusion,BETHPHAGE.,01/08/2016,"1,439.24",73374-SUPPORTED & OTHER ACCOMMODATION,LD COMMISSIONING,Third Party Payments,Revenue
Walsall Council,http://opendatacommunities.org/id/metropolitan-district-council/walsall,WC71-477,31/08/2016,Social Care & Inclusion,BETHPHAGE.,01/08/2016,"1,714.38",73374-SUPPORTED & OTHER ACCOMMODATION,LD COMMISSIONING,Third Party Payments,Revenue
Walsall Council,http://opendatacommunities.org/id/metropolitan-district-council/walsall,WC71-478,31/08/2016,Social Care & Inclusion,BETHPHAGE.,01/08/2016,"1,768.00",73374-SUPPORTED & OTHER ACCOMMODATION,LD COMMISSIONING,Third Party Payments,Revenue
Walsall Council,http://opendatacommunities.org/id/metropolitan-district-council/walsall,WC71-479,31/08/2016,Social Care & Inclusion,BETHPHAGE.,15/08/2016,"1,799.05",73374-SUPPORTED & OTHER ACCOMMODATION,LD COMMISSIONING,Third Party Payments,Revenue
Walsall Council,http://opendatacommunities.org/id/metropolitan-district-council/walsall,WC71-480,31/08/2016,Social Care & Inclusion,BETHPHAGE.,15/08/2016,"2,031.86",73374-SUPPORTED & OTHER ACCOMMODATION,LD COMMISSIONING,Third Party Payments,Revenue
Walsall Council,http://opendatacommunities.org/id/metropolitan-district-council/walsall,WC71-481,31/08/2016,Social Care & Inclusion,BETHPHAGE.,15/08/2016,"2,210.00",73374-SUPPORTED & OTHER ACCOMMODATION,LD COMMISSIONING,Third Party Payments,Revenue
Walsall Council,http://opendatacommunities.org/id/metropolitan-district-council/walsall,WC71-482,31/08/2016,Social Care & Inclusion,BETHPHAGE.,01/08/2016,"4,364.20",73374-SUPPORTED & OTHER ACCOMMODATION,LD COMMISSIONING,Third Party Payments,Revenue
Walsall Council,http://opendatacommunities.org/id/metropolitan-district-council/walsall,WC71-483,31/08/2016,Social Care & Inclusion,REDACTED,04/08/2016,949.52,76422-DIRECT PAYMENTS TO SOCIAL SERVICES CLIENTS,MH COMMISSIONING,Transfer Payments,Revenue
Walsall Council,http://opendatacommunities.org/id/metropolitan-district-council/walsall,WC71-484,31/08/2016,Social Care & Inclusion,REDACTED,04/08/2016,"2,767.84",76422-DIRECT PAYMENTS TO SOCIAL SERVICES CLIENTS,OP COMMISSIONING,Transfer Payments,Revenue
Walsall Council,http://opendatacommunities.org/id/metropolitan-district-council/walsall,WC71-485,31/08/2016,Economy & Environment,BGPW LMA,25/08/2016,500.00,66500-GRANTS TO OTHER ORGS,CENTRAL SERVICES ALLOTMENTS,Third Party Payments,Revenue
Walsall Council,http://opendatacommunities.org/id/metropolitan-district-council/walsall,WC71-486,31/08/2016,Economy & Environment,BHMA LTD,15/08/2016,536.40,60000-FURNITURE & EQUIPMENT,FOREST ARTS CENTRE,Supplies & Services,Revenue
Walsall Council,http://opendatacommunities.org/id/metropolitan-district-council/walsall,WC71-487,31/08/2016,Childrens,BIANCA NAMUTULO,04/08/2016,591.36,52000-WITH DRIVER-HIRE OF VEHICLES,SCHOOL TRANSPORT,Transport,Revenue
Walsall Council,http://opendatacommunities.org/id/metropolitan-district-council/walsall,WC71-488,31/08/2016,Economy & Environment,BIBLIOTHECA LTD,09/08/2016,750.00,01044-PURCHASE OF FURNITURE & EQUIPMENT,CFR 1156 OPEN PLUS IN LIBRARIES,Capital,Capital
Walsall Council,http://opendatacommunities.org/id/metropolitan-district-council/walsall,WC71-489,31/08/2016,Economy & Environment,BIBLIOTHECA LTD,09/08/2016,750.00,01044-PURCHASE OF FURNITURE & EQUIPMENT,CFR 1156 OPEN PLUS IN LIBRARIES,Capital,Capital
Walsall Council,http://opendatacommunities.org/id/metropolitan-district-council/walsall,WC71-490,31/08/2016,Economy & Environment,BIBLIOTHECA LTD,09/08/2016,750.00,01044-PURCHASE OF FURNITURE & EQUIPMENT,CFR 1156 OPEN PLUS IN LIBRARIES,Capital,Capital
Walsall Council,http://opendatacommunities.org/id/metropolitan-district-council/walsall,WC71-491,31/08/2016,Economy & Environment,BIBLIOTHECA LTD,09/08/2016,750.00,01044-PURCHASE OF FURNITURE & EQUIPMENT,CFR 1156 OPEN PLUS IN LIBRARIES,Capital,Capital
Walsall Council,http://opendatacommunities.org/id/metropolitan-district-council/walsall,WC71-492,31/08/2016,Childrens,REDACTED,04/08/2016,487.72,76422-DIRECT PAYMENTS TO SOCIAL SERVICES CLIENTS,FAMILY SUPPORT - DIRECT PAYMENTS,Transfer Payments,Revenue
Walsall Council,http://opendatacommunities.org/id/metropolitan-district-council/walsall,WC71-493,31/08/2016,Childrens,REDACTED,04/08/2016,537.20,76422-DIRECT PAYMENTS TO SOCIAL SERVICES CLIENTS,FAMILY SUPPORT - DIRECT PAYMENTS,Transfer Payments,Revenue
Walsall Council,http://opendatacommunities.org/id/metropolitan-district-council/walsall,WC71-494,31/08/2016,Economy & Environment,BILLY ROSS WHOLESALE,12/08/2016,233.72,60500-GENERAL MATERIALS,LEATHER MUSEUM SHOP STOCK,Supplies & Services,Revenue
Walsall Council,http://opendatacommunities.org/id/metropolitan-district-council/walsall,WC71-495,31/08/2016,Economy & Environment,BIOGAS TECHNOLOGY LIMITED,01/08/2016,349.50,60008-MAINTENANCE-FURNITURE & EQUIPMENT,POLLUTION DIVISION,Supplies & Services,Revenue
Walsall Council,http://opendatacommunities.org/id/metropolitan-district-council/walsall,WC71-496,31/08/2016,Childrens,BIRCHILLS C OF E COMMUNITY ACADEMY,25/08/2016,600.00,30030-EXTERNAL TRAINING,SCHOOL READINESS,Employees,Revenue
Walsall Council,http://opendatacommunities.org/id/metropolitan-district-council/walsall,WC71-497,31/08/2016,Childrens,BIRCHILLS C OF E COMMUNITY ACADEMY,15/08/2016,"2,648.47",66502-TOP UP FUNDING -GRANTS TO SCHOOLS,BIRCHILLS CE COMMUNITY ACADEMY,Third Party Payments,Revenue
Walsall Council,http://opendatacommunities.org/id/metropolitan-district-council/walsall,WC71-498,31/08/2016,Economy & Environment,BIRMINGHAM CITY COUNCIL,15/08/2016,213.38,62515-MISCELLANEOUS SUPPLIES,ALDRIDGE DISTRICT CENTRE,Supplies & Services,Revenue
Walsall Council,http://opendatacommunities.org/id/metropolitan-district-council/walsall,WC71-499,31/08/2016,Economy & Environment,BIRMINGHAM CITY COUNCIL,17/08/2016,412.92,62515-MISCELLANEOUS SUPPLIES,BROWNHILLS DISTRICT CENTRE,Supplies & Services,Revenue
Walsall Council,http://opendatacommunities.org/id/metropolitan-district-council/walsall,WC71-500,31/08/2016,Economy & Environment,BIRMINGHAM CITY COUNCIL,17/08/2016,"1,261.32",62515-MISCELLANEOUS SUPPLIES,WILLENHALL DISTRICT CENTRE,Supplies & Services,Revenue
Walsall Council,http://opendatacommunities.org/id/metropolitan-district-council/walsall,WC71-501,31/08/2016,Economy & Environment,BIRMINGHAM CITY COUNCIL,17/08/2016,"1,581.75",62515-MISCELLANEOUS SUPPLIES,ALDRIDGE DISTRICT CENTRE,Supplies & Services,Revenue
Walsall Council,http://opendatacommunities.org/id/metropolitan-district-council/walsall,WC71-502,31/08/2016,Economy & Environment,BIRMINGHAM WOMENS NHS FOUNDATION TRUST,04/08/2016,900.00,63000-PROFESSIONAL FEES AND SERVICES,CORONERS SERVICE,Supplies & Services,Revenue
Walsall Council,http://opendatacommunities.org/id/metropolitan-district-council/walsall,WC71-503,31/08/2016,Social Care & Inclusion,BLACK COUNTRY PARTNERSHIP NHS,15/08/2016,728.00,73375-IN PATIENT BEDS,BCPFT,Third Party Payments,Revenue
Walsall Council,http://opendatacommunities.org/id/metropolitan-district-council/walsall,WC71-504,31/08/2016,Social Care & Inclusion,BLACK COUNTRY PARTNERSHIP NHS,15/08/2016,"1,213.00",73375-IN PATIENT BEDS,BCPFT,Third Party Payments,Revenue
Walsall Council,http://opendatacommunities.org/id/metropolitan-district-council/walsall,WC71-505,31/08/2016,Social Care & Inclusion,BLACK COUNTRY PARTNERSHIP NHS,15/08/2016,"4,912.00",73375-IN PATIENT BEDS,BCPFT,Third Party Payments,Revenue
Walsall Council,http://opendatacommunities.org/id/metropolitan-district-council/walsall,WC71-506,31/08/2016,Social Care & Inclusion,BLACK COUNTRY PARTNERSHIP NHS,15/08/2016,"18,198.00",73375-IN PATIENT BEDS,BCPFT,Third Party Payments,Revenue
Walsall Council,http://opendatacommunities.org/id/metropolitan-district-council/walsall,WC71-507,31/08/2016,Social Care & Inclusion,BLACK COUNTRY PARTNERSHIP NHS,15/08/2016,"18,198.00",73375-IN PATIENT BEDS,BCPFT,Third Party Payments,Revenue
Walsall Council,http://opendatacommunities.org/id/metropolitan-district-council/walsall,WC71-508,31/08/2016,Social Care & Inclusion,BLACK COUNTRY PARTNERSHIP NHS,15/08/2016,"18,198.00",73375-IN PATIENT BEDS,BCPFT,Third Party Payments,Revenue
Walsall Council,http://opendatacommunities.org/id/metropolitan-district-council/walsall,WC71-509,31/08/2016,Social Care & Inclusion,BLACK COUNTRY PARTNERSHIP NHS,15/08/2016,"18,198.00",73375-IN PATIENT BEDS,BCPFT,Third Party Payments,Revenue
Walsall Council,http://opendatacommunities.org/id/metropolitan-district-council/walsall,WC71-510,31/08/2016,Social Care & Inclusion,BLACK COUNTRY PARTNERSHIP NHS,15/08/2016,"18,198.00",73375-IN PATIENT BEDS,BCPFT,Third Party Payments,Revenue
Walsall Council,http://opendatacommunities.org/id/metropolitan-district-council/walsall,WC71-511,31/08/2016,Social Care & Inclusion,BLACK COUNTRY PARTNERSHIP NHS,15/08/2016,"18,198.00",73375-IN PATIENT BEDS,LD COMMISSIONING,Third Party Payments,Revenue
Walsall Council,http://opendatacommunities.org/id/metropolitan-district-council/walsall,WC71-512,31/08/2016,Childrens,BLAKENALL HEATH JMI SCHOOL,02/08/2016,"91,561.92",77300-ISB-FORMULA ALLOCATION,BLAKENALL HEATH JUNIOR SCHOOL,Transfer Payments,Revenue
Walsall Council,http://opendatacommunities.org/id/metropolitan-district-council/walsall,WC71-513,31/08/2016,Childrens,BLAKENALL HEATH JMI SCHOOL,31/08/2016,"91,561.92",77300-ISB-FORMULA ALLOCATION,BLAKENALL HEATH JUNIOR SCHOOL,Transfer Payments,Revenue
Walsall Council,http://opendatacommunities.org/id/metropolitan-district-council/walsall,WC71-514,31/08/2016,Childrens,BLOXWICH ACADEMY,18/08/2016,581.00,66505-OTHER-GRANTS TO OTHER ORGS,EARLY YEARS - 3 YR OLDS,Third Party Payments,Revenue
Walsall Council,http://opendatacommunities.org/id/metropolitan-district-council/walsall,WC71-515,31/08/2016,Childrens,BLOXWICH ACADEMY,15/08/2016,"2,631.12",66502-TOP UP FUNDING -GRANTS TO SCHOOLS,THE MIRUS ACADEMY,Third Party Payments,Revenue
Walsall Council,http://opendatacommunities.org/id/metropolitan-district-council/walsall,WC71-516,31/08/2016,Childrens,BLOXWICH ACADEMY,15/08/2016,"2,965.01",66502-TOP UP FUNDING -GRANTS TO SCHOOLS,THE MIRUS ACADEMY,Third Party Payments,Revenue
Walsall Council,http://opendatacommunities.org/id/metropolitan-district-council/walsall,WC71-517,31/08/2016,Childrens,BLOXWICH ACADEMY,15/08/2016,"2,991.16",66502-TOP UP FUNDING -GRANTS TO SCHOOLS,THE MIRUS ACADEMY,Third Party Payments,Revenue
Walsall Council,http://opendatacommunities.org/id/metropolitan-district-council/walsall,WC71-518,31/08/2016,Childrens,BLOXWICH ACADEMY,15/08/2016,"3,499.99",66502-TOP UP FUNDING -GRANTS TO SCHOOLS,THE MIRUS ACADEMY,Third Party Payments,Revenue
Walsall Council,http://opendatacommunities.org/id/metropolitan-district-council/walsall,WC71-519,31/08/2016,Social Care & Inclusion,BLOXWICH COMMUNITY PARTNERSHIP.,22/08/2016,279.00,73372-DOMICILIARY CARE,OP COMMISSIONING,Third Party Payments,Revenue
Walsall Council,http://opendatacommunities.org/id/metropolitan-district-council/walsall,WC71-520,31/08/2016,Social Care & Inclusion,BLOXWICH COMMUNITY PARTNERSHIP.,22/08/2016,351.00,73372-DOMICILIARY CARE,MH COMMISSIONING,Third Party Payments,Revenue
Walsall Council,http://opendatacommunities.org/id/metropolitan-district-council/walsall,WC71-521,31/08/2016,Social Care & Inclusion,BLOXWICH COMMUNITY PARTNERSHIP.,22/08/2016,378.00,73374-SUPPORTED & OTHER ACCOMMODATION,MH COMMISSIONING,Third Party Payments,Revenue
Walsall Council,http://opendatacommunities.org/id/metropolitan-district-council/walsall,WC71-522,31/08/2016,Economy & Environment,BLOXWICH HARDWARE & D I Y,26/08/2016,852.34,62515-MISCELLANEOUS SUPPLIES,DARLASTON DISTRICT CENTRE,Supplies & Services,Revenue
Walsall Council,http://opendatacommunities.org/id/metropolitan-district-council/walsall,WC71-523,31/08/2016,Childrens,BLUE GIRAFFE CHILDCARE,17/08/2016,888.68,63120-CRECHE FACILITIES-SERVICES-FEES,SAFEGUARDING & FAMILY SUPPORT,Supplies & Services,Revenue
Walsall Council,http://opendatacommunities.org/id/metropolitan-district-council/walsall,WC71-524,31/08/2016,Childrens,BLUE GIRAFFE CHILDCARE,26/08/2016,"4,086.03",66505-OTHER-GRANTS TO OTHER ORGS,EARLY YEARS - 3 YR OLDS,Third Party Payments,Revenue
Walsall Council,http://opendatacommunities.org/id/metropolitan-district-council/walsall,WC71-525,31/08/2016,Childrens,BLUE GIRAFFE CHILDCARE,26/08/2016,"11,442.60",66505-OTHER-GRANTS TO OTHER ORGS,EARLY YEARS - 2 YR OLDS,Third Party Payments,Revenue
Walsall Council,http://opendatacommunities.org/id/metropolitan-district-council/walsall,WC71-526,31/08/2016,Social Care & Inclusion,BLUEBIRD CARE (MID STAFFS),15/08/2016,468.00,73374-SUPPORTED & OTHER ACCOMMODATION,OP COMMISSIONING,Third Party Payments,Revenue
Walsall Council,http://opendatacommunities.org/id/metropolitan-district-council/walsall,WC71-527,31/08/2016,Social Care & Inclusion,BLUEBIRD CARE (MID STAFFS),12/08/2016,540.00,73374-SUPPORTED & OTHER ACCOMMODATION,OP COMMISSIONING,Third Party Payments,Revenue
Walsall Council,http://opendatacommunities.org/id/metropolitan-district-council/walsall,WC71-528,31/08/2016,Social Care & Inclusion,BLUEBIRD CARE (MID STAFFS),15/08/2016,540.00,73374-SUPPORTED & OTHER ACCOMMODATION,OP COMMISSIONING,Third Party Payments,Revenue
Walsall Council,http://opendatacommunities.org/id/metropolitan-district-council/walsall,WC71-529,31/08/2016,Social Care & Inclusion,BLUEBIRD CARE (MID STAFFS),15/08/2016,540.00,73372-DOMICILIARY CARE,OP COMMISSIONING,Third Party Payments,Revenue
Walsall Council,http://opendatacommunities.org/id/metropolitan-district-council/walsall,WC71-530,31/08/2016,Social Care & Inclusion,BLUEBIRD CARE (MID STAFFS),22/08/2016,540.00,73372-DOMICILIARY CARE,OP COMMISSIONING,Third Party Payments,Revenue
Walsall Council,http://opendatacommunities.org/id/metropolitan-district-council/walsall,WC71-531,31/08/2016,Social Care & Inclusion,BLUEBIRD CARE (MID STAFFS),15/08/2016,576.00,73372-DOMICILIARY CARE,OP COMMISSIONING,Third Party Payments,Revenue
Walsall Council,http://opendatacommunities.org/id/metropolitan-district-council/walsall,WC71-532,31/08/2016,Social Care & Inclusion,BLUEBIRD CARE (MID STAFFS),15/08/2016,612.00,73372-DOMICILIARY CARE,OP COMMISSIONING,Third Party Payments,Revenue
Walsall Council,http://opendatacommunities.org/id/metropolitan-district-council/walsall,WC71-533,31/08/2016,Economy & Environment,BME UNITED LTD,19/08/2016,"7,774.00",63000-PROFESSIONAL FEES AND SERVICES,SMOKING CESSATION,Supplies & Services,Revenue
Walsall Council,http://opendatacommunities.org/id/metropolitan-district-council/walsall,WC71-534,31/08/2016,Social Care & Inclusion,BOLDMERE COURT CARE HOME,17/08/2016,"1,691.27",73373-RESIDENTIAL & NURSING CARE PLACEMENTS,OP COMMISSIONING,Third Party Payments,Revenue
Walsall Council,http://opendatacommunities.org/id/metropolitan-district-council/walsall,WC71-535,31/08/2016,Social Care & Inclusion,BOLDMERE COURT CARE HOME,17/08/2016,"6,642.86",73373-RESIDENTIAL & NURSING CARE PLACEMENTS,MH COMMISSIONING,Third Party Payments,Revenue
Walsall Council,http://opendatacommunities.org/id/metropolitan-district-council/walsall,WC71-536,31/08/2016,Economy & Environment,BOLINDA UK LTD,11/08/2016,930.93,60501-LIBRARY BOOKS,LIBRARY STOCK AND PERFORMANCE,Supplies & Services,Revenue
Walsall Council,http://opendatacommunities.org/id/metropolitan-district-council/walsall,WC71-537,31/08/2016,Economy & Environment,BONINGALE NURSERIES,05/08/2016,499.64,60500-GENERAL MATERIALS,COUNTRYSIDE MANAGEMENT-OTHER,Supplies & Services,Revenue
Walsall Council,http://opendatacommunities.org/id/metropolitan-district-council/walsall,WC71-538,31/08/2016,Social Care & Inclusion,BOWDEN DERRA PARK,02/08/2016,"10,502.76",73373-RESIDENTIAL & NURSING CARE PLACEMENTS,LD COMMISSIONING,Third Party Payments,Revenue
Walsall Council,http://opendatacommunities.org/id/metropolitan-district-council/walsall,WC71-539,31/08/2016,Social Care & Inclusion,BOWDEN DERRA PARK,26/08/2016,"10,502.76",73373-RESIDENTIAL & NURSING CARE PLACEMENTS,LD COMMISSIONING,Third Party Payments,Revenue
Walsall Council,http://opendatacommunities.org/id/metropolitan-district-council/walsall,WC71-540,31/08/2016,Economy & Environment,BOX CLEVER THEATRE COMPANY,01/08/2016,650.00,62515-MISCELLANEOUS SUPPLIES,A STARS PROJECT,Supplies & Services,Revenue
Walsall Council,http://opendatacommunities.org/id/metropolitan-district-council/walsall,WC71-541,31/08/2016,Change and Governance,BRADLEY ENVIRONMENTAL,26/08/2016,549.00,01006-SITE WORKS MAIN CONTRACTORS,CFR 801 ASBESTOS REMOVAL EAST,Capital,Capital
Walsall Council,http://opendatacommunities.org/id/metropolitan-district-council/walsall,WC71-542,31/08/2016,Economy & Environment,BRADVALE LTD T/A INSPIRE HEALTHCARE SERVICES,18/08/2016,288.88,60008-MAINTENANCE-FURNITURE & EQUIPMENT,WALSALL GALA CENTRE,Supplies & Services,Revenue
Walsall Council,http://opendatacommunities.org/id/metropolitan-district-council/walsall,WC71-543,31/08/2016,Economy & Environment,BRADVALE LTD T/A INSPIRE HEALTHCARE SERVICES,22/08/2016,353.23,60008-MAINTENANCE-FURNITURE & EQUIPMENT,OAK PARK,Supplies & Services,Revenue
Walsall Council,http://opendatacommunities.org/id/metropolitan-district-council/walsall,WC71-544,31/08/2016,Economy & Environment,BRADVALE LTD T/A INSPIRE HEALTHCARE SERVICES,17/08/2016,555.51,60500-GENERAL MATERIALS,ARBORETUM VISITOR CENTRE,Supplies & Services,Revenue
Walsall Council,http://opendatacommunities.org/id/metropolitan-district-council/walsall,WC71-545,31/08/2016,Social Care & Inclusion,REDACTED,04/08/2016,440.00,76422-DIRECT PAYMENTS TO SOCIAL SERVICES CLIENTS,LD COMMISSIONING,Transfer Payments,Revenue
Walsall Council,http://opendatacommunities.org/id/metropolitan-district-council/walsall,WC71-546,31/08/2016,Childrens,REDACTED,15/08/2016,"1,445.32",62515-MISCELLANEOUS SUPPLIES,INTERNAL FOSTER CARE PROVISION,Supplies & Services,Revenue
Walsall Council,http://opendatacommunities.org/id/metropolitan-district-council/walsall,WC71-547,31/08/2016,Childrens,REDACTED,15/08/2016,"1,620.64",74006-HOLIDAY/CHRISTMAS ALLOWANCE-FOSTER CARERS-OTH AGENCY PROVISION,INTERNAL FOSTER CARE PROVISION,Third Party Payments,Revenue
Walsall Council,http://opendatacommunities.org/id/metropolitan-district-council/walsall,WC71-548,31/08/2016,Economy & Environment,BRENNTAG UK LIMITED,15/08/2016,231.00,60503-CHEMICALS & SCIENTIFIC MATS-MATERIALS,OAK PARK,Supplies & Services,Revenue
Walsall Council,http://opendatacommunities.org/id/metropolitan-district-council/walsall,WC71-549,31/08/2016,Economy & Environment,BRENNTAG UK LIMITED,15/08/2016,354.50,60503-CHEMICALS & SCIENTIFIC MATS-MATERIALS,OAK PARK,Supplies & Services,Revenue
Walsall Council,http://opendatacommunities.org/id/metropolitan-district-council/walsall,WC71-550,31/08/2016,Social Care & Inclusion,REDACTED,04/08/2016,"1,337.64",73374-SUPPORTED & OTHER ACCOMMODATION,LD COMMISSIONING,Third Party Payments,Revenue
Walsall Council,http://opendatacommunities.org/id/metropolitan-district-council/walsall,WC71-551,31/08/2016,Social Care & Inclusion,REDACTED,04/08/2016,"1,597.60",73374-SUPPORTED & OTHER ACCOMMODATION,LD COMMISSIONING,Third Party Payments,Revenue
Walsall Council,http://opendatacommunities.org/id/metropolitan-district-council/walsall,WC71-552,31/08/2016,Social Care & Inclusion,REDACTED,04/08/2016,"6,042.40",76422-DIRECT PAYMENTS TO SOCIAL SERVICES CLIENTS,OP COMMISSIONING,Transfer Payments,Revenue
Walsall Council,http://opendatacommunities.org/id/metropolitan-district-council/walsall,WC71-553,31/08/2016,Social Care & Inclusion,REDACTED,04/08/2016,697.00,76422-DIRECT PAYMENTS TO SOCIAL SERVICES CLIENTS,OP COMMISSIONING,Transfer Payments,Revenue
Walsall Council,http://opendatacommunities.org/id/metropolitan-district-council/walsall,WC71-554,31/08/2016,Social Care & Inclusion,BRIDGEWOOD HEALTH CARE LTD,17/08/2016,"5,513.72",73373-RESIDENTIAL & NURSING CARE PLACEMENTS,YADS COMMISSIONING,Third Party Payments,Revenue
Walsall Council,http://opendatacommunities.org/id/metropolitan-district-council/walsall,WC71-555,31/08/2016,Economy & Environment,BRIGHT BOOKS,09/08/2016,"2,999.91",60501-LIBRARY BOOKS,LIBRARY STOCK AND PERFORMANCE,Supplies & Services,Revenue
Walsall Council,http://opendatacommunities.org/id/metropolitan-district-council/walsall,WC71-556,31/08/2016,Childrens,BRIGHT HORIZONS (WISHING WILLOW),17/08/2016,"1,099.63",63120-CRECHE FACILITIES-SERVICES-FEES,FAMILY PLACEMENTS,Supplies & Services,Revenue
Walsall Council,http://opendatacommunities.org/id/metropolitan-district-council/walsall,WC71-557,31/08/2016,Change and Governance,BRISTOW & SUTOR,02/08/2016,301.96,73014-LEGAL FEES-PRIV CONTRACTOR FEES,REVENUES,Third Party Payments,Revenue
Walsall Council,http://opendatacommunities.org/id/metropolitan-district-council/walsall,WC71-558,31/08/2016,Economy & Environment,BRITANNIA APPRENTICESHIPS LTD,22/08/2016,"1,125.00",66500-GRANTS TO OTHER ORGS,RES-WALSALL WORKS,Third Party Payments,Revenue
Walsall Council,http://opendatacommunities.org/id/metropolitan-district-council/walsall,WC71-559,31/08/2016,Economy & Environment,BRITANNIA APPRENTICESHIPS LTD,15/08/2016,"1,500.00",66500-GRANTS TO OTHER ORGS,RES-WALSALL WORKS,Third Party Payments,Revenue
Walsall Council,http://opendatacommunities.org/id/metropolitan-district-council/walsall,WC71-560,31/08/2016,Economy & Environment,BRITISH ELECTRICAL COMPANY,25/08/2016,315.50,63239-EXTERNAL WORKS-PAYMENT TO CONTRACTOR,ARBORETUM,Third Party Payments,Revenue
Walsall Council,http://opendatacommunities.org/id/metropolitan-district-council/walsall,WC71-561,31/08/2016,Economy & Environment,BRITISH ELECTRICAL COMPANY,08/08/2016,"1,527.50",60500-GENERAL MATERIALS,ARBORETUM,Supplies & Services,Revenue
Walsall Council,http://opendatacommunities.org/id/metropolitan-district-council/walsall,WC71-562,31/08/2016,Childrens,BRITISH GAS BUSINESS,18/08/2016,245.46,42000-GAS-ENERGY COSTS,LOCALITY FAMILY SUPPORT-CENTRAL & EAST,Premises,Revenue
Walsall Council,http://opendatacommunities.org/id/metropolitan-district-council/walsall,WC71-563,31/08/2016,Change and Governance,BRITISH GAS BUSINESS,23/08/2016,"1,482.85",42000-GAS-ENERGY COSTS,DARLASTON TOWN HALL,Premises,Revenue
Walsall Council,http://opendatacommunities.org/id/metropolitan-district-council/walsall,WC71-564,31/08/2016,Economy & Environment,BRITISH GAS BUSINESS,11/08/2016,"2,260.33",42000-GAS-ENERGY COSTS,ARBORETUM,Premises,Revenue
Walsall Council,http://opendatacommunities.org/id/metropolitan-district-council/walsall,WC71-565,31/08/2016,Change and Governance,BRITISH GAS BUSINESS,23/08/2016,"2,696.61",42000-GAS-ENERGY COSTS,CHALLENGE BUILDING,Premises,Revenue
Walsall Council,http://opendatacommunities.org/id/metropolitan-district-council/walsall,WC71-566,31/08/2016,Change and Governance,BRITISH GAS BUSINESS,23/08/2016,"5,610.96",42000-GAS-ENERGY COSTS,WALSALL TOWN HALL,Premises,Revenue
Walsall Council,http://opendatacommunities.org/id/metropolitan-district-council/walsall,WC71-567,31/08/2016,Change and Governance,BRITISH GAS BUSINESS,30/08/2016,"8,232.37",42000-GAS-ENERGY COSTS,REDUNDANT BUILDINGS,Premises,Revenue
Walsall Council,http://opendatacommunities.org/id/metropolitan-district-council/walsall,WC71-568,31/08/2016,Change and Governance,BRITISH GAS BUSINESS,30/08/2016,"8,798.25",42000-GAS-ENERGY COSTS,REDUNDANT BUILDINGS,Premises,Revenue
Walsall Council,http://opendatacommunities.org/id/metropolitan-district-council/walsall,WC71-569,31/08/2016,Change and Governance,BRITISH GAS BUSINESS,23/08/2016,"9,395.95",42000-GAS-ENERGY COSTS,CENTRAL OFFICE ACCOMMODATION,Premises,Revenue
Walsall Council,http://opendatacommunities.org/id/metropolitan-district-council/walsall,WC71-570,31/08/2016,Change and Governance,BRITISH GAS BUSINESS,30/08/2016,"12,081.65",42000-GAS-ENERGY COSTS,REDUNDANT BUILDINGS,Premises,Revenue
Walsall Council,http://opendatacommunities.org/id/metropolitan-district-council/walsall,WC71-571,31/08/2016,Change and Governance,BRITISH GAS BUSINESS,31/08/2016,"12,182.94",42000-GAS-ENERGY COSTS,CENTRALISED ENERGY,Premises,Revenue
Walsall Council,http://opendatacommunities.org/id/metropolitan-district-council/walsall,WC71-572,31/08/2016,Change and Governance,BRITISH GAS BUSINESS,23/08/2016,"14,551.44",42000-GAS-ENERGY COSTS,RECHARGEABLE UTILITIES,Premises,Revenue
Walsall Council,http://opendatacommunities.org/id/metropolitan-district-council/walsall,WC71-573,31/08/2016,Change and Governance,BRITISH GAS BUSINESS,31/08/2016,"51,062.91",42000-GAS-ENERGY COSTS,CENTRALISED ENERGY,Premises,Revenue
Walsall Council,http://opendatacommunities.org/id/metropolitan-district-council/walsall,WC71-574,31/08/2016,Change and Governance,BRITISH GAS BUSINESS,31/08/2016,"76,234.92",42000-GAS-ENERGY COSTS,CENTRALISED ENERGY,Premises,Revenue
Walsall Council,http://opendatacommunities.org/id/metropolitan-district-council/walsall,WC71-575,31/08/2016,Change and Governance,BRITISH GAS BUSINESS,30/08/2016,"84,227.30",42000-GAS-ENERGY COSTS,CENTRALISED ENERGY,Premises,Revenue
Walsall Council,http://opendatacommunities.org/id/metropolitan-district-council/walsall,WC71-576,31/08/2016,Change and Governance,BROADLAND GROUP LTD,26/08/2016,"1,000.00",01006-SITE WORKS MAIN CONTRACTORS,CFR 801 ASBESTOS REMOVAL EAST,Capital,Capital
Walsall Council,http://opendatacommunities.org/id/metropolitan-district-council/walsall,WC71-577,31/08/2016,Childrens,BROADWAY TRAVEL CONNECTIONS,03/08/2016,"1,993.00",52000-WITH DRIVER-HIRE OF VEHICLES,SCHOOL TRANSPORT,Transport,Revenue
Walsall Council,http://opendatacommunities.org/id/metropolitan-district-council/walsall,WC71-578,31/08/2016,Economy & Environment,BROWNHILLS ASPHALT & TARMAC LIMITED,09/08/2016,520.00,60500-GENERAL MATERIALS,CEMETERIES CENTRAL ADMINISTRATION,Supplies & Services,Revenue
Walsall Council,http://opendatacommunities.org/id/metropolitan-district-council/walsall,WC71-579,31/08/2016,Change and Governance,BROWNHILLS ASPHALT & TARMAC LIMITED,12/08/2016,"3,321.00",01006-SITE WORKS MAIN CONTRACTORS,CFR 801 ASBESTOS REMOVAL EAST,Capital,Capital
Walsall Council,http://opendatacommunities.org/id/metropolitan-district-council/walsall,WC71-580,31/08/2016,Childrens,BROWNHILLS COMMUNITY ASSOCIATION,26/08/2016,"9,817.18",66505-OTHER-GRANTS TO OTHER ORGS,EARLY YEARS - 3 YR OLDS,Third Party Payments,Revenue
Walsall Council,http://opendatacommunities.org/id/metropolitan-district-council/walsall,WC71-581,31/08/2016,Childrens,BROWNHILLS COMMUNITY ASSOCIATION,26/08/2016,"9,916.92",66505-OTHER-GRANTS TO OTHER ORGS,EARLY YEARS - 2 YR OLDS,Third Party Payments,Revenue
Walsall Council,http://opendatacommunities.org/id/metropolitan-district-council/walsall,WC71-582,31/08/2016,Childrens,BROWNHILLS SCHOOL #2,15/08/2016,"5,000.00",63000-PROFESSIONAL FEES AND SERVICES,ACCESS & ACHIEVEMENT MANAGEMENT,Supplies & Services,Revenue
Walsall Council,http://opendatacommunities.org/id/metropolitan-district-council/walsall,WC71-583,31/08/2016,Social Care & Inclusion,REDACTED,16/08/2016,446.25,76422-DIRECT PAYMENTS TO SOCIAL SERVICES CLIENTS,LD COMMISSIONING,Transfer Payments,Revenue
Walsall Council,http://opendatacommunities.org/id/metropolitan-district-council/walsall,WC71-584,31/08/2016,Social Care & Inclusion,REDACTED,04/08/2016,"1,445.00",76422-DIRECT PAYMENTS TO SOCIAL SERVICES CLIENTS,LD COMMISSIONING,Transfer Payments,Revenue
Walsall Council,http://opendatacommunities.org/id/metropolitan-district-council/walsall,WC71-585,31/08/2016,Economy & Environment,REDACTED,05/08/2016,450.00,63000-PROFESSIONAL FEES AND SERVICES,NAG - TEMPORARY EXHIBITIONS,Supplies & Services,Revenue
Walsall Council,http://opendatacommunities.org/id/metropolitan-district-council/walsall,WC71-586,31/08/2016,Childrens,REDACTED,10/08/2016,650.00,73025-PROFESSIONAL SERVICES-PRIV CONTRACTOR & OTHER AGENCIES,GENERAL MANAGEMENT SUPPORT (INC LEGAL),Third Party Payments,Revenue
Walsall Council,http://opendatacommunities.org/id/metropolitan-district-council/walsall,WC71-587,31/08/2016,Change and Governance,BT,09/08/2016,853.00,63603-COST OF CALLS-TELEPHONES,PROCESSING,Supplies & Services,Revenue
Walsall Council,http://opendatacommunities.org/id/metropolitan-district-council/walsall,WC71-588,31/08/2016,Change and Governance,BT PLC,01/08/2016,349.62,63601-COSTS (NOT INTERNAL RECHARGES)-TELEPHONES,RECHARGEABLE EQUIPMENT,Supplies & Services,Revenue
Walsall Council,http://opendatacommunities.org/id/metropolitan-district-council/walsall,WC71-589,31/08/2016,Change and Governance,BT PLC,24/08/2016,349.62,63601-COSTS (NOT INTERNAL RECHARGES)-TELEPHONES,RECHARGEABLE EQUIPMENT,Supplies & Services,Revenue
Walsall Council,http://opendatacommunities.org/id/metropolitan-district-council/walsall,WC71-590,31/08/2016,Childrens,BT PLC,25/08/2016,457.60,63603-COST OF CALLS-TELEPHONES,LOCALITY FAMILY SUPPORT-CENTRAL & EAST,Supplies & Services,Revenue
Walsall Council,http://opendatacommunities.org/id/metropolitan-district-council/walsall,WC71-591,31/08/2016,Change and Governance,BT PLC,01/08/2016,"1,415.26",63601-COSTS (NOT INTERNAL RECHARGES)-TELEPHONES,CENTRAL COMMUNICATIONS RECHARGES,Supplies & Services,Revenue
Walsall Council,http://opendatacommunities.org/id/metropolitan-district-council/walsall,WC71-592,31/08/2016,Change and Governance,BT PLC,09/08/2016,"1,528.10",63601-COSTS (NOT INTERNAL RECHARGES)-TELEPHONES,CENTRAL COMMUNICATIONS RECHARGES,Supplies & Services,Revenue
Walsall Council,http://opendatacommunities.org/id/metropolitan-district-council/walsall,WC71-593,31/08/2016,Change and Governance,BT PLC,15/08/2016,"14,987.36",63601-COSTS (NOT INTERNAL RECHARGES)-TELEPHONES,CENTRAL COMMUNICATIONS RECHARGES,Supplies & Services,Revenue
Walsall Council,http://opendatacommunities.org/id/metropolitan-district-council/walsall,WC71-594,31/08/2016,Change and Governance,BUILDING RECRUITMENT COMPANY,02/08/2016,"1,099.50",73025-PROFESSIONAL SERVICES-PRIV CONTRACTOR & OTHER AGENCIES,INTEGRATED FACILITIES MANAGEMENT,Third Party Payments,Revenue
Walsall Council,http://opendatacommunities.org/id/metropolitan-district-council/walsall,WC71-595,31/08/2016,Change and Governance,BUILDING RECRUITMENT COMPANY,05/08/2016,"1,099.50",73025-PROFESSIONAL SERVICES-PRIV CONTRACTOR & OTHER AGENCIES,INTEGRATED FACILITIES MANAGEMENT,Third Party Payments,Revenue
Walsall Council,http://opendatacommunities.org/id/metropolitan-district-council/walsall,WC71-596,31/08/2016,Change and Governance,BUILDING RECRUITMENT COMPANY,15/08/2016,"1,102.75",73025-PROFESSIONAL SERVICES-PRIV CONTRACTOR & OTHER AGENCIES,INTEGRATED FACILITIES MANAGEMENT,Third Party Payments,Revenue
Walsall Council,http://opendatacommunities.org/id/metropolitan-district-council/walsall,WC71-597,31/08/2016,Change and Governance,BUILDING RECRUITMENT COMPANY,02/08/2016,"1,104.75",73025-PROFESSIONAL SERVICES-PRIV CONTRACTOR & OTHER AGENCIES,INTEGRATED FACILITIES MANAGEMENT,Third Party Payments,Revenue
Walsall Council,http://opendatacommunities.org/id/metropolitan-district-council/walsall,WC71-598,31/08/2016,Change and Governance,BUILDING RECRUITMENT COMPANY,19/08/2016,"1,129.50",73025-PROFESSIONAL SERVICES-PRIV CONTRACTOR & OTHER AGENCIES,INTEGRATED FACILITIES MANAGEMENT,Third Party Payments,Revenue
Walsall Council,http://opendatacommunities.org/id/metropolitan-district-council/walsall,WC71-599,31/08/2016,Change and Governance,BUILDING RECRUITMENT COMPANY,01/08/2016,"1,136.00",73025-PROFESSIONAL SERVICES-PRIV CONTRACTOR & OTHER AGENCIES,INTEGRATED FACILITIES MANAGEMENT,Third Party Payments,Revenue
Walsall Council,http://opendatacommunities.org/id/metropolitan-district-council/walsall,WC71-600,31/08/2016,Social Care & Inclusion,BUPA CARE HOMES (CFHCARE) LTD,17/08/2016,"1,649.80",73373-RESIDENTIAL & NURSING CARE PLACEMENTS,OP COMMISSIONING,Third Party Payments,Revenue
Walsall Council,http://opendatacommunities.org/id/metropolitan-district-council/walsall,WC71-601,31/08/2016,Social Care & Inclusion,BUPA CARE HOMES (CFHCARE) LTD,17/08/2016,"1,882.36",73373-RESIDENTIAL & NURSING CARE PLACEMENTS,OP COMMISSIONING,Third Party Payments,Revenue
Walsall Council,http://opendatacommunities.org/id/metropolitan-district-council/walsall,WC71-602,31/08/2016,Social Care & Inclusion,BUPA CARE HOMES (CFHCARE) LTD,17/08/2016,"2,001.24",73373-RESIDENTIAL & NURSING CARE PLACEMENTS,OP COMMISSIONING,Third Party Payments,Revenue
Walsall Council,http://opendatacommunities.org/id/metropolitan-district-council/walsall,WC71-603,31/08/2016,Social Care & Inclusion,BUPA CARE HOMES (CFHCARE) LTD,17/08/2016,"2,001.24",73373-RESIDENTIAL & NURSING CARE PLACEMENTS,OP COMMISSIONING,Third Party Payments,Revenue
Walsall Council,http://opendatacommunities.org/id/metropolitan-district-council/walsall,WC71-604,31/08/2016,Social Care & Inclusion,BUPA CARE HOMES (CFHCARE) LTD,17/08/2016,"2,001.24",73373-RESIDENTIAL & NURSING CARE PLACEMENTS,OP COMMISSIONING,Third Party Payments,Revenue
Walsall Council,http://opendatacommunities.org/id/metropolitan-district-council/walsall,WC71-605,31/08/2016,Social Care & Inclusion,BUPA CARE HOMES (CFHCARE) LTD,17/08/2016,"2,001.24",73373-RESIDENTIAL & NURSING CARE PLACEMENTS,OP COMMISSIONING,Third Party Payments,Revenue
Walsall Council,http://opendatacommunities.org/id/metropolitan-district-council/walsall,WC71-606,31/08/2016,Social Care & Inclusion,BUPA CARE HOMES (CFHCARE) LTD,17/08/2016,"2,001.24",73373-RESIDENTIAL & NURSING CARE PLACEMENTS,OP COMMISSIONING,Third Party Payments,Revenue
Walsall Council,http://opendatacommunities.org/id/metropolitan-district-council/walsall,WC71-607,31/08/2016,Economy & Environment,BURTON HOSPITALS NHS FOUNDATION TRUST,19/08/2016,278.56,63000-PROFESSIONAL FEES AND SERVICES,SEXUAL HEALTH,Supplies & Services,Revenue
Walsall Council,http://opendatacommunities.org/id/metropolitan-district-council/walsall,WC71-608,31/08/2016,Social Care & Inclusion,BUSH HOME LTD,02/08/2016,"1,620.00",73373-RESIDENTIAL & NURSING CARE PLACEMENTS,OP COMMISSIONING,Third Party Payments,Revenue
Walsall Council,http://opendatacommunities.org/id/metropolitan-district-council/walsall,WC71-609,31/08/2016,Social Care & Inclusion,BUSH HOME LTD,26/08/2016,"1,620.00",73373-RESIDENTIAL & NURSING CARE PLACEMENTS,OP COMMISSIONING,Third Party Payments,Revenue
Walsall Council,http://opendatacommunities.org/id/metropolitan-district-council/walsall,WC71-610,31/08/2016,Social Care & Inclusion,BUSH HOME LTD,26/08/2016,"1,620.00",73373-RESIDENTIAL & NURSING CARE PLACEMENTS,OP COMMISSIONING,Third Party Payments,Revenue
Walsall Council,http://opendatacommunities.org/id/metropolitan-district-council/walsall,WC71-611,31/08/2016,Social Care & Inclusion,BUSH HOME LTD,26/08/2016,"1,620.00",73373-RESIDENTIAL & NURSING CARE PLACEMENTS,OP COMMISSIONING,Third Party Payments,Revenue
Walsall Council,http://opendatacommunities.org/id/metropolitan-district-council/walsall,WC71-612,31/08/2016,Social Care & Inclusion,BUSH HOME LTD,26/08/2016,"1,620.00",73373-RESIDENTIAL & NURSING CARE PLACEMENTS,OP COMMISSIONING,Third Party Payments,Revenue
Walsall Council,http://opendatacommunities.org/id/metropolitan-district-council/walsall,WC71-613,31/08/2016,Social Care & Inclusion,BUSH HOME LTD,26/08/2016,"1,620.00",73373-RESIDENTIAL & NURSING CARE PLACEMENTS,OP COMMISSIONING,Third Party Payments,Revenue
Walsall Council,http://opendatacommunities.org/id/metropolitan-district-council/walsall,WC71-614,31/08/2016,Social Care & Inclusion,BUSH HOME LTD,26/08/2016,"1,620.00",73373-RESIDENTIAL & NURSING CARE PLACEMENTS,OP COMMISSIONING,Third Party Payments,Revenue
Walsall Council,http://opendatacommunities.org/id/metropolitan-district-council/walsall,WC71-615,31/08/2016,Social Care & Inclusion,BUSH HOME LTD,26/08/2016,"1,620.00",73373-RESIDENTIAL & NURSING CARE PLACEMENTS,OP COMMISSIONING,Third Party Payments,Revenue
Walsall Council,http://opendatacommunities.org/id/metropolitan-district-council/walsall,WC71-616,31/08/2016,Social Care & Inclusion,BUSH HOME LTD,26/08/2016,"1,800.00",73373-RESIDENTIAL & NURSING CARE PLACEMENTS,OP COMMISSIONING,Third Party Payments,Revenue
Walsall Council,http://opendatacommunities.org/id/metropolitan-district-council/walsall,WC71-617,31/08/2016,Social Care & Inclusion,BUSH HOME LTD,26/08/2016,"1,800.00",73373-RESIDENTIAL & NURSING CARE PLACEMENTS,OP COMMISSIONING,Third Party Payments,Revenue
Walsall Council,http://opendatacommunities.org/id/metropolitan-district-council/walsall,WC71-618,31/08/2016,Social Care & Inclusion,BUSH HOME LTD,26/08/2016,"1,800.00",73373-RESIDENTIAL & NURSING CARE PLACEMENTS,OP COMMISSIONING,Third Party Payments,Revenue
Walsall Council,http://opendatacommunities.org/id/metropolitan-district-council/walsall,WC71-619,31/08/2016,Social Care & Inclusion,BUSH HOME LTD,26/08/2016,"1,800.00",73373-RESIDENTIAL & NURSING CARE PLACEMENTS,OP COMMISSIONING,Third Party Payments,Revenue
Walsall Council,http://opendatacommunities.org/id/metropolitan-district-council/walsall,WC71-620,31/08/2016,Social Care & Inclusion,BUSH HOME LTD,26/08/2016,"1,800.00",73373-RESIDENTIAL & NURSING CARE PLACEMENTS,OP COMMISSIONING,Third Party Payments,Revenue
Walsall Council,http://opendatacommunities.org/id/metropolitan-district-council/walsall,WC71-621,31/08/2016,Social Care & Inclusion,BUSH HOME LTD,26/08/2016,"1,800.00",73373-RESIDENTIAL & NURSING CARE PLACEMENTS,OP COMMISSIONING,Third Party Payments,Revenue
Walsall Council,http://opendatacommunities.org/id/metropolitan-district-council/walsall,WC71-622,31/08/2016,Social Care & Inclusion,BUSH HOME LTD,26/08/2016,"1,800.00",73373-RESIDENTIAL & NURSING CARE PLACEMENTS,OP COMMISSIONING,Third Party Payments,Revenue
Walsall Council,http://opendatacommunities.org/id/metropolitan-district-council/walsall,WC71-623,31/08/2016,Social Care & Inclusion,BUSH HOME LTD,26/08/2016,"1,800.00",73373-RESIDENTIAL & NURSING CARE PLACEMENTS,OP COMMISSIONING,Third Party Payments,Revenue
Walsall Council,http://opendatacommunities.org/id/metropolitan-district-council/walsall,WC71-624,31/08/2016,Social Care & Inclusion,BUSH HOME LTD,26/08/2016,"1,800.00",73373-RESIDENTIAL & NURSING CARE PLACEMENTS,OP COMMISSIONING,Third Party Payments,Revenue
Walsall Council,http://opendatacommunities.org/id/metropolitan-district-council/walsall,WC71-625,31/08/2016,Social Care & Inclusion,BUSH HOME LTD,26/08/2016,"1,800.00",73373-RESIDENTIAL & NURSING CARE PLACEMENTS,OP COMMISSIONING,Third Party Payments,Revenue
Walsall Council,http://opendatacommunities.org/id/metropolitan-district-council/walsall,WC71-626,31/08/2016,Social Care & Inclusion,BUSH HOME LTD,26/08/2016,"1,800.00",73373-RESIDENTIAL & NURSING CARE PLACEMENTS,OP COMMISSIONING,Third Party Payments,Revenue
Walsall Council,http://opendatacommunities.org/id/metropolitan-district-council/walsall,WC71-627,31/08/2016,Social Care & Inclusion,BUSH HOME LTD,26/08/2016,"1,800.00",73373-RESIDENTIAL & NURSING CARE PLACEMENTS,OP COMMISSIONING,Third Party Payments,Revenue
Walsall Council,http://opendatacommunities.org/id/metropolitan-district-council/walsall,WC71-628,31/08/2016,Social Care & Inclusion,BUSH HOME LTD,26/08/2016,"1,800.00",73373-RESIDENTIAL & NURSING CARE PLACEMENTS,OP COMMISSIONING,Third Party Payments,Revenue
Walsall Council,http://opendatacommunities.org/id/metropolitan-district-council/walsall,WC71-629,31/08/2016,Social Care & Inclusion,BUSH HOME LTD,26/08/2016,"1,800.00",73373-RESIDENTIAL & NURSING CARE PLACEMENTS,OP COMMISSIONING,Third Party Payments,Revenue
Walsall Council,http://opendatacommunities.org/id/metropolitan-district-council/walsall,WC71-630,31/08/2016,Childrens,BUSY BEES CHILDCARE LTD,26/08/2016,"1,525.68",66505-OTHER-GRANTS TO OTHER ORGS,EARLY YEARS - 2 YR OLDS,Third Party Payments,Revenue
Walsall Council,http://opendatacommunities.org/id/metropolitan-district-council/walsall,WC71-631,31/08/2016,Childrens,BUSY BEES CHILDCARE LTD,26/08/2016,"3,452.76",66505-OTHER-GRANTS TO OTHER ORGS,EARLY YEARS - 3 YR OLDS,Third Party Payments,Revenue
Walsall Council,http://opendatacommunities.org/id/metropolitan-district-council/walsall,WC71-632,31/08/2016,Social Care & Inclusion,C & V ORCHARD MANOR LTD,02/08/2016,"1,620.00",73373-RESIDENTIAL & NURSING CARE PLACEMENTS,OP COMMISSIONING,Third Party Payments,Revenue
Walsall Council,http://opendatacommunities.org/id/metropolitan-district-council/walsall,WC71-633,31/08/2016,Social Care & Inclusion,C & V ORCHARD MANOR LTD,02/08/2016,"1,620.00",73373-RESIDENTIAL & NURSING CARE PLACEMENTS,LD COMMISSIONING,Third Party Payments,Revenue
Walsall Council,http://opendatacommunities.org/id/metropolitan-district-council/walsall,WC71-634,31/08/2016,Social Care & Inclusion,C & V ORCHARD MANOR LTD,02/08/2016,"1,620.00",73373-RESIDENTIAL & NURSING CARE PLACEMENTS,OP COMMISSIONING,Third Party Payments,Revenue
Walsall Council,http://opendatacommunities.org/id/metropolitan-district-council/walsall,WC71-635,31/08/2016,Social Care & Inclusion,C & V ORCHARD MANOR LTD,02/08/2016,"1,620.00",73373-RESIDENTIAL & NURSING CARE PLACEMENTS,OP COMMISSIONING,Third Party Payments,Revenue
Walsall Council,http://opendatacommunities.org/id/metropolitan-district-council/walsall,WC71-636,31/08/2016,Social Care & Inclusion,C & V ORCHARD MANOR LTD,02/08/2016,"1,620.60",73373-RESIDENTIAL & NURSING CARE PLACEMENTS,OP COMMISSIONING,Third Party Payments,Revenue
Walsall Council,http://opendatacommunities.org/id/metropolitan-district-council/walsall,WC71-637,31/08/2016,Social Care & Inclusion,C & V ORCHARD MANOR LTD,02/08/2016,"1,800.00",73373-RESIDENTIAL & NURSING CARE PLACEMENTS,OP COMMISSIONING,Third Party Payments,Revenue
Walsall Council,http://opendatacommunities.org/id/metropolitan-district-council/walsall,WC71-638,31/08/2016,Social Care & Inclusion,C & V ORCHARD MANOR LTD,02/08/2016,"1,800.00",73373-RESIDENTIAL & NURSING CARE PLACEMENTS,OP COMMISSIONING,Third Party Payments,Revenue
Walsall Council,http://opendatacommunities.org/id/metropolitan-district-council/walsall,WC71-639,31/08/2016,Social Care & Inclusion,C & V ORCHARD MANOR LTD,02/08/2016,"1,800.00",73373-RESIDENTIAL & NURSING CARE PLACEMENTS,MH COMMISSIONING,Third Party Payments,Revenue
Walsall Council,http://opendatacommunities.org/id/metropolitan-district-council/walsall,WC71-640,31/08/2016,Social Care & Inclusion,C & V ORCHARD MANOR LTD,10/08/2016,"1,800.00",73373-RESIDENTIAL & NURSING CARE PLACEMENTS,OP COMMISSIONING,Third Party Payments,Revenue
Walsall Council,http://opendatacommunities.org/id/metropolitan-district-council/walsall,WC71-641,31/08/2016,Social Care & Inclusion,C & V ORCHARD MANOR LTD,10/08/2016,"2,250.00",73373-RESIDENTIAL & NURSING CARE PLACEMENTS,OP COMMISSIONING,Third Party Payments,Revenue
Walsall Council,http://opendatacommunities.org/id/metropolitan-district-council/walsall,WC71-642,31/08/2016,Social Care & Inclusion,C & V ORCHARD MANOR LTD,02/08/2016,"3,670.13",73373-RESIDENTIAL & NURSING CARE PLACEMENTS,MH COMMISSIONING,Third Party Payments,Revenue
Walsall Council,http://opendatacommunities.org/id/metropolitan-district-council/walsall,WC71-643,31/08/2016,Social Care & Inclusion,C & V ORCHARD RESIDENTIAL LTD,10/08/2016,289.29,73373-RESIDENTIAL & NURSING CARE PLACEMENTS,OP COMMISSIONING,Third Party Payments,Revenue
Walsall Council,http://opendatacommunities.org/id/metropolitan-district-council/walsall,WC71-644,31/08/2016,Social Care & Inclusion,C & V ORCHARD RESIDENTIAL LTD,10/08/2016,"1,388.57",73373-RESIDENTIAL & NURSING CARE PLACEMENTS,OP COMMISSIONING,Third Party Payments,Revenue
Walsall Council,http://opendatacommunities.org/id/metropolitan-district-council/walsall,WC71-645,31/08/2016,Social Care & Inclusion,C & V ORCHARD RESIDENTIAL LTD,10/08/2016,"1,412.20",73373-RESIDENTIAL & NURSING CARE PLACEMENTS,OP COMMISSIONING,Third Party Payments,Revenue
Walsall Council,http://opendatacommunities.org/id/metropolitan-district-council/walsall,WC71-646,31/08/2016,Social Care & Inclusion,C & V ORCHARD RESIDENTIAL LTD,10/08/2016,"1,532.28",73373-RESIDENTIAL & NURSING CARE PLACEMENTS,OP COMMISSIONING,Third Party Payments,Revenue
Walsall Council,http://opendatacommunities.org/id/metropolitan-district-council/walsall,WC71-647,31/08/2016,Social Care & Inclusion,C & V ORCHARD RESIDENTIAL LTD,10/08/2016,"1,568.64",73373-RESIDENTIAL & NURSING CARE PLACEMENTS,OP COMMISSIONING,Third Party Payments,Revenue
Walsall Council,http://opendatacommunities.org/id/metropolitan-district-council/walsall,WC71-648,31/08/2016,Social Care & Inclusion,C & V ORCHARD RESIDENTIAL LTD,02/08/2016,"1,620.00",73373-RESIDENTIAL & NURSING CARE PLACEMENTS,OP COMMISSIONING,Third Party Payments,Revenue
Walsall Council,http://opendatacommunities.org/id/metropolitan-district-council/walsall,WC71-649,31/08/2016,Social Care & Inclusion,C & V ORCHARD RESIDENTIAL LTD,02/08/2016,"1,620.00",73373-RESIDENTIAL & NURSING CARE PLACEMENTS,OP COMMISSIONING,Third Party Payments,Revenue
Walsall Council,http://opendatacommunities.org/id/metropolitan-district-council/walsall,WC71-650,31/08/2016,Social Care & Inclusion,C & V ORCHARD RESIDENTIAL LTD,10/08/2016,"1,620.00",73373-RESIDENTIAL & NURSING CARE PLACEMENTS,OP COMMISSIONING,Third Party Payments,Revenue
Walsall Council,http://opendatacommunities.org/id/metropolitan-district-council/walsall,WC71-651,31/08/2016,Social Care & Inclusion,C & V ORCHARD RESIDENTIAL LTD,10/08/2016,"1,620.00",73373-RESIDENTIAL & NURSING CARE PLACEMENTS,OP COMMISSIONING,Third Party Payments,Revenue
Walsall Council,http://opendatacommunities.org/id/metropolitan-district-council/walsall,WC71-652,31/08/2016,Social Care & Inclusion,C & V ORCHARD RESIDENTIAL LTD,26/08/2016,"1,620.00",73373-RESIDENTIAL & NURSING CARE PLACEMENTS,OP COMMISSIONING,Third Party Payments,Revenue
Walsall Council,http://opendatacommunities.org/id/metropolitan-district-council/walsall,WC71-653,31/08/2016,Social Care & Inclusion,C & V ORCHARD RESIDENTIAL LTD,26/08/2016,"1,620.00",73373-RESIDENTIAL & NURSING CARE PLACEMENTS,OP COMMISSIONING,Third Party Payments,Revenue
Walsall Council,http://opendatacommunities.org/id/metropolitan-district-council/walsall,WC71-654,31/08/2016,Social Care & Inclusion,C & V ORCHARD RESIDENTIAL LTD,26/08/2016,"1,620.00",73373-RESIDENTIAL & NURSING CARE PLACEMENTS,OP COMMISSIONING,Third Party Payments,Revenue
Walsall Council,http://opendatacommunities.org/id/metropolitan-district-council/walsall,WC71-655,31/08/2016,Social Care & Inclusion,C & V ORCHARD RESIDENTIAL LTD,02/08/2016,"1,799.96",73373-RESIDENTIAL & NURSING CARE PLACEMENTS,OP COMMISSIONING,Third Party Payments,Revenue
Walsall Council,http://opendatacommunities.org/id/metropolitan-district-council/walsall,WC71-656,31/08/2016,Social Care & Inclusion,C & V ORCHARD RESIDENTIAL LTD,26/08/2016,"1,799.96",73373-RESIDENTIAL & NURSING CARE PLACEMENTS,OP COMMISSIONING,Third Party Payments,Revenue
Walsall Council,http://opendatacommunities.org/id/metropolitan-district-council/walsall,WC71-657,31/08/2016,Social Care & Inclusion,C & V ORCHARD RESIDENTIAL LTD,02/08/2016,"1,800.00",73373-RESIDENTIAL & NURSING CARE PLACEMENTS,OP COMMISSIONING,Third Party Payments,Revenue
Walsall Council,http://opendatacommunities.org/id/metropolitan-district-council/walsall,WC71-658,31/08/2016,Social Care & Inclusion,C & V ORCHARD RESIDENTIAL LTD,02/08/2016,"1,800.00",73373-RESIDENTIAL & NURSING CARE PLACEMENTS,OP COMMISSIONING,Third Party Payments,Revenue
Walsall Council,http://opendatacommunities.org/id/metropolitan-district-council/walsall,WC71-659,31/08/2016,Social Care & Inclusion,C & V ORCHARD RESIDENTIAL LTD,02/08/2016,"1,800.00",73373-RESIDENTIAL & NURSING CARE PLACEMENTS,OP COMMISSIONING,Third Party Payments,Revenue
Walsall Council,http://opendatacommunities.org/id/metropolitan-district-council/walsall,WC71-660,31/08/2016,Social Care & Inclusion,C & V ORCHARD RESIDENTIAL LTD,02/08/2016,"1,800.00",73373-RESIDENTIAL & NURSING CARE PLACEMENTS,OP COMMISSIONING,Third Party Payments,Revenue
Walsall Council,http://opendatacommunities.org/id/metropolitan-district-council/walsall,WC71-661,31/08/2016,Social Care & Inclusion,C & V ORCHARD RESIDENTIAL LTD,02/08/2016,"1,800.00",73373-RESIDENTIAL & NURSING CARE PLACEMENTS,OP COMMISSIONING,Third Party Payments,Revenue
Walsall Council,http://opendatacommunities.org/id/metropolitan-district-council/walsall,WC71-662,31/08/2016,Social Care & Inclusion,C & V ORCHARD RESIDENTIAL LTD,02/08/2016,"1,800.00",73373-RESIDENTIAL & NURSING CARE PLACEMENTS,OP COMMISSIONING,Third Party Payments,Revenue
Walsall Council,http://opendatacommunities.org/id/metropolitan-district-council/walsall,WC71-663,31/08/2016,Social Care & Inclusion,C & V ORCHARD RESIDENTIAL LTD,02/08/2016,"1,800.00",73373-RESIDENTIAL & NURSING CARE PLACEMENTS,OP COMMISSIONING,Third Party Payments,Revenue
Walsall Council,http://opendatacommunities.org/id/metropolitan-district-council/walsall,WC71-664,31/08/2016,Social Care & Inclusion,C & V ORCHARD RESIDENTIAL LTD,02/08/2016,"1,800.00",73373-RESIDENTIAL & NURSING CARE PLACEMENTS,OP COMMISSIONING,Third Party Payments,Revenue
Walsall Council,http://opendatacommunities.org/id/metropolitan-district-council/walsall,WC71-665,31/08/2016,Social Care & Inclusion,C & V ORCHARD RESIDENTIAL LTD,02/08/2016,"1,800.00",73373-RESIDENTIAL & NURSING CARE PLACEMENTS,OP COMMISSIONING,Third Party Payments,Revenue
Walsall Council,http://opendatacommunities.org/id/metropolitan-district-council/walsall,WC71-666,31/08/2016,Social Care & Inclusion,C & V ORCHARD RESIDENTIAL LTD,02/08/2016,"1,800.00",73373-RESIDENTIAL & NURSING CARE PLACEMENTS,OP COMMISSIONING,Third Party Payments,Revenue
Walsall Council,http://opendatacommunities.org/id/metropolitan-district-council/walsall,WC71-667,31/08/2016,Social Care & Inclusion,C & V ORCHARD RESIDENTIAL LTD,02/08/2016,"1,800.00",73373-RESIDENTIAL & NURSING CARE PLACEMENTS,OP COMMISSIONING,Third Party Payments,Revenue
Walsall Council,http://opendatacommunities.org/id/metropolitan-district-council/walsall,WC71-668,31/08/2016,Social Care & Inclusion,C & V ORCHARD RESIDENTIAL LTD,02/08/2016,"1,800.00",73373-RESIDENTIAL & NURSING CARE PLACEMENTS,OP COMMISSIONING,Third Party Payments,Revenue
Walsall Council,http://opendatacommunities.org/id/metropolitan-district-council/walsall,WC71-669,31/08/2016,Social Care & Inclusion,C & V ORCHARD RESIDENTIAL LTD,10/08/2016,"1,800.00",73373-RESIDENTIAL & NURSING CARE PLACEMENTS,OP COMMISSIONING,Third Party Payments,Revenue
Walsall Council,http://opendatacommunities.org/id/metropolitan-district-council/walsall,WC71-670,31/08/2016,Social Care & Inclusion,C & V ORCHARD RESIDENTIAL LTD,26/08/2016,"1,800.00",73373-RESIDENTIAL & NURSING CARE PLACEMENTS,OP COMMISSIONING,Third Party Payments,Revenue
Walsall Council,http://opendatacommunities.org/id/metropolitan-district-council/walsall,WC71-671,31/08/2016,Social Care & Inclusion,C & V ORCHARD RESIDENTIAL LTD,26/08/2016,"1,800.00",73373-RESIDENTIAL & NURSING CARE PLACEMENTS,OP COMMISSIONING,Third Party Payments,Revenue
Walsall Council,http://opendatacommunities.org/id/metropolitan-district-council/walsall,WC71-672,31/08/2016,Social Care & Inclusion,C & V ORCHARD RESIDENTIAL LTD,26/08/2016,"1,800.00",73373-RESIDENTIAL & NURSING CARE PLACEMENTS,OP COMMISSIONING,Third Party Payments,Revenue
Walsall Council,http://opendatacommunities.org/id/metropolitan-district-council/walsall,WC71-673,31/08/2016,Social Care & Inclusion,C & V ORCHARD RESIDENTIAL LTD,26/08/2016,"1,800.00",73373-RESIDENTIAL & NURSING CARE PLACEMENTS,OP COMMISSIONING,Third Party Payments,Revenue
Walsall Council,http://opendatacommunities.org/id/metropolitan-district-council/walsall,WC71-674,31/08/2016,Social Care & Inclusion,C & V ORCHARD RESIDENTIAL LTD,26/08/2016,"1,800.00",73373-RESIDENTIAL & NURSING CARE PLACEMENTS,OP COMMISSIONING,Third Party Payments,Revenue
Walsall Council,http://opendatacommunities.org/id/metropolitan-district-council/walsall,WC71-675,31/08/2016,Social Care & Inclusion,C & V ORCHARD RESIDENTIAL LTD,26/08/2016,"1,800.00",73373-RESIDENTIAL & NURSING CARE PLACEMENTS,OP COMMISSIONING,Third Party Payments,Revenue
Walsall Council,http://opendatacommunities.org/id/metropolitan-district-council/walsall,WC71-676,31/08/2016,Social Care & Inclusion,C & V ORCHARD RESIDENTIAL LTD,26/08/2016,"1,800.00",73373-RESIDENTIAL & NURSING CARE PLACEMENTS,OP COMMISSIONING,Third Party Payments,Revenue
Walsall Council,http://opendatacommunities.org/id/metropolitan-district-council/walsall,WC71-677,31/08/2016,Social Care & Inclusion,C & V ORCHARD RESIDENTIAL LTD,26/08/2016,"1,800.00",73373-RESIDENTIAL & NURSING CARE PLACEMENTS,OP COMMISSIONING,Third Party Payments,Revenue
Walsall Council,http://opendatacommunities.org/id/metropolitan-district-council/walsall,WC71-678,31/08/2016,Social Care & Inclusion,C & V ORCHARD RESIDENTIAL LTD,26/08/2016,"1,800.00",73373-RESIDENTIAL & NURSING CARE PLACEMENTS,OP COMMISSIONING,Third Party Payments,Revenue
Walsall Council,http://opendatacommunities.org/id/metropolitan-district-council/walsall,WC71-679,31/08/2016,Social Care & Inclusion,C & V ORCHARD RESIDENTIAL LTD,26/08/2016,"1,800.00",73373-RESIDENTIAL & NURSING CARE PLACEMENTS,OP COMMISSIONING,Third Party Payments,Revenue
Walsall Council,http://opendatacommunities.org/id/metropolitan-district-council/walsall,WC71-680,31/08/2016,Social Care & Inclusion,C & V ORCHARD RESIDENTIAL LTD,26/08/2016,"1,800.00",73373-RESIDENTIAL & NURSING CARE PLACEMENTS,OP COMMISSIONING,Third Party Payments,Revenue
Walsall Council,http://opendatacommunities.org/id/metropolitan-district-council/walsall,WC71-681,31/08/2016,Social Care & Inclusion,C & V ORCHARD RESIDENTIAL LTD,26/08/2016,"2,250.00",73373-RESIDENTIAL & NURSING CARE PLACEMENTS,OP COMMISSIONING,Third Party Payments,Revenue
Walsall Council,http://opendatacommunities.org/id/metropolitan-district-council/walsall,WC71-682,31/08/2016,Social Care & Inclusion,C & V ORCHARD RESIDENTIAL LTD,26/08/2016,"5,721.40",73373-RESIDENTIAL & NURSING CARE PLACEMENTS,MH COMMISSIONING,Third Party Payments,Revenue
Walsall Council,http://opendatacommunities.org/id/metropolitan-district-council/walsall,WC71-683,31/08/2016,Economy & Environment,C ART ART TRANSPORT LTD,05/08/2016,345.00,73032-TRANSPORTATION-PRIV CONTRACTOR FEES,NAG - TEMPORARY EXHIBITIONS,Third Party Payments,Revenue
Walsall Council,http://opendatacommunities.org/id/metropolitan-district-council/walsall,WC71-684,31/08/2016,Economy & Environment,C ART ART TRANSPORT LTD,05/08/2016,615.00,73032-TRANSPORTATION-PRIV CONTRACTOR FEES,NAG - TEMPORARY EXHIBITIONS,Third Party Payments,Revenue
Walsall Council,http://opendatacommunities.org/id/metropolitan-district-council/walsall,WC71-685,31/08/2016,Childrens,REDACTED,15/08/2016,"4,317.64",62515-MISCELLANEOUS SUPPLIES,INTERNAL FOSTER CARE PROVISION,Supplies & Services,Revenue
Walsall Council,http://opendatacommunities.org/id/metropolitan-district-council/walsall,WC71-686,31/08/2016,Childrens,REDACTED,15/08/2016,"4,979.25",74006-HOLIDAY/CHRISTMAS ALLOWANCE-FOSTER CARERS-OTH AGENCY PROVISION,INTERNAL FOSTER CARE PROVISION,Third Party Payments,Revenue
Walsall Council,http://opendatacommunities.org/id/metropolitan-district-council/walsall,WC71-687,31/08/2016,Childrens,REDACTED,15/08/2016,"1,445.32",62515-MISCELLANEOUS SUPPLIES,INTERNAL FOSTER CARE PROVISION,Supplies & Services,Revenue
Walsall Council,http://opendatacommunities.org/id/metropolitan-district-council/walsall,WC71-688,31/08/2016,Childrens,REDACTED,15/08/2016,"1,770.64",74006-HOLIDAY/CHRISTMAS ALLOWANCE-FOSTER CARERS-OTH AGENCY PROVISION,INTERNAL FOSTER CARE PROVISION,Third Party Payments,Revenue
Walsall Council,http://opendatacommunities.org/id/metropolitan-district-council/walsall,WC71-689,31/08/2016,Economy & Environment,C P DAVIDSON & SONS LTD,01/08/2016,464.00,73025-PROFESSIONAL SERVICES-PRIV CONTRACTOR & OTHER AGENCIES,FLEET,Third Party Payments,Revenue
Walsall Council,http://opendatacommunities.org/id/metropolitan-district-council/walsall,WC71-690,31/08/2016,Economy & Environment,C P DAVIDSON & SONS LTD,01/08/2016,631.96,60514-MATERIALS TO STORES,FLEET PARTS STOCK ACCOUNT,Supplies & Services,Revenue
Walsall Council,http://opendatacommunities.org/id/metropolitan-district-council/walsall,WC71-691,31/08/2016,Economy & Environment,C P DAVIDSON & SONS LTD,12/08/2016,654.89,60500-GENERAL MATERIALS,FLEET,Supplies & Services,Revenue
Walsall Council,http://opendatacommunities.org/id/metropolitan-district-council/walsall,WC71-692,31/08/2016,Economy & Environment,C P DAVIDSON & SONS LTD,12/08/2016,"2,850.28",73025-PROFESSIONAL SERVICES-PRIV CONTRACTOR & OTHER AGENCIES,FLEET,Third Party Payments,Revenue
Walsall Council,http://opendatacommunities.org/id/metropolitan-district-council/walsall,WC71-693,31/08/2016,Childrens,REDACTED,26/08/2016,"1,151.39",74006-HOLIDAY/CHRISTMAS ALLOWANCE-FOSTER CARERS-OTH AGENCY PROVISION,INTERNAL FOSTER CARE PROVISION,Third Party Payments,Revenue
Walsall Council,http://opendatacommunities.org/id/metropolitan-district-council/walsall,WC71-694,31/08/2016,Childrens,REDACTED,01/08/2016,"1,295.67",74006-HOLIDAY/CHRISTMAS ALLOWANCE-FOSTER CARERS-OTH AGENCY PROVISION,INTERNAL FOSTER CARE PROVISION,Third Party Payments,Revenue
Walsall Council,http://opendatacommunities.org/id/metropolitan-district-council/walsall,WC71-695,31/08/2016,Change and Governance,CADLINE LTD,19/08/2016,"26,995.00",63820-RECHARGE FOR MAINTENANCE/APPLICATION COSTS-COMPUTER,APPLICATIONS,Supplies & Services,Revenue
Walsall Council,http://opendatacommunities.org/id/metropolitan-district-council/walsall,WC71-696,31/08/2016,Social Care & Inclusion,CALDMORE AREA HOUSING ASS LTD,10/08/2016,271.40,73373-RESIDENTIAL & NURSING CARE PLACEMENTS,OP COMMISSIONING,Third Party Payments,Revenue
Walsall Council,http://opendatacommunities.org/id/metropolitan-district-council/walsall,WC71-697,31/08/2016,Social Care & Inclusion,CALDMORE AREA HOUSING ASS LTD,15/08/2016,283.35,73374-SUPPORTED & OTHER ACCOMMODATION,MH COMMISSIONING,Third Party Payments,Revenue
Walsall Council,http://opendatacommunities.org/id/metropolitan-district-council/walsall,WC71-698,31/08/2016,Social Care & Inclusion,CALDMORE AREA HOUSING ASS LTD,01/08/2016,394.63,73374-SUPPORTED & OTHER ACCOMMODATION,MH COMMISSIONING,Third Party Payments,Revenue
Walsall Council,http://opendatacommunities.org/id/metropolitan-district-council/walsall,WC71-699,31/08/2016,Social Care & Inclusion,CALDMORE AREA HOUSING ASS LTD,01/08/2016,429.97,73372-DOMICILIARY CARE,MH COMMISSIONING,Third Party Payments,Revenue
Walsall Council,http://opendatacommunities.org/id/metropolitan-district-council/walsall,WC71-700,31/08/2016,Social Care & Inclusion,CALDMORE AREA HOUSING ASS LTD,01/08/2016,519.40,73374-SUPPORTED & OTHER ACCOMMODATION,MH COMMISSIONING,Third Party Payments,Revenue
Walsall Council,http://opendatacommunities.org/id/metropolitan-district-council/walsall,WC71-701,31/08/2016,Social Care & Inclusion,CALDMORE AREA HOUSING ASS LTD,15/08/2016,519.48,73374-SUPPORTED & OTHER ACCOMMODATION,MH COMMISSIONING,Third Party Payments,Revenue
Walsall Council,http://opendatacommunities.org/id/metropolitan-district-council/walsall,WC71-702,31/08/2016,Social Care & Inclusion,CALDMORE AREA HOUSING ASS LTD,12/08/2016,576.80,73374-SUPPORTED & OTHER ACCOMMODATION,MH COMMISSIONING,Third Party Payments,Revenue
Walsall Council,http://opendatacommunities.org/id/metropolitan-district-council/walsall,WC71-703,31/08/2016,Social Care & Inclusion,CALDMORE AREA HOUSING ASS LTD,12/08/2016,576.80,73374-SUPPORTED & OTHER ACCOMMODATION,MH COMMISSIONING,Third Party Payments,Revenue
Walsall Council,http://opendatacommunities.org/id/metropolitan-district-council/walsall,WC71-704,31/08/2016,Social Care & Inclusion,CALDMORE AREA HOUSING ASS LTD,12/08/2016,576.80,73374-SUPPORTED & OTHER ACCOMMODATION,MH COMMISSIONING,Third Party Payments,Revenue
Walsall Council,http://opendatacommunities.org/id/metropolitan-district-council/walsall,WC71-705,31/08/2016,Social Care & Inclusion,CALDMORE AREA HOUSING ASS LTD,01/08/2016,721.00,73374-SUPPORTED & OTHER ACCOMMODATION,MH COMMISSIONING,Third Party Payments,Revenue
Walsall Council,http://opendatacommunities.org/id/metropolitan-district-council/walsall,WC71-706,31/08/2016,Social Care & Inclusion,CALDMORE AREA HOUSING ASS LTD,01/08/2016,721.00,73374-SUPPORTED & OTHER ACCOMMODATION,MH COMMISSIONING,Third Party Payments,Revenue
Walsall Council,http://opendatacommunities.org/id/metropolitan-district-council/walsall,WC71-707,31/08/2016,Social Care & Inclusion,CALDMORE AREA HOUSING ASS LTD,01/08/2016,721.00,73374-SUPPORTED & OTHER ACCOMMODATION,MH COMMISSIONING,Third Party Payments,Revenue
Walsall Council,http://opendatacommunities.org/id/metropolitan-district-council/walsall,WC71-708,31/08/2016,Social Care & Inclusion,CALDMORE AREA HOUSING ASS LTD,01/08/2016,724.10,73374-SUPPORTED & OTHER ACCOMMODATION,MH COMMISSIONING,Third Party Payments,Revenue
Walsall Council,http://opendatacommunities.org/id/metropolitan-district-council/walsall,WC71-709,31/08/2016,Social Care & Inclusion,CALDMORE AREA HOUSING ASS LTD,01/08/2016,747.74,73374-SUPPORTED & OTHER ACCOMMODATION,MH COMMISSIONING,Third Party Payments,Revenue
Walsall Council,http://opendatacommunities.org/id/metropolitan-district-council/walsall,WC71-710,31/08/2016,Social Care & Inclusion,CALDMORE AREA HOUSING ASS LTD,15/08/2016,831.16,73374-SUPPORTED & OTHER ACCOMMODATION,MH COMMISSIONING,Third Party Payments,Revenue
Walsall Council,http://opendatacommunities.org/id/metropolitan-district-council/walsall,WC71-711,31/08/2016,Social Care & Inclusion,CALDMORE AREA HOUSING ASS LTD,15/08/2016,852.29,73374-SUPPORTED & OTHER ACCOMMODATION,MH COMMISSIONING,Third Party Payments,Revenue
Walsall Council,http://opendatacommunities.org/id/metropolitan-district-council/walsall,WC71-712,31/08/2016,Social Care & Inclusion,CALDMORE AREA HOUSING ASS LTD,15/08/2016,906.72,73374-SUPPORTED & OTHER ACCOMMODATION,MH COMMISSIONING,Third Party Payments,Revenue
Walsall Council,http://opendatacommunities.org/id/metropolitan-district-council/walsall,WC71-713,31/08/2016,Social Care & Inclusion,CALDMORE AREA HOUSING ASS LTD,15/08/2016,906.72,73374-SUPPORTED & OTHER ACCOMMODATION,MH COMMISSIONING,Third Party Payments,Revenue
Walsall Council,http://opendatacommunities.org/id/metropolitan-district-council/walsall,WC71-714,31/08/2016,Social Care & Inclusion,CALDMORE AREA HOUSING ASS LTD,15/08/2016,935.06,73374-SUPPORTED & OTHER ACCOMMODATION,MH COMMISSIONING,Third Party Payments,Revenue
Walsall Council,http://opendatacommunities.org/id/metropolitan-district-council/walsall,WC71-715,31/08/2016,Social Care & Inclusion,CALDMORE AREA HOUSING ASS LTD,15/08/2016,991.71,73374-SUPPORTED & OTHER ACCOMMODATION,MH COMMISSIONING,Third Party Payments,Revenue
Walsall Council,http://opendatacommunities.org/id/metropolitan-district-council/walsall,WC71-716,31/08/2016,Social Care & Inclusion,CALDMORE AREA HOUSING ASS LTD,15/08/2016,"1,038.95",73374-SUPPORTED & OTHER ACCOMMODATION,MH COMMISSIONING,Third Party Payments,Revenue
Walsall Council,http://opendatacommunities.org/id/metropolitan-district-council/walsall,WC71-717,31/08/2016,Social Care & Inclusion,CALDMORE AREA HOUSING ASS LTD,01/08/2016,"1,133.40",73374-SUPPORTED & OTHER ACCOMMODATION,MH COMMISSIONING,Third Party Payments,Revenue
Walsall Council,http://opendatacommunities.org/id/metropolitan-district-council/walsall,WC71-718,31/08/2016,Social Care & Inclusion,CALDMORE AREA HOUSING ASS LTD,01/08/2016,"1,298.65",73374-SUPPORTED & OTHER ACCOMMODATION,MH COMMISSIONING,Third Party Payments,Revenue
Walsall Council,http://opendatacommunities.org/id/metropolitan-district-council/walsall,WC71-719,31/08/2016,Social Care & Inclusion,CALDMORE AREA HOUSING ASS LTD,15/08/2016,"1,298.69",73374-SUPPORTED & OTHER ACCOMMODATION,MH COMMISSIONING,Third Party Payments,Revenue
Walsall Council,http://opendatacommunities.org/id/metropolitan-district-council/walsall,WC71-720,31/08/2016,Social Care & Inclusion,CALDMORE AREA HOUSING ASS LTD,15/08/2016,"1,322.28",73374-SUPPORTED & OTHER ACCOMMODATION,MH COMMISSIONING,Third Party Payments,Revenue
Walsall Council,http://opendatacommunities.org/id/metropolitan-district-council/walsall,WC71-721,31/08/2016,Social Care & Inclusion,CALDMORE AREA HOUSING ASS LTD,15/08/2016,"1,341.19",73374-SUPPORTED & OTHER ACCOMMODATION,MH COMMISSIONING,Third Party Payments,Revenue
Walsall Council,http://opendatacommunities.org/id/metropolitan-district-council/walsall,WC71-722,31/08/2016,Social Care & Inclusion,CALDMORE AREA HOUSING ASS LTD,17/08/2016,"1,356.99",73373-RESIDENTIAL & NURSING CARE PLACEMENTS,MH COMMISSIONING,Third Party Payments,Revenue
Walsall Council,http://opendatacommunities.org/id/metropolitan-district-council/walsall,WC71-723,31/08/2016,Social Care & Inclusion,CALDMORE AREA HOUSING ASS LTD,01/08/2016,"1,369.50",73374-SUPPORTED & OTHER ACCOMMODATION,MH COMMISSIONING,Third Party Payments,Revenue
Walsall Council,http://opendatacommunities.org/id/metropolitan-district-council/walsall,WC71-724,31/08/2016,Social Care & Inclusion,CALDMORE AREA HOUSING ASS LTD,01/08/2016,"1,416.75",73374-SUPPORTED & OTHER ACCOMMODATION,MH COMMISSIONING,Third Party Payments,Revenue
Walsall Council,http://opendatacommunities.org/id/metropolitan-district-council/walsall,WC71-725,31/08/2016,Social Care & Inclusion,CALDMORE AREA HOUSING ASS LTD,01/08/2016,"1,652.85",73374-SUPPORTED & OTHER ACCOMMODATION,MH COMMISSIONING,Third Party Payments,Revenue
Walsall Council,http://opendatacommunities.org/id/metropolitan-district-council/walsall,WC71-726,31/08/2016,Social Care & Inclusion,CALDMORE AREA HOUSING ASS LTD,01/08/2016,"1,676.45",73374-SUPPORTED & OTHER ACCOMMODATION,MH COMMISSIONING,Third Party Payments,Revenue
Walsall Council,http://opendatacommunities.org/id/metropolitan-district-council/walsall,WC71-727,31/08/2016,Social Care & Inclusion,CALDMORE AREA HOUSING ASS LTD,01/08/2016,"1,841.75",73374-SUPPORTED & OTHER ACCOMMODATION,MH COMMISSIONING,Third Party Payments,Revenue
Walsall Council,http://opendatacommunities.org/id/metropolitan-district-council/walsall,WC71-728,31/08/2016,Social Care & Inclusion,CALDMORE AREA HOUSING ASS LTD,17/08/2016,"2,261.64",73373-RESIDENTIAL & NURSING CARE PLACEMENTS,MH COMMISSIONING,Third Party Payments,Revenue
Walsall Council,http://opendatacommunities.org/id/metropolitan-district-council/walsall,WC71-729,31/08/2016,Social Care & Inclusion,CALDMORE AREA HOUSING ASS LTD,17/08/2016,"2,533.04",73373-RESIDENTIAL & NURSING CARE PLACEMENTS,MH COMMISSIONING,Third Party Payments,Revenue
Walsall Council,http://opendatacommunities.org/id/metropolitan-district-council/walsall,WC71-730,31/08/2016,Social Care & Inclusion,CALDMORE AREA HOUSING ASS LTD,17/08/2016,"2,533.04",73373-RESIDENTIAL & NURSING CARE PLACEMENTS,MH COMMISSIONING,Third Party Payments,Revenue
Walsall Council,http://opendatacommunities.org/id/metropolitan-district-council/walsall,WC71-731,31/08/2016,Social Care & Inclusion,CALDMORE AREA HOUSING ASS LTD,17/08/2016,"2,533.04",73373-RESIDENTIAL & NURSING CARE PLACEMENTS,MH COMMISSIONING,Third Party Payments,Revenue
Walsall Council,http://opendatacommunities.org/id/metropolitan-district-council/walsall,WC71-732,31/08/2016,Social Care & Inclusion,CALDMORE AREA HOUSING ASS LTD,17/08/2016,"2,533.04",73373-RESIDENTIAL & NURSING CARE PLACEMENTS,MH COMMISSIONING,Third Party Payments,Revenue
Walsall Council,http://opendatacommunities.org/id/metropolitan-district-council/walsall,WC71-733,31/08/2016,Social Care & Inclusion,CALDMORE AREA HOUSING ASS LTD,17/08/2016,"2,533.04",73373-RESIDENTIAL & NURSING CARE PLACEMENTS,MH COMMISSIONING,Third Party Payments,Revenue
Walsall Council,http://opendatacommunities.org/id/metropolitan-district-council/walsall,WC71-734,31/08/2016,Social Care & Inclusion,CALDMORE AREA HOUSING ASS LTD,17/08/2016,"2,533.04",73373-RESIDENTIAL & NURSING CARE PLACEMENTS,MH COMMISSIONING,Third Party Payments,Revenue
Walsall Council,http://opendatacommunities.org/id/metropolitan-district-council/walsall,WC71-735,31/08/2016,Social Care & Inclusion,CALDMORE AREA HOUSING ASS LTD,17/08/2016,"2,533.04",73373-RESIDENTIAL & NURSING CARE PLACEMENTS,MH COMMISSIONING,Third Party Payments,Revenue
Walsall Council,http://opendatacommunities.org/id/metropolitan-district-council/walsall,WC71-736,31/08/2016,Social Care & Inclusion,CALDMORE AREA HOUSING ASS LTD,17/08/2016,"2,533.04",73373-RESIDENTIAL & NURSING CARE PLACEMENTS,MH COMMISSIONING,Third Party Payments,Revenue
Walsall Council,http://opendatacommunities.org/id/metropolitan-district-council/walsall,WC71-737,31/08/2016,Social Care & Inclusion,CALDMORE AREA HOUSING ASS LTD,17/08/2016,"2,533.04",73373-RESIDENTIAL & NURSING CARE PLACEMENTS,MH COMMISSIONING,Third Party Payments,Revenue
Walsall Council,http://opendatacommunities.org/id/metropolitan-district-council/walsall,WC71-738,31/08/2016,Social Care & Inclusion,CALDMORE AREA HOUSING ASS LTD,17/08/2016,"2,533.04",73373-RESIDENTIAL & NURSING CARE PLACEMENTS,MH COMMISSIONING,Third Party Payments,Revenue
Walsall Council,http://opendatacommunities.org/id/metropolitan-district-council/walsall,WC71-739,31/08/2016,Social Care & Inclusion,CALDMORE AREA HOUSING ASS LTD,17/08/2016,"2,533.04",73373-RESIDENTIAL & NURSING CARE PLACEMENTS,MH COMMISSIONING,Third Party Payments,Revenue
Walsall Council,http://opendatacommunities.org/id/metropolitan-district-council/walsall,WC71-740,31/08/2016,Social Care & Inclusion,CALDMORE AREA HOUSING ASS LTD,17/08/2016,"2,533.04",73373-RESIDENTIAL & NURSING CARE PLACEMENTS,MH COMMISSIONING,Third Party Payments,Revenue
Walsall Council,http://opendatacommunities.org/id/metropolitan-district-council/walsall,WC71-741,31/08/2016,Social Care & Inclusion,CALDMORE AREA HOUSING ASS LTD,17/08/2016,"2,804.44",73373-RESIDENTIAL & NURSING CARE PLACEMENTS,MH COMMISSIONING,Third Party Payments,Revenue
Walsall Council,http://opendatacommunities.org/id/metropolitan-district-council/walsall,WC71-742,31/08/2016,Social Care & Inclusion,CALDMORE AREA HOUSING ASS LTD,17/08/2016,"2,804.44",73373-RESIDENTIAL & NURSING CARE PLACEMENTS,MH COMMISSIONING,Third Party Payments,Revenue
Walsall Council,http://opendatacommunities.org/id/metropolitan-district-council/walsall,WC71-743,31/08/2016,Social Care & Inclusion,CALDMORE AREA HOUSING ASS LTD,17/08/2016,"3,166.30",73373-RESIDENTIAL & NURSING CARE PLACEMENTS,MH COMMISSIONING,Third Party Payments,Revenue
Walsall Council,http://opendatacommunities.org/id/metropolitan-district-council/walsall,WC71-744,31/08/2016,Childrens,REDACTED,01/08/2016,372.84,74006-HOLIDAY/CHRISTMAS ALLOWANCE-FOSTER CARERS-OTH AGENCY PROVISION,INTERNAL FOSTER CARE PROVISION,Third Party Payments,Revenue
Walsall Council,http://opendatacommunities.org/id/metropolitan-district-council/walsall,WC71-745,31/08/2016,Childrens,REDACTED,26/08/2016,372.84,74006-HOLIDAY/CHRISTMAS ALLOWANCE-FOSTER CARERS-OTH AGENCY PROVISION,INTERNAL FOSTER CARE PROVISION,Third Party Payments,Revenue
Walsall Council,http://opendatacommunities.org/id/metropolitan-district-council/walsall,WC71-746,31/08/2016,Childrens,REDACTED,04/08/2016,287.70,76422-DIRECT PAYMENTS TO SOCIAL SERVICES CLIENTS,FAMILY SUPPORT - DIRECT PAYMENTS,Transfer Payments,Revenue
Walsall Council,http://opendatacommunities.org/id/metropolitan-district-council/walsall,WC71-747,31/08/2016,Childrens,CAMBIAN CHILDCARE LIMITED,25/08/2016,"2,421.00",74037-INDEPENDENT FOSTER CARE-OTH AGENCY PROVISION,EXTERNAL FOSTER CARE PROVISION,Third Party Payments,Revenue
Walsall Council,http://opendatacommunities.org/id/metropolitan-district-council/walsall,WC71-748,31/08/2016,Childrens,CAMBIAN CHILDCARE LIMITED,18/08/2016,"3,151.15",74037-INDEPENDENT FOSTER CARE-OTH AGENCY PROVISION,EXTERNAL FOSTER CARE PROVISION,Third Party Payments,Revenue
Walsall Council,http://opendatacommunities.org/id/metropolitan-district-council/walsall,WC71-749,31/08/2016,Childrens,CAMBIAN CHILDCARE LIMITED,18/08/2016,"3,151.15",74037-INDEPENDENT FOSTER CARE-OTH AGENCY PROVISION,EXTERNAL FOSTER CARE PROVISION,Third Party Payments,Revenue
Walsall Council,http://opendatacommunities.org/id/metropolitan-district-council/walsall,WC71-750,31/08/2016,Childrens,CAMBIAN CHILDCARE LIMITED,16/08/2016,"3,210.00",74037-INDEPENDENT FOSTER CARE-OTH AGENCY PROVISION,EXTERNAL FOSTER CARE PROVISION,Third Party Payments,Revenue
Walsall Council,http://opendatacommunities.org/id/metropolitan-district-council/walsall,WC71-751,31/08/2016,Childrens,CAMBIAN CHILDCARE LIMITED,22/08/2016,"3,299.29",74037-INDEPENDENT FOSTER CARE-OTH AGENCY PROVISION,EXTERNAL FOSTER CARE PROVISION,Third Party Payments,Revenue
Walsall Council,http://opendatacommunities.org/id/metropolitan-district-council/walsall,WC71-752,31/08/2016,Childrens,CAMBIAN CHILDCARE LIMITED,18/08/2016,"3,317.00",74037-INDEPENDENT FOSTER CARE-OTH AGENCY PROVISION,EXTERNAL FOSTER CARE PROVISION,Third Party Payments,Revenue
Walsall Council,http://opendatacommunities.org/id/metropolitan-district-council/walsall,WC71-753,31/08/2016,Childrens,CAMBIAN CHILDCARE LIMITED,22/08/2016,"3,317.00",74037-INDEPENDENT FOSTER CARE-OTH AGENCY PROVISION,EXTERNAL FOSTER CARE PROVISION,Third Party Payments,Revenue
Walsall Council,http://opendatacommunities.org/id/metropolitan-district-council/walsall,WC71-754,31/08/2016,Childrens,CAMBIAN CHILDCARE LIMITED,18/08/2016,"3,361.64",74037-INDEPENDENT FOSTER CARE-OTH AGENCY PROVISION,EXTERNAL FOSTER CARE PROVISION,Third Party Payments,Revenue
Walsall Council,http://opendatacommunities.org/id/metropolitan-district-council/walsall,WC71-755,31/08/2016,Childrens,CAMBIAN CHILDCARE LIMITED,18/08/2016,"3,361.64",74037-INDEPENDENT FOSTER CARE-OTH AGENCY PROVISION,EXTERNAL FOSTER CARE PROVISION,Third Party Payments,Revenue
Walsall Council,http://opendatacommunities.org/id/metropolitan-district-council/walsall,WC71-756,31/08/2016,Childrens,CAMBIAN CHILDCARE LIMITED,16/08/2016,"3,458.57",74037-INDEPENDENT FOSTER CARE-OTH AGENCY PROVISION,EXTERNAL FOSTER CARE PROVISION,Third Party Payments,Revenue
Walsall Council,http://opendatacommunities.org/id/metropolitan-district-council/walsall,WC71-757,31/08/2016,Childrens,CAMBIAN CHILDCARE LIMITED,16/08/2016,"3,573.86",74037-INDEPENDENT FOSTER CARE-OTH AGENCY PROVISION,EXTERNAL FOSTER CARE PROVISION,Third Party Payments,Revenue
Walsall Council,http://opendatacommunities.org/id/metropolitan-district-council/walsall,WC71-758,31/08/2016,Childrens,CAMBIAN CHILDCARE LIMITED,18/08/2016,"4,948.93",74037-INDEPENDENT FOSTER CARE-OTH AGENCY PROVISION,EXTERNAL FOSTER CARE PROVISION,Third Party Payments,Revenue
Walsall Council,http://opendatacommunities.org/id/metropolitan-district-council/walsall,WC71-759,31/08/2016,Childrens,CAMBIAN CHILDCARE LIMITED,22/08/2016,"4,948.93",74037-INDEPENDENT FOSTER CARE-OTH AGENCY PROVISION,EXTERNAL FOSTER CARE PROVISION,Third Party Payments,Revenue
Walsall Council,http://opendatacommunities.org/id/metropolitan-district-council/walsall,WC71-760,31/08/2016,Social Care & Inclusion,CAMBIAN HEALTHCARE LTD,30/08/2016,"13,290.90",73375-IN PATIENT BEDS,LD COMMISSIONING,Third Party Payments,Revenue
Walsall Council,http://opendatacommunities.org/id/metropolitan-district-council/walsall,WC71-761,31/08/2016,Social Care & Inclusion,CAMBIAN HEALTHCARE LTD,03/08/2016,"13,733.93",73375-IN PATIENT BEDS,LD COMMISSIONING,Third Party Payments,Revenue
